﻿Department Family,Entity,Date,Expense Type,Expense Area,Supplier,Transaction Number,AP Amount,Supplier Postcode
Department of Health,NHS Sheffield CCG,31/03/2022,Clinical&Medical-Independent Sector,Mental Health Services - S117 Mental Health,MOORVILLE RESIDENTIAL,40078427,28871.54,S10 5FA
Department of Health,NHS Sheffield CCG,31/03/2022,Cont Care-Learning Disab(<65),CHC ADULT FULLY FUNDED,MOORVILLE RESIDENTIAL,40078427,9345.88,S10 5FA
Department of Health,NHS Sheffield CCG,31/03/2022,Cont Care-Learning Disab(<65),CHC ADULT JOINT FUNDED,MOORVILLE RESIDENTIAL,40078427,4415.33,S10 5FA
Department of Health,NHS Sheffield CCG,31/03/2022,Cont Care-Mental Health (<65),CHC ADULT JOINT FUNDED,MOORVILLE RESIDENTIAL,40078427,515.84,S10 5FA
Department of Health,NHS Sheffield CCG,31/03/2022,Clinical&Medical-Independent Sector,MENTAL HEALTH SERVICES - NOT CONTRACTED ACTIVITY,PSYCHIATRY UK LLP,40078611,31879.94,PL33 9ET
Department of Health,NHS Sheffield CCG,31/03/2022,External Consultancy Fees,BEREAVEMENT SERVICE,ATTAIN HEALTH MANAGEMENT SERVICES LTD,40090288,50400,WC1V 7HZ
Department of Health,NHS Sheffield CCG,31/03/2022,External Consultancy Fees,BEREAVEMENT SERVICE,ATTAIN HEALTH MANAGEMENT SERVICES LTD,40090293,232020,WC1V 7HZ
Department of Health,NHS Sheffield CCG,31/03/2022,External Consultancy Fees,BEREAVEMENT SERVICE,ATTAIN HEALTH MANAGEMENT SERVICES LTD,40090297,67500,WC1V 7HZ
Department of Health,NHS Sheffield CCG,31/03/2022,External Consultancy Fees,BEREAVEMENT SERVICE,ATTAIN HEALTH MANAGEMENT SERVICES LTD,40090303,129600,WC1V 7HZ
Department of Health,NHS Sheffield CCG,31/03/2022,External Consultancy Fees,BEREAVEMENT SERVICE,ATTAIN HEALTH MANAGEMENT SERVICES LTD,40090308,50850,WC1V 7HZ
Department of Health,NHS Sheffield CCG,31/03/2022,External Consultancy Fees,BEREAVEMENT SERVICE,ATTAIN HEALTH MANAGEMENT SERVICES LTD,40090311,81120,WC1V 7HZ
Department of Health,NHS Sheffield CCG,31/03/2022,External Consultancy Fees,BEREAVEMENT SERVICE,ATTAIN HEALTH MANAGEMENT SERVICES LTD,40090316,193680,WC1V 7HZ
Department of Health,NHS Sheffield CCG,31/03/2022,Clinical&Medical-Commercial Sector,PATIENT TRANSPORT,PREMIER CARE DIRECT LTD,40090319,112480.55,DN4 5NU
Department of Health,NHS Sheffield CCG,31/03/2022,Participation Fees,BEREAVEMENT SERVICE,PRIMARY CARE DONCASTER LTD,40090339,116117.3,DN4 8QN
Department of Health,NHS Sheffield CCG,31/03/2022,Clinical&Medical-Serv Recd-F Trsts,BEREAVEMENT SERVICE,SHEFFIELD TEACHING HOSPITALS NHS FOUNDATION TRUST,40090353,178000,S5 7AU
Department of Health,NHS Sheffield CCG,31/03/2022,Clinical&Medical-Serv Recd-F Trsts,BEREAVEMENT SERVICE,SHEFFIELD TEACHING HOSPITALS NHS FOUNDATION TRUST,40090356,99040,S5 7AU
Department of Health,NHS Sheffield CCG,31/03/2022,Clinical&Medical-Serv Recd-F Trsts,CLINICAL LEADS,SHEFFIELD TEACHING HOSPITALS NHS FOUNDATION TRUST,40090358,46000,S5 7AU
Department of Health,NHS Sheffield CCG,31/03/2022,Clinical&Medical-Serv Recd-F Trsts,BEREAVEMENT SERVICE,SHEFFIELD TEACHING HOSPITALS NHS FOUNDATION TRUST,40090361,55824,S5 7AU
Department of Health,NHS Sheffield CCG,31/03/2022,Clinical&Medical-Serv Recd-F Trsts,BEREAVEMENT SERVICE,ROTHERHAM NHS FOUNDATION TRUST,40090381,26880,S60 2UD
Department of Health,NHS Sheffield CCG,31/03/2022,Cont Care-Physical Disab (65+),CHC ADULT FULLY FUNDED,ABBEYCARE NURSING,40090420,59238.52,S35 9YY
Department of Health,NHS Sheffield CCG,31/03/2022,Clinical&Medical-Voluntary Sector,BEREAVEMENT SERVICE,VOLUNTARY ACTION ROTHERHAM,40090461,42907,S60 2HX
Department of Health,NHS Sheffield CCG,31/03/2022,Clinical&Medical-Independent Sector,ACUTE COMMISSIONING,SPAMEDICA LTD,40090464,111340.67,BL1 1HU
Department of Health,NHS Sheffield CCG,31/03/2022,Clinical&Medical-Independent Sector,ACUTE COMMISSIONING,CLAREMONT HOSPITAL,40090470,70529,S10 5UB
Department of Health,NHS Sheffield CCG,31/03/2022,Clinical&Medical-Voluntary Sector,BEREAVEMENT SERVICE,BASSETLAW COMMUNITY & VOLUNTARY SERVICE,40090472,37003,S80 2BU
Department of Health,NHS Sheffield CCG,31/03/2022,Clinical&Medical-Serv Recd-F Trsts,BEREAVEMENT SERVICE,ROTHERHAM NHS FOUNDATION TRUST,40090481,59808,S60 2UD
Department of Health,NHS Sheffield CCG,31/03/2022,Clinical&Medical-Othe Public Sector,BEREAVEMENT SERVICE,DONCASTER METROPOLITAN BOROUGH COUNCIL,40097599,37000,DN1 3BU
Department of Health,NHS Sheffield CCG,31/03/2022,Clinical&Medical-Serv Recd-F Trsts,BEREAVEMENT SERVICE,ROTHERHAM NHS FOUNDATION TRUST,40097617,28276,S60 2UD
Department of Health,NHS Sheffield CCG,31/03/2022,Computer Hardware Purch,PRIMARY CARE IT,SIMODA LTD,40100312,15000,S3 8DH
Department of Health,NHS Sheffield CCG,31/03/2022,Computer Hardware Purch,PRIMARY CARE IT,SIMODA LTD,40100312,4000,S3 8DH
Department of Health,NHS Sheffield CCG,31/03/2022,Computer Hardware Purch,PRIMARY CARE IT,SIMODA LTD,40100312,750,S3 8DH
Department of Health,NHS Sheffield CCG,31/03/2022,Computer Hardware Purch,PRIMARY CARE IT,SIMODA LTD,40100312,1400,S3 8DH
Department of Health,NHS Sheffield CCG,31/03/2022,Computer Hardware Purch,PRIMARY CARE IT,SIMODA LTD,40100312,4230,S3 8DH
Department of Health,NHS Sheffield CCG,31/03/2022,C&M-GMS IT Comm Servs -GP Practices,PRIMARY CARE IT,PHOENIX SOFTWARE LTD,40106293,56883,YO42 1NS
Department of Health,NHS Sheffield CCG,31/03/2022,C&M-GMS IT Comm Servs -GP Practices,PRIMARY CARE IT,PHOENIX SOFTWARE LTD,40106293,11376.6,YO42 1NS
Department of Health,NHS Sheffield CCG,31/03/2022,Clinical&Medical-Voluntary Sector,MENTAL HEALTH SERVICES - OTHER,SHEFFIELD MIND,40114659,66763.05,S11 8AL
Department of Health,NHS Sheffield CCG,31/03/2022,Voids and Subsidies,PRC DELEGATED CO-COMMISSIONING,COMMUNITY HEALTH PARTNERSHIPS LTD,40114662,39478.29,M1 3LD
Department of Health,NHS Sheffield CCG,31/03/2022,Voids and Subsidies,RECHARGES NHS PROPERTY SERVICES LTD,COMMUNITY HEALTH PARTNERSHIPS LTD,40114662,112844.21,M1 3LD
Department of Health,NHS Sheffield CCG,31/03/2022,C&M-OES Childrens Schemes,LOCAL ENHANCED SERVICES,PRIMARY EYECARE SERVICES LTD,40114665,1600,M4 6LN
Department of Health,NHS Sheffield CCG,31/03/2022,C&M-OES Glaucoma,LOCAL ENHANCED SERVICES,PRIMARY EYECARE SERVICES LTD,40114665,1130,M4 6LN
Department of Health,NHS Sheffield CCG,31/03/2022,C&M-OES Intra-ocular Ocular Hypertn,LOCAL ENHANCED SERVICES,PRIMARY EYECARE SERVICES LTD,40114665,340,M4 6LN
Department of Health,NHS Sheffield CCG,31/03/2022,C&M-OES PEARS,LOCAL ENHANCED SERVICES,PRIMARY EYECARE SERVICES LTD,40114665,27672,M4 6LN
Department of Health,NHS Sheffield CCG,31/03/2022,C&M-GMS LES Basket of Procedures,LOCAL ENHANCED SERVICES,PRIMARY CARE SHEFFIELD LTD,40114672,53558.37,S12 3GH
Department of Health,NHS Sheffield CCG,31/03/2022,C&M-APMS DES Extended Hours Access,GP FORWARD VIEW,PRIMARY CARE SHEFFIELD LTD,40114675,309441.67,S12 3GH
Department of Health,NHS Sheffield CCG,31/03/2022,Clinical&Medical-Voluntary Sector,COMMUNITY SERVICES,UNITED WOMEN AFFILIATION,40114677,25343,S4 7WW
Department of Health,NHS Sheffield CCG,31/03/2022,C&M-APMS DES Immediate&1st Response,LOCAL ENHANCED SERVICES,PRIMARY CARE SHEFFIELD LTD,40135367,28980,S12 3GH
Department of Health,NHS Sheffield CCG,31/03/2022,Computer Hardware Purch,PRIMARY CARE IT,SIMODA LTD,40151542,26180,S3 8DH
Department of Health,NHS Sheffield CCG,31/03/2022,Computer Hardware Purch,PRIMARY CARE IT,SIMODA LTD,40151542,27195,S3 8DH
Department of Health,NHS Sheffield CCG,31/03/2022,Computer Hardware Purch,PRIMARY CARE IT,SIMODA LTD,40151542,10675,S3 8DH
Department of Health,NHS Sheffield CCG,31/03/2022,Computer Hardware Purch,PRIMARY CARE IT,DELL CORPORATION LTD,40152062,31115,RG12 1LF
Department of Health,NHS Sheffield CCG,31/03/2022,Computer Hardware Purch,PRIMARY CARE IT,DELL CORPORATION LTD,40152062,6223,RG12 1LF
Department of Health,NHS Sheffield CCG,31/03/2022,C&M-APMS Contract Value,PRC DELEGATED CO-COMMISSIONING,CLOVER CITY PRACTICE,40169612,33923.53,S9 4QH
Department of Health,NHS Sheffield CCG,31/03/2022,C&M-APMS DES Minor Surgery,PRC DELEGATED CO-COMMISSIONING,CLOVER CITY PRACTICE,40169612,40,S9 4QH
Department of Health,NHS Sheffield CCG,31/03/2022,C&M-APMS LONG COVID ES,PRC DELEGATED CO-COMMISSIONING,CLOVER CITY PRACTICE,40169612,206.81,S9 4QH
Department of Health,NHS Sheffield CCG,31/03/2022,C&M-APMS OOH Opt Outs,PRC DELEGATED CO-COMMISSIONING,CLOVER CITY PRACTICE,40169612,9.44,S9 4QH
Department of Health,NHS Sheffield CCG,31/03/2022,C&M-APMS PCN DES Participation,PRC DELEGATED CO-COMMISSIONING,CLOVER CITY PRACTICE,40169612,592.77,S9 4QH
Department of Health,NHS Sheffield CCG,31/03/2022,C&M-APMS QOF Aspiration,PRC DELEGATED CO-COMMISSIONING,CLOVER CITY PRACTICE,40169612,2087.76,S9 4QH
Department of Health,NHS Sheffield CCG,31/03/2022,C&M-APMS WEIGHT MANAGEMENT SERVICE,PRC DELEGATED CO-COMMISSIONING,CLOVER CITY PRACTICE,40169612,57.5,S9 4QH
Department of Health,NHS Sheffield CCG,31/03/2022,C&M-PMS Contract Value,PRC DELEGATED CO-COMMISSIONING,WOODHOUSE HEALTH CENTRE,40169616,104188.79,S13 7LY
Department of Health,NHS Sheffield CCG,31/03/2022,C&M-PMS DES Learn Dsblty Hlth Chk,PRC DELEGATED CO-COMMISSIONING,WOODHOUSE HEALTH CENTRE,40169616,11200,S13 7LY
Department of Health,NHS Sheffield CCG,31/03/2022,C&M-PMS DES Minor Surgery,PRC DELEGATED CO-COMMISSIONING,WOODHOUSE HEALTH CENTRE,40169616,4840,S13 7LY
Department of Health,NHS Sheffield CCG,31/03/2022,C&M-PMS LONG COVID ES,PRC DELEGATED CO-COMMISSIONING,WOODHOUSE HEALTH CENTRE,40169616,501.18,S13 7LY
Department of Health,NHS Sheffield CCG,31/03/2022,C&M-PMS Out of Hours Opt Outs,PRC DELEGATED CO-COMMISSIONING,WOODHOUSE HEALTH CENTRE,40169616,105.43,S13 7LY
Department of Health,NHS Sheffield CCG,31/03/2022,C&M-PMS PCN DES Participation,PRC DELEGATED CO-COMMISSIONING,WOODHOUSE HEALTH CENTRE,40169616,1880.78,S13 7LY
Department of Health,NHS Sheffield CCG,31/03/2022,C&M-PMS PCO Locum Adop/Pat/Mat,PRC DELEGATED CO-COMMISSIONING,WOODHOUSE HEALTH CENTRE,40169616,13624.65,S13 7LY
Department of Health,NHS Sheffield CCG,31/03/2022,C&M-PMS Prem Notional Rent,PRC DELEGATED CO-COMMISSIONING,WOODHOUSE HEALTH CENTRE,40169616,6889.58,S13 7LY
Department of Health,NHS Sheffield CCG,31/03/2022,C&M-PMS QOF Aspiration,PRC DELEGATED CO-COMMISSIONING,WOODHOUSE HEALTH CENTRE,40169616,15023.58,S13 7LY
Department of Health,NHS Sheffield CCG,31/03/2022,C&M-PMS WEIGHT MANAGEMENT SERVICE,PRC DELEGATED CO-COMMISSIONING,WOODHOUSE HEALTH CENTRE,40169616,69,S13 7LY
Department of Health,NHS Sheffield CCG,31/03/2022,C&M-PMS Contract Value,PRC DELEGATED CO-COMMISSIONING,GLEADLESS MEDICAL CENTRE,40169618,71125.01,S14 1PQ
Department of Health,NHS Sheffield CCG,31/03/2022,C&M-PMS DES Minor Surgery,PRC DELEGATED CO-COMMISSIONING,GLEADLESS MEDICAL CENTRE,40169618,280,S14 1PQ
Department of Health,NHS Sheffield CCG,31/03/2022,C&M-PMS LONG COVID ES,PRC DELEGATED CO-COMMISSIONING,GLEADLESS MEDICAL CENTRE,40169618,365.6,S14 1PQ
Department of Health,NHS Sheffield CCG,31/03/2022,C&M-PMS Out of Hours Opt Outs,PRC DELEGATED CO-COMMISSIONING,GLEADLESS MEDICAL CENTRE,40169618,105.86,S14 1PQ
Department of Health,NHS Sheffield CCG,31/03/2022,C&M-PMS PCN DES Participation,PRC DELEGATED CO-COMMISSIONING,GLEADLESS MEDICAL CENTRE,40169618,1285.55,S14 1PQ
Department of Health,NHS Sheffield CCG,31/03/2022,C&M-PMS Prem Notional Rent,PRC DELEGATED CO-COMMISSIONING,GLEADLESS MEDICAL CENTRE,40169618,6885.42,S14 1PQ
Department of Health,NHS Sheffield CCG,31/03/2022,C&M-PMS Prem Water Rates,PRC DELEGATED CO-COMMISSIONING,GLEADLESS MEDICAL CENTRE,40169618,155.41,S14 1PQ
Department of Health,NHS Sheffield CCG,31/03/2022,C&M-PMS QOF Aspiration,PRC DELEGATED CO-COMMISSIONING,GLEADLESS MEDICAL CENTRE,40169618,8062.34,S14 1PQ
Department of Health,NHS Sheffield CCG,31/03/2022,C&M-PMS Contract Value,PRC DELEGATED CO-COMMISSIONING,MANCHESTER ROAD SURGERY SHEFFIELD,40169622,35732.27,S10 5PN
Department of Health,NHS Sheffield CCG,31/03/2022,C&M-PMS DES Learn Dsblty Hlth Chk,PRC DELEGATED CO-COMMISSIONING,MANCHESTER ROAD SURGERY SHEFFIELD,40169622,1400,S10 5PN
Department of Health,NHS Sheffield CCG,31/03/2022,C&M-PMS DES Minor Surgery,PRC DELEGATED CO-COMMISSIONING,MANCHESTER ROAD SURGERY SHEFFIELD,40169622,1490,S10 5PN
Department of Health,NHS Sheffield CCG,31/03/2022,C&M-PMS LONG COVID ES,PRC DELEGATED CO-COMMISSIONING,MANCHESTER ROAD SURGERY SHEFFIELD,40169622,201.08,S10 5PN
Department of Health,NHS Sheffield CCG,31/03/2022,C&M-PMS Out of Hours Opt Outs,PRC DELEGATED CO-COMMISSIONING,MANCHESTER ROAD SURGERY SHEFFIELD,40169622,9.75,S10 5PN
Department of Health,NHS Sheffield CCG,31/03/2022,C&M-PMS PCN DES Participation,PRC DELEGATED CO-COMMISSIONING,MANCHESTER ROAD SURGERY SHEFFIELD,40169622,637.95,S10 5PN
Department of Health,NHS Sheffield CCG,31/03/2022,C&M-PMS Prem Cost Rent,PRC DELEGATED CO-COMMISSIONING,MANCHESTER ROAD SURGERY SHEFFIELD,40169622,3077.32,S10 5PN
Department of Health,NHS Sheffield CCG,31/03/2022,C&M-PMS Prem Notional Rent,PRC DELEGATED CO-COMMISSIONING,MANCHESTER ROAD SURGERY SHEFFIELD,40169622,442.92,S10 5PN
Department of Health,NHS Sheffield CCG,31/03/2022,C&M-PMS Prem Water Rates,PRC DELEGATED CO-COMMISSIONING,MANCHESTER ROAD SURGERY SHEFFIELD,40169622,221.95,S10 5PN
Department of Health,NHS Sheffield CCG,31/03/2022,C&M-PMS QOF Aspiration,PRC DELEGATED CO-COMMISSIONING,MANCHESTER ROAD SURGERY SHEFFIELD,40169622,4335.38,S10 5PN
Department of Health,NHS Sheffield CCG,31/03/2022,C&M-PMS WEIGHT MANAGEMENT SERVICE,PRC DELEGATED CO-COMMISSIONING,MANCHESTER ROAD SURGERY SHEFFIELD,40169622,34.5,S10 5PN
Department of Health,NHS Sheffield CCG,31/03/2022,C&M-PMS Contract Value,PRC DELEGATED CO-COMMISSIONING,MANOR & PARK GROUP PRACTICE,40169624,-1979.26,S2 1QU
Department of Health,NHS Sheffield CCG,31/03/2022,C&M-PMS GP Statutory Levy,PRC DELEGATED CO-COMMISSIONING,MANOR & PARK GROUP PRACTICE,40169624,-293.48,S2 1QU
Department of Health,NHS Sheffield CCG,31/03/2022,C&M-PMS Out of Hours Opt Outs,PRC DELEGATED CO-COMMISSIONING,MANOR & PARK GROUP PRACTICE,40169624,-3489.6,S2 1QU
Department of Health,NHS Sheffield CCG,31/03/2022,C&M-PMS Contract Value,PRC DELEGATED CO-COMMISSIONING,MEADOWHEAD GROUP PRACTICE,40169625,165813.99,S8 7RL
Department of Health,NHS Sheffield CCG,31/03/2022,C&M-PMS DES Learn Dsblty Hlth Chk,PRC DELEGATED CO-COMMISSIONING,MEADOWHEAD GROUP PRACTICE,40169625,2800,S8 7RL
Department of Health,NHS Sheffield CCG,31/03/2022,C&M-PMS DES Minor Surgery,PRC DELEGATED CO-COMMISSIONING,MEADOWHEAD GROUP PRACTICE,40169625,3395,S8 7RL
Department of Health,NHS Sheffield CCG,31/03/2022,C&M-PMS LONG COVID ES,PRC DELEGATED CO-COMMISSIONING,MEADOWHEAD GROUP PRACTICE,40169625,764.3,S8 7RL
Department of Health,NHS Sheffield CCG,31/03/2022,C&M-PMS Out of Hours Opt Outs,PRC DELEGATED CO-COMMISSIONING,MEADOWHEAD GROUP PRACTICE,40169625,154.26,S8 7RL
Department of Health,NHS Sheffield CCG,31/03/2022,C&M-PMS PCN DES Participation,PRC DELEGATED CO-COMMISSIONING,MEADOWHEAD GROUP PRACTICE,40169625,2652.53,S8 7RL
Department of Health,NHS Sheffield CCG,31/03/2022,C&M-PMS Prem Actual Rent,PRC DELEGATED CO-COMMISSIONING,MEADOWHEAD GROUP PRACTICE,40169625,3358.33,S8 7RL
Department of Health,NHS Sheffield CCG,31/03/2022,C&M-PMS Prem Cost Rent,PRC DELEGATED CO-COMMISSIONING,MEADOWHEAD GROUP PRACTICE,40169625,3647.42,S8 7RL
Department of Health,NHS Sheffield CCG,31/03/2022,C&M-PMS Prem Healthcentre Rent,PRC DELEGATED CO-COMMISSIONING,MEADOWHEAD GROUP PRACTICE,40169625,42600.17,S8 7RL
Department of Health,NHS Sheffield CCG,31/03/2022,C&M-PMS Prem Notional Rent,PRC DELEGATED CO-COMMISSIONING,MEADOWHEAD GROUP PRACTICE,40169625,5666.67,S8 7RL
Department of Health,NHS Sheffield CCG,31/03/2022,C&M-PMS QOF Aspiration,PRC DELEGATED CO-COMMISSIONING,MEADOWHEAD GROUP PRACTICE,40169625,18549.4,S8 7RL
Department of Health,NHS Sheffield CCG,31/03/2022,C&M-PMS WEIGHT MANAGEMENT SERVICE,PRC DELEGATED CO-COMMISSIONING,MEADOWHEAD GROUP PRACTICE,40169625,241.5,S8 7RL
Department of Health,NHS Sheffield CCG,31/03/2022,C&M-PMS Contract Value,PRC DELEGATED CO-COMMISSIONING,MEADOWHEAD GROUP PRACTICE,40169626,-4004.36,S8 7RL
Department of Health,NHS Sheffield CCG,31/03/2022,C&M-PMS GP Statutory Levy,PRC DELEGATED CO-COMMISSIONING,MEADOWHEAD GROUP PRACTICE,40169626,-656.95,S8 7RL
Department of Health,NHS Sheffield CCG,31/03/2022,C&M-PMS Out of Hours Opt Outs,PRC DELEGATED CO-COMMISSIONING,MEADOWHEAD GROUP PRACTICE,40169626,-7789.5,S8 7RL
Department of Health,NHS Sheffield CCG,31/03/2022,C&M-PMS Prem Actual Rent,PRC DELEGATED CO-COMMISSIONING,MEADOWHEAD GROUP PRACTICE,40169626,-3358.33,S8 7RL
Department of Health,NHS Sheffield CCG,31/03/2022,C&M-PMS Prem Cost Rent,PRC DELEGATED CO-COMMISSIONING,MEADOWHEAD GROUP PRACTICE,40169626,-3647.42,S8 7RL
Department of Health,NHS Sheffield CCG,31/03/2022,C&M-PMS Prem Healthcentre Rent,PRC DELEGATED CO-COMMISSIONING,MEADOWHEAD GROUP PRACTICE,40169626,-767.14,S8 7RL
Department of Health,NHS Sheffield CCG,31/03/2022,C&M-PMS Contract Value,PRC DELEGATED CO-COMMISSIONING,NETHERGREEN SURGERY,40169627,68701.27,S11 7EJ
Department of Health,NHS Sheffield CCG,31/03/2022,C&M-PMS DES Learn Dsblty Hlth Chk,PRC DELEGATED CO-COMMISSIONING,NETHERGREEN SURGERY,40169627,140,S11 7EJ
Department of Health,NHS Sheffield CCG,31/03/2022,C&M-PMS DES Minor Surgery,PRC DELEGATED CO-COMMISSIONING,NETHERGREEN SURGERY,40169627,2395,S11 7EJ
Department of Health,NHS Sheffield CCG,31/03/2022,C&M-PMS LONG COVID ES,PRC DELEGATED CO-COMMISSIONING,NETHERGREEN SURGERY,40169627,382.79,S11 7EJ
Department of Health,NHS Sheffield CCG,31/03/2022,C&M-PMS Out of Hours Opt Outs,PRC DELEGATED CO-COMMISSIONING,NETHERGREEN SURGERY,40169627,34.97,S11 7EJ
Department of Health,NHS Sheffield CCG,31/03/2022,C&M-PMS PCN DES Participation,PRC DELEGATED CO-COMMISSIONING,NETHERGREEN SURGERY,40169627,1216.05,S11 7EJ
Department of Health,NHS Sheffield CCG,31/03/2022,C&M-PMS Prem Cost Rent,PRC DELEGATED CO-COMMISSIONING,NETHERGREEN SURGERY,40169627,5057.33,S11 7EJ
Department of Health,NHS Sheffield CCG,31/03/2022,C&M-PMS Prem Water Rates,PRC DELEGATED CO-COMMISSIONING,NETHERGREEN SURGERY,40169627,200.27,S11 7EJ
Department of Health,NHS Sheffield CCG,31/03/2022,C&M-PMS QOF Aspiration,PRC DELEGATED CO-COMMISSIONING,NETHERGREEN SURGERY,40169627,7008.62,S11 7EJ
Department of Health,NHS Sheffield CCG,31/03/2022,C&M-PMS WEIGHT MANAGEMENT SERVICE,PRC DELEGATED CO-COMMISSIONING,NETHERGREEN SURGERY,40169627,46,S11 7EJ
Department of Health,NHS Sheffield CCG,31/03/2022,C&M-PMS Contract Value,PRC DELEGATED CO-COMMISSIONING,BARNSLEY ROAD SURGERY,40169630,21500.79,S5 0QJ
Department of Health,NHS Sheffield CCG,31/03/2022,C&M-PMS LONG COVID ES,PRC DELEGATED CO-COMMISSIONING,BARNSLEY ROAD SURGERY,40169630,102.03,S5 0QJ
Department of Health,NHS Sheffield CCG,31/03/2022,C&M-PMS PCN DES Participation,PRC DELEGATED CO-COMMISSIONING,BARNSLEY ROAD SURGERY,40169630,387.62,S5 0QJ
Department of Health,NHS Sheffield CCG,31/03/2022,C&M-PMS Prem Notional Rent,PRC DELEGATED CO-COMMISSIONING,BARNSLEY ROAD SURGERY,40169630,2831.25,S5 0QJ
Department of Health,NHS Sheffield CCG,31/03/2022,C&M-PMS QOF Aspiration,PRC DELEGATED CO-COMMISSIONING,BARNSLEY ROAD SURGERY,40169630,2443.92,S5 0QJ
Department of Health,NHS Sheffield CCG,31/03/2022,C&M-PMS WEIGHT MANAGEMENT SERVICE,PRC DELEGATED CO-COMMISSIONING,BARNSLEY ROAD SURGERY,40169630,46,S5 0QJ
Department of Health,NHS Sheffield CCG,31/03/2022,C&M-PMS Contract Value,PRC DELEGATED CO-COMMISSIONING,RICHMOND MEDICAL CENTRE,40169633,74080.58,S13 8NA
Department of Health,NHS Sheffield CCG,31/03/2022,C&M-PMS DES Minor Surgery,PRC DELEGATED CO-COMMISSIONING,RICHMOND MEDICAL CENTRE,40169633,2725,S13 8NA
Department of Health,NHS Sheffield CCG,31/03/2022,C&M-PMS LONG COVID ES,PRC DELEGATED CO-COMMISSIONING,RICHMOND MEDICAL CENTRE,40169633,380.03,S13 8NA
Department of Health,NHS Sheffield CCG,31/03/2022,C&M-PMS Out of Hours Opt Outs,PRC DELEGATED CO-COMMISSIONING,RICHMOND MEDICAL CENTRE,40169633,28.68,S13 8NA
Department of Health,NHS Sheffield CCG,31/03/2022,C&M-PMS PCN DES Participation,PRC DELEGATED CO-COMMISSIONING,RICHMOND MEDICAL CENTRE,40169633,1317.91,S13 8NA
Department of Health,NHS Sheffield CCG,31/03/2022,C&M-PMS Prem Notional Rent,PRC DELEGATED CO-COMMISSIONING,RICHMOND MEDICAL CENTRE,40169633,6429.17,S13 8NA
Department of Health,NHS Sheffield CCG,31/03/2022,C&M-PMS QOF Aspiration,PRC DELEGATED CO-COMMISSIONING,RICHMOND MEDICAL CENTRE,40169633,8858.87,S13 8NA
Department of Health,NHS Sheffield CCG,31/03/2022,C&M-PMS WEIGHT MANAGEMENT SERVICE,PRC DELEGATED CO-COMMISSIONING,RICHMOND MEDICAL CENTRE,40169633,57.5,S13 8NA
Department of Health,NHS Sheffield CCG,31/03/2022,C&M-PMS Contract Value,PRC DELEGATED CO-COMMISSIONING,FORGE HEALTH GROUP,40169638,-650.39,S3 9DL
Department of Health,NHS Sheffield CCG,31/03/2022,C&M-PMS GP Statutory Levy,PRC DELEGATED CO-COMMISSIONING,FORGE HEALTH GROUP,40169638,-531.48,S3 9DL
Department of Health,NHS Sheffield CCG,31/03/2022,C&M-PMS Out of Hours Opt Outs,PRC DELEGATED CO-COMMISSIONING,FORGE HEALTH GROUP,40169638,-6091.32,S3 9DL
Department of Health,NHS Sheffield CCG,31/03/2022,C&M-PMS Contract Value,PRC DELEGATED CO-COMMISSIONING,PORTER BROOK MEDICAL CENTRE,40169639,177728.52,S11 8HN
Department of Health,NHS Sheffield CCG,31/03/2022,C&M-PMS DES Minor Surgery,PRC DELEGATED CO-COMMISSIONING,PORTER BROOK MEDICAL CENTRE,40169639,5155,S11 8HN
Department of Health,NHS Sheffield CCG,31/03/2022,C&M-PMS LONG COVID ES,PRC DELEGATED CO-COMMISSIONING,PORTER BROOK MEDICAL CENTRE,40169639,1189.1,S11 8HN
Department of Health,NHS Sheffield CCG,31/03/2022,C&M-PMS Out of Hours Opt Outs,PRC DELEGATED CO-COMMISSIONING,PORTER BROOK MEDICAL CENTRE,40169639,147.99,S11 8HN
Department of Health,NHS Sheffield CCG,31/03/2022,C&M-PMS PCN DES Participation,PRC DELEGATED CO-COMMISSIONING,PORTER BROOK MEDICAL CENTRE,40169639,3019.37,S11 8HN
Department of Health,NHS Sheffield CCG,31/03/2022,C&M-PMS PCO Locum Adop/Pat/Mat,PRC DELEGATED CO-COMMISSIONING,PORTER BROOK MEDICAL CENTRE,40169639,5714.03,S11 8HN
Department of Health,NHS Sheffield CCG,31/03/2022,C&M-PMS Prem Actual Rent,PRC DELEGATED CO-COMMISSIONING,PORTER BROOK MEDICAL CENTRE,40169639,1666.67,S11 8HN
Department of Health,NHS Sheffield CCG,31/03/2022,C&M-PMS Prem Notional Rent,PRC DELEGATED CO-COMMISSIONING,PORTER BROOK MEDICAL CENTRE,40169639,11600.01,S11 8HN
Department of Health,NHS Sheffield CCG,31/03/2022,C&M-PMS QOF Aspiration,PRC DELEGATED CO-COMMISSIONING,PORTER BROOK MEDICAL CENTRE,40169639,11138.7,S11 8HN
Department of Health,NHS Sheffield CCG,31/03/2022,C&M-PMS Contract Value,PRC DELEGATED CO-COMMISSIONING,PORTER BROOK MEDICAL CENTRE,40169640,-4011.43,S11 8HN
Department of Health,NHS Sheffield CCG,31/03/2022,C&M-PMS GP Statutory Levy,PRC DELEGATED CO-COMMISSIONING,PORTER BROOK MEDICAL CENTRE,40169640,-1018.99,S11 8HN
Department of Health,NHS Sheffield CCG,31/03/2022,C&M-PMS Out of Hours Opt Outs,PRC DELEGATED CO-COMMISSIONING,PORTER BROOK MEDICAL CENTRE,40169640,-8346.04,S11 8HN
Department of Health,NHS Sheffield CCG,31/03/2022,C&M-PMS Prem Notional Rent,PRC DELEGATED CO-COMMISSIONING,PORTER BROOK MEDICAL CENTRE,40169640,-1666.67,S11 8HN
Department of Health,NHS Sheffield CCG,31/03/2022,C&M-PMS Contract Value,PRC DELEGATED CO-COMMISSIONING,BURNCROSS SURGERY,40169644,127123.64,S35 1RN
Department of Health,NHS Sheffield CCG,31/03/2022,C&M-PMS DES Learn Dsblty Hlth Chk,PRC DELEGATED CO-COMMISSIONING,BURNCROSS SURGERY,40169644,280,S35 1RN
Department of Health,NHS Sheffield CCG,31/03/2022,C&M-PMS DES Minor Surgery,PRC DELEGATED CO-COMMISSIONING,BURNCROSS SURGERY,40169644,4790,S35 1RN
Department of Health,NHS Sheffield CCG,31/03/2022,C&M-PMS LONG COVID ES,PRC DELEGATED CO-COMMISSIONING,BURNCROSS SURGERY,40169644,618.33,S35 1RN
Department of Health,NHS Sheffield CCG,31/03/2022,C&M-PMS PCN DES Participation,PRC DELEGATED CO-COMMISSIONING,BURNCROSS SURGERY,40169644,2296.43,S35 1RN
Department of Health,NHS Sheffield CCG,31/03/2022,C&M-PMS PCO Locum Sickness,PRC DELEGATED CO-COMMISSIONING,BURNCROSS SURGERY,40169644,45908.14,S35 1RN
Department of Health,NHS Sheffield CCG,31/03/2022,C&M-PMS Prem Notional Rent,PRC DELEGATED CO-COMMISSIONING,BURNCROSS SURGERY,40169644,14919.67,S35 1RN
Department of Health,NHS Sheffield CCG,31/03/2022,C&M-PMS QOF Aspiration,PRC DELEGATED CO-COMMISSIONING,BURNCROSS SURGERY,40169644,16606.07,S35 1RN
Department of Health,NHS Sheffield CCG,31/03/2022,C&M-PMS WEIGHT MANAGEMENT SERVICE,PRC DELEGATED CO-COMMISSIONING,BURNCROSS SURGERY,40169644,80.5,S35 1RN
Department of Health,NHS Sheffield CCG,31/03/2022,C&M-APMS Contract Value,PRC DELEGATED CO-COMMISSIONING,CLOVER GROUP PRACTICE,40169646,126839.56,S9 4QH
Department of Health,NHS Sheffield CCG,31/03/2022,C&M-APMS DES Learn Dsblty Hlth Chk,PRC DELEGATED CO-COMMISSIONING,CLOVER GROUP PRACTICE,40169646,700,S9 4QH
Department of Health,NHS Sheffield CCG,31/03/2022,C&M-APMS DES Minor Surgery,PRC DELEGATED CO-COMMISSIONING,CLOVER GROUP PRACTICE,40169646,160,S9 4QH
Department of Health,NHS Sheffield CCG,31/03/2022,C&M-APMS LONG COVID ES,PRC DELEGATED CO-COMMISSIONING,CLOVER GROUP PRACTICE,40169646,620.35,S9 4QH
Department of Health,NHS Sheffield CCG,31/03/2022,C&M-APMS OOH Opt Outs,PRC DELEGATED CO-COMMISSIONING,CLOVER GROUP PRACTICE,40169646,721.06,S9 4QH
Department of Health,NHS Sheffield CCG,31/03/2022,C&M-APMS PCN DES Participation,PRC DELEGATED CO-COMMISSIONING,CLOVER GROUP PRACTICE,40169646,2290.04,S9 4QH
Department of Health,NHS Sheffield CCG,31/03/2022,C&M-APMS Prem Actual Rent,PRC DELEGATED CO-COMMISSIONING,CLOVER GROUP PRACTICE,40169646,5169.68,S9 4QH
Department of Health,NHS Sheffield CCG,31/03/2022,C&M-APMS Prem Healthcentre Rent,PRC DELEGATED CO-COMMISSIONING,CLOVER GROUP PRACTICE,40169646,51020.3,S9 4QH
Department of Health,NHS Sheffield CCG,31/03/2022,C&M-APMS Prem Notional Rent,PRC DELEGATED CO-COMMISSIONING,CLOVER GROUP PRACTICE,40169646,2804.17,S9 4QH
Department of Health,NHS Sheffield CCG,31/03/2022,C&M-APMS QOF Aspiration,PRC DELEGATED CO-COMMISSIONING,CLOVER GROUP PRACTICE,40169646,9965.6,S9 4QH
Department of Health,NHS Sheffield CCG,31/03/2022,C&M-APMS WEIGHT MANAGEMENT SERVICE,PRC DELEGATED CO-COMMISSIONING,CLOVER GROUP PRACTICE,40169646,23,S9 4QH
Department of Health,NHS Sheffield CCG,31/03/2022,C&M-PMS Contract Value,PRC DELEGATED CO-COMMISSIONING,SLOAN MEDICAL CENTRE,40169649,103594.66,S8 0YH
Department of Health,NHS Sheffield CCG,31/03/2022,C&M-PMS DES Minor Surgery,PRC DELEGATED CO-COMMISSIONING,SLOAN MEDICAL CENTRE,40169649,5900,S8 0YH
Department of Health,NHS Sheffield CCG,31/03/2022,C&M-PMS LONG COVID ES,PRC DELEGATED CO-COMMISSIONING,SLOAN MEDICAL CENTRE,40169649,556.21,S8 0YH
Department of Health,NHS Sheffield CCG,31/03/2022,C&M-PMS Out of Hours Opt Outs,PRC DELEGATED CO-COMMISSIONING,SLOAN MEDICAL CENTRE,40169649,5.59,S8 0YH
Department of Health,NHS Sheffield CCG,31/03/2022,C&M-PMS PCN DES Participation,PRC DELEGATED CO-COMMISSIONING,SLOAN MEDICAL CENTRE,40169649,1849.06,S8 0YH
Department of Health,NHS Sheffield CCG,31/03/2022,C&M-PMS PCO Locum Adop/Pat/Mat,PRC DELEGATED CO-COMMISSIONING,SLOAN MEDICAL CENTRE,40169649,1520,S8 0YH
Department of Health,NHS Sheffield CCG,31/03/2022,C&M-PMS PCO Locum Sickness,PRC DELEGATED CO-COMMISSIONING,SLOAN MEDICAL CENTRE,40169649,7007.08,S8 0YH
Department of Health,NHS Sheffield CCG,31/03/2022,C&M-PMS Prem Actual Rent,PRC DELEGATED CO-COMMISSIONING,SLOAN MEDICAL CENTRE,40169649,44850,S8 0YH
Department of Health,NHS Sheffield CCG,31/03/2022,C&M-PMS Prem Notional Rent,PRC DELEGATED CO-COMMISSIONING,SLOAN MEDICAL CENTRE,40169649,747.5,S8 0YH
Department of Health,NHS Sheffield CCG,31/03/2022,C&M-PMS QOF Aspiration,PRC DELEGATED CO-COMMISSIONING,SLOAN MEDICAL CENTRE,40169649,11094.95,S8 0YH
Department of Health,NHS Sheffield CCG,31/03/2022,C&M-PMS WEIGHT MANAGEMENT SERVICE,PRC DELEGATED CO-COMMISSIONING,SLOAN MEDICAL CENTRE,40169649,46,S8 0YH
Department of Health,NHS Sheffield CCG,31/03/2022,C&M- PCN DES Nursing Associate,PRC DELEGATED CO-COMMISSIONING,DYKES HALL MEDICAL CENTRE,40169654,4411.93,S6 4GQ
Department of Health,NHS Sheffield CCG,31/03/2022,C&M-PCN DES PHARMACY TECHNICIANS,PRC DELEGATED CO-COMMISSIONING,DYKES HALL MEDICAL CENTRE,40169654,3035.67,S6 4GQ
Department of Health,NHS Sheffield CCG,31/03/2022,C&M-PCN DES Trainee Nursing Associate,PRC DELEGATED CO-COMMISSIONING,DYKES HALL MEDICAL CENTRE,40169654,2042.11,S6 4GQ
Department of Health,NHS Sheffield CCG,31/03/2022,C&M-PCN-PMS DES Leadership Payment,PRC DELEGATED CO-COMMISSIONING,DYKES HALL MEDICAL CENTRE,40169654,4050.67,S6 4GQ
Department of Health,NHS Sheffield CCG,31/03/2022,C&M-PMS Contract Value,PRC DELEGATED CO-COMMISSIONING,DYKES HALL MEDICAL CENTRE,40169654,74345.31,S6 4GQ
Department of Health,NHS Sheffield CCG,31/03/2022,C&M-PMS DES Extended Hours Access,PRC DELEGATED CO-COMMISSIONING,DYKES HALL MEDICAL CENTRE,40169654,4281.12,S6 4GQ
Department of Health,NHS Sheffield CCG,31/03/2022,C&M-PMS DES Minor Surgery,PRC DELEGATED CO-COMMISSIONING,DYKES HALL MEDICAL CENTRE,40169654,1760,S6 4GQ
Department of Health,NHS Sheffield CCG,31/03/2022,C&M-PMS LONG COVID ES,PRC DELEGATED CO-COMMISSIONING,DYKES HALL MEDICAL CENTRE,40169654,389.34,S6 4GQ
Department of Health,NHS Sheffield CCG,31/03/2022,C&M-PMS Out of Hours Opt Outs,PRC DELEGATED CO-COMMISSIONING,DYKES HALL MEDICAL CENTRE,40169654,106.48,S6 4GQ
Department of Health,NHS Sheffield CCG,31/03/2022,C&M-PMS PCN DES Clin Pharmacist,PRC DELEGATED CO-COMMISSIONING,DYKES HALL MEDICAL CENTRE,40169654,13964.48,S6 4GQ
Department of Health,NHS Sheffield CCG,31/03/2022,C&M-PMS PCN DES Clinical Director,PRC DELEGATED CO-COMMISSIONING,DYKES HALL MEDICAL CENTRE,40169654,2188.13,S6 4GQ
Department of Health,NHS Sheffield CCG,31/03/2022,C&M-PMS PCN DES PCN support,LOCAL ENHANCED SERVICES,DYKES HALL MEDICAL CENTRE,40169654,4459.5,S6 4GQ
Department of Health,NHS Sheffield CCG,31/03/2022,C&M-PMS PCN DES Participation,PRC DELEGATED CO-COMMISSIONING,DYKES HALL MEDICAL CENTRE,40169654,1345.01,S6 4GQ
Department of Health,NHS Sheffield CCG,31/03/2022,C&M-PMS PCN DES Physiotherapist,PRC DELEGATED CO-COMMISSIONING,DYKES HALL MEDICAL CENTRE,40169654,6494.84,S6 4GQ
Department of Health,NHS Sheffield CCG,31/03/2022,C&M-PMS PCN DES Soc Prescribing,PRC DELEGATED CO-COMMISSIONING,DYKES HALL MEDICAL CENTRE,40169654,2949,S6 4GQ
Department of Health,NHS Sheffield CCG,31/03/2022,C&M-PMS Prem Notional Rent,PRC DELEGATED CO-COMMISSIONING,DYKES HALL MEDICAL CENTRE,40169654,5527.08,S6 4GQ
Department of Health,NHS Sheffield CCG,31/03/2022,C&M-PMS QOF Aspiration,PRC DELEGATED CO-COMMISSIONING,DYKES HALL MEDICAL CENTRE,40169654,9390.15,S6 4GQ
Department of Health,NHS Sheffield CCG,31/03/2022,C&M-PMS WEIGHT MANAGEMENT SERVICE,PRC DELEGATED CO-COMMISSIONING,DYKES HALL MEDICAL CENTRE,40169654,92,S6 4GQ
Department of Health,NHS Sheffield CCG,31/03/2022,C&M-PMS Contract Value,PRC DELEGATED CO-COMMISSIONING,DR MEHROTRA & PARTNER,40169657,26303.18,S9 5DH
Department of Health,NHS Sheffield CCG,31/03/2022,C&M-PMS LONG COVID ES,PRC DELEGATED CO-COMMISSIONING,DR MEHROTRA & PARTNER,40169657,125.56,S9 5DH
Department of Health,NHS Sheffield CCG,31/03/2022,C&M-PMS PCN DES Participation,PRC DELEGATED CO-COMMISSIONING,DR MEHROTRA & PARTNER,40169657,457.08,S9 5DH
Department of Health,NHS Sheffield CCG,31/03/2022,C&M-PMS Prem Notional Rent,PRC DELEGATED CO-COMMISSIONING,DR MEHROTRA & PARTNER,40169657,5157.29,S9 5DH
Department of Health,NHS Sheffield CCG,31/03/2022,C&M-PMS Prem Rates,PRC DELEGATED CO-COMMISSIONING,DR MEHROTRA & PARTNER,40169657,4935.13,S9 5DH
Department of Health,NHS Sheffield CCG,31/03/2022,C&M-PMS QOF Aspiration,PRC DELEGATED CO-COMMISSIONING,DR MEHROTRA & PARTNER,40169657,2925.04,S9 5DH
Department of Health,NHS Sheffield CCG,31/03/2022,C&M-PMS Contract Value,PRC DELEGATED CO-COMMISSIONING,DEEPCAR MEDICAL CENTRE,40169659,43351.63,S36 2RA
Department of Health,NHS Sheffield CCG,31/03/2022,C&M-PMS DES Learn Dsblty Hlth Chk,PRC DELEGATED CO-COMMISSIONING,DEEPCAR MEDICAL CENTRE,40169659,420,S36 2RA
Department of Health,NHS Sheffield CCG,31/03/2022,C&M-PMS LONG COVID ES,PRC DELEGATED CO-COMMISSIONING,DEEPCAR MEDICAL CENTRE,40169659,217.98,S36 2RA
Department of Health,NHS Sheffield CCG,31/03/2022,C&M-PMS Out of Hours Opt Outs,PRC DELEGATED CO-COMMISSIONING,DEEPCAR MEDICAL CENTRE,40169659,53.27,S36 2RA
Department of Health,NHS Sheffield CCG,31/03/2022,C&M-PMS PCN DES Participation,PRC DELEGATED CO-COMMISSIONING,DEEPCAR MEDICAL CENTRE,40169659,784.44,S36 2RA
Department of Health,NHS Sheffield CCG,31/03/2022,C&M-PMS Prem Healthcentre Rent,PRC DELEGATED CO-COMMISSIONING,DEEPCAR MEDICAL CENTRE,40169659,31188.15,S36 2RA
Department of Health,NHS Sheffield CCG,31/03/2022,C&M-PMS QOF Aspiration,PRC DELEGATED CO-COMMISSIONING,DEEPCAR MEDICAL CENTRE,40169659,4646.77,S36 2RA
Department of Health,NHS Sheffield CCG,31/03/2022,C&M-PMS Contract Value,PRC DELEGATED CO-COMMISSIONING,DR MILNER & PARTNERS,40169662,81176.13,S6 4JQ
Department of Health,NHS Sheffield CCG,31/03/2022,C&M-PMS DES Learn Dsblty Hlth Chk,PRC DELEGATED CO-COMMISSIONING,DR MILNER & PARTNERS,40169662,420,S6 4JQ
Department of Health,NHS Sheffield CCG,31/03/2022,C&M-PMS DES Minor Surgery,PRC DELEGATED CO-COMMISSIONING,DR MILNER & PARTNERS,40169662,4550,S6 4JQ
Department of Health,NHS Sheffield CCG,31/03/2022,C&M-PMS LONG COVID ES,PRC DELEGATED CO-COMMISSIONING,DR MILNER & PARTNERS,40169662,442.11,S6 4JQ
Department of Health,NHS Sheffield CCG,31/03/2022,C&M-PMS Out of Hours Opt Outs,PRC DELEGATED CO-COMMISSIONING,DR MILNER & PARTNERS,40169662,37.26,S6 4JQ
Department of Health,NHS Sheffield CCG,31/03/2022,C&M-PMS PCN DES Participation,PRC DELEGATED CO-COMMISSIONING,DR MILNER & PARTNERS,40169662,1456.05,S6 4JQ
Department of Health,NHS Sheffield CCG,31/03/2022,C&M-PMS Prem Actual Rent,PRC DELEGATED CO-COMMISSIONING,DR MILNER & PARTNERS,40169662,11382,S6 4JQ
Department of Health,NHS Sheffield CCG,31/03/2022,C&M-PMS Prem Notional Rent,PRC DELEGATED CO-COMMISSIONING,DR MILNER & PARTNERS,40169662,15996.59,S6 4JQ
Department of Health,NHS Sheffield CCG,31/03/2022,C&M-PMS Prem Rates,PRC DELEGATED CO-COMMISSIONING,DR MILNER & PARTNERS,40169662,1944,S6 4JQ
Department of Health,NHS Sheffield CCG,31/03/2022,C&M-PMS QOF Aspiration,PRC DELEGATED CO-COMMISSIONING,DR MILNER & PARTNERS,40169662,7550.33,S6 4JQ
Department of Health,NHS Sheffield CCG,31/03/2022,C&M-PMS Contract Value,PRC DELEGATED CO-COMMISSIONING,DR MILNER & PARTNERS,40169663,-1219.84,S6 4JQ
Department of Health,NHS Sheffield CCG,31/03/2022,C&M-PMS GP Statutory Levy,PRC DELEGATED CO-COMMISSIONING,DR MILNER & PARTNERS,40169663,-375.55,S6 4JQ
Department of Health,NHS Sheffield CCG,31/03/2022,C&M-PMS Out of Hours Opt Outs,PRC DELEGATED CO-COMMISSIONING,DR MILNER & PARTNERS,40169663,-3827.58,S6 4JQ
Department of Health,NHS Sheffield CCG,31/03/2022,C&M-PMS Prem Notional Rent,PRC DELEGATED CO-COMMISSIONING,DR MILNER & PARTNERS,40169663,-11382,S6 4JQ
Department of Health,NHS Sheffield CCG,31/03/2022,C&M- PCN DES Nursing Associate,PRC DELEGATED CO-COMMISSIONING,UNIVERSITY HEALTH SERVICE,40169666,2673.85,S3 7QP
Department of Health,NHS Sheffield CCG,31/03/2022,C&M-PCN DES Trainee Nursing Associate,PRC DELEGATED CO-COMMISSIONING,UNIVERSITY HEALTH SERVICE,40169666,1984.39,S3 7QP
Department of Health,NHS Sheffield CCG,31/03/2022,C&M-PCN-PMS DES Leadership Payment,PRC DELEGATED CO-COMMISSIONING,UNIVERSITY HEALTH SERVICE,40169666,3369.83,S3 7QP
Department of Health,NHS Sheffield CCG,31/03/2022,C&M-PMS Contract Value,PRC DELEGATED CO-COMMISSIONING,UNIVERSITY HEALTH SERVICE,40169666,224970.3,S3 7QP
Department of Health,NHS Sheffield CCG,31/03/2022,C&M-PMS DES Extended Hours Access,PRC DELEGATED CO-COMMISSIONING,UNIVERSITY HEALTH SERVICE,40169666,4876.32,S3 7QP
Department of Health,NHS Sheffield CCG,31/03/2022,C&M-PMS DES Minor Surgery,PRC DELEGATED CO-COMMISSIONING,UNIVERSITY HEALTH SERVICE,40169666,4250,S3 7QP
Department of Health,NHS Sheffield CCG,31/03/2022,C&M-PMS LONG COVID ES,PRC DELEGATED CO-COMMISSIONING,UNIVERSITY HEALTH SERVICE,40169666,1675.11,S3 7QP
Department of Health,NHS Sheffield CCG,31/03/2022,C&M-PMS Out of Hours Opt Outs,PRC DELEGATED CO-COMMISSIONING,UNIVERSITY HEALTH SERVICE,40169666,1072.83,S3 7QP
Department of Health,NHS Sheffield CCG,31/03/2022,C&M-PMS PCN DES Clin Pharmacist,PRC DELEGATED CO-COMMISSIONING,UNIVERSITY HEALTH SERVICE,40169666,9677.18,S3 7QP
Department of Health,NHS Sheffield CCG,31/03/2022,C&M-PMS PCN DES Clinical Director,PRC DELEGATED CO-COMMISSIONING,UNIVERSITY HEALTH SERVICE,40169666,2492.34,S3 7QP
Department of Health,NHS Sheffield CCG,31/03/2022,C&M-PMS PCN DES PCN support,LOCAL ENHANCED SERVICES,UNIVERSITY HEALTH SERVICE,40169666,5079.5,S3 7QP
Department of Health,NHS Sheffield CCG,31/03/2022,C&M-PMS PCN DES Participation,PRC DELEGATED CO-COMMISSIONING,UNIVERSITY HEALTH SERVICE,40169666,3676.64,S3 7QP
Department of Health,NHS Sheffield CCG,31/03/2022,C&M-PMS PCN DES Physiotherapist,PRC DELEGATED CO-COMMISSIONING,UNIVERSITY HEALTH SERVICE,40169666,1452.3,S3 7QP
Department of Health,NHS Sheffield CCG,31/03/2022,C&M-PMS PCN DES Soc Prescribing,PRC DELEGATED CO-COMMISSIONING,UNIVERSITY HEALTH SERVICE,40169666,2791.02,S3 7QP
Department of Health,NHS Sheffield CCG,31/03/2022,C&M-PMS PCO Locum Sickness,PRC DELEGATED CO-COMMISSIONING,UNIVERSITY HEALTH SERVICE,40169666,7006.08,S3 7QP
Department of Health,NHS Sheffield CCG,31/03/2022,C&M-PMS Prem Notional Rent,PRC DELEGATED CO-COMMISSIONING,UNIVERSITY HEALTH SERVICE,40169666,15833.33,S3 7QP
Department of Health,NHS Sheffield CCG,31/03/2022,C&M-PMS QOF Aspiration,PRC DELEGATED CO-COMMISSIONING,UNIVERSITY HEALTH SERVICE,40169666,8048.38,S3 7QP
Department of Health,NHS Sheffield CCG,31/03/2022,C&M-PMS WEIGHT MANAGEMENT SERVICE,PRC DELEGATED CO-COMMISSIONING,UNIVERSITY HEALTH SERVICE,40169666,23,S3 7QP
Department of Health,NHS Sheffield CCG,31/03/2022,C&M-PMS Contract Value,PRC DELEGATED CO-COMMISSIONING,UNIVERSITY HEALTH SERVICE,40169667,-24074.97,S3 7QP
Department of Health,NHS Sheffield CCG,31/03/2022,C&M-PMS GP Statutory Levy,PRC DELEGATED CO-COMMISSIONING,UNIVERSITY HEALTH SERVICE,40169667,-1380.72,S3 7QP
Department of Health,NHS Sheffield CCG,31/03/2022,C&M-PMS Out of Hours Opt Outs,PRC DELEGATED CO-COMMISSIONING,UNIVERSITY HEALTH SERVICE,40169667,-10609.62,S3 7QP
Department of Health,NHS Sheffield CCG,31/03/2022,C&M-PCN-PMS DES Leadership Payment,PRC DELEGATED CO-COMMISSIONING,VALLEY MEDICAL CENTRE,40169669,2316.17,S36 1BX
Department of Health,NHS Sheffield CCG,31/03/2022,C&M-PMS Contract Value,PRC DELEGATED CO-COMMISSIONING,VALLEY MEDICAL CENTRE,40169669,85063.98,S36 1BX
Department of Health,NHS Sheffield CCG,31/03/2022,C&M-PMS DES Extended Hours Access,PRC DELEGATED CO-COMMISSIONING,VALLEY MEDICAL CENTRE,40169669,2477.4,S36 1BX
Department of Health,NHS Sheffield CCG,31/03/2022,C&M-PMS DES Learn Dsblty Hlth Chk,PRC DELEGATED CO-COMMISSIONING,VALLEY MEDICAL CENTRE,40169669,140,S36 1BX
Department of Health,NHS Sheffield CCG,31/03/2022,C&M-PMS DES Minor Surgery,PRC DELEGATED CO-COMMISSIONING,VALLEY MEDICAL CENTRE,40169669,3935,S36 1BX
Department of Health,NHS Sheffield CCG,31/03/2022,C&M-PMS LONG COVID ES,PRC DELEGATED CO-COMMISSIONING,VALLEY MEDICAL CENTRE,40169669,396.48,S36 1BX
Department of Health,NHS Sheffield CCG,31/03/2022,C&M-PMS Out of Hours Opt Outs,PRC DELEGATED CO-COMMISSIONING,VALLEY MEDICAL CENTRE,40169669,55.72,S36 1BX
Department of Health,NHS Sheffield CCG,31/03/2022,C&M-PMS PCN DES Clinical Director,PRC DELEGATED CO-COMMISSIONING,VALLEY MEDICAL CENTRE,40169669,1266.23,S36 1BX
Department of Health,NHS Sheffield CCG,31/03/2022,C&M-PMS PCN DES PCN support,LOCAL ENHANCED SERVICES,VALLEY MEDICAL CENTRE,40169669,2580.63,S36 1BX
Department of Health,NHS Sheffield CCG,31/03/2022,C&M-PMS PCN DES Participation,PRC DELEGATED CO-COMMISSIONING,VALLEY MEDICAL CENTRE,40169669,1524.87,S36 1BX
Department of Health,NHS Sheffield CCG,31/03/2022,C&M-PMS Prem Actual Rent,PRC DELEGATED CO-COMMISSIONING,VALLEY MEDICAL CENTRE,40169669,25468.75,S36 1BX
Department of Health,NHS Sheffield CCG,31/03/2022,C&M-PMS QOF Aspiration,PRC DELEGATED CO-COMMISSIONING,VALLEY MEDICAL CENTRE,40169669,9844.79,S36 1BX
Department of Health,NHS Sheffield CCG,31/03/2022,C&M-PMS WEIGHT MANAGEMENT SERVICE,PRC DELEGATED CO-COMMISSIONING,VALLEY MEDICAL CENTRE,40169669,46,S36 1BX
Department of Health,NHS Sheffield CCG,31/03/2022,C&M-PMS Contract Value,PRC DELEGATED CO-COMMISSIONING,VALLEY MEDICAL CENTRE,40169670,-1612.3,S36 1BX
Department of Health,NHS Sheffield CCG,31/03/2022,C&M-PMS GP Statutory Levy,PRC DELEGATED CO-COMMISSIONING,VALLEY MEDICAL CENTRE,40169670,-334.64,S36 1BX
Department of Health,NHS Sheffield CCG,31/03/2022,C&M-PMS Out of Hours Opt Outs,PRC DELEGATED CO-COMMISSIONING,VALLEY MEDICAL CENTRE,40169670,-4005.38,S36 1BX
Department of Health,NHS Sheffield CCG,31/03/2022,Computer Hardware Purch,PRIMARY CARE IT,DELL CORPORATION LTD,40171616,63500,RG12 1LF
Department of Health,NHS Sheffield CCG,31/03/2022,Computer Hardware Purch,PRIMARY CARE IT,DELL CORPORATION LTD,40171616,12700,RG12 1LF
Department of Health,NHS Sheffield CCG,31/03/2022,C&M-PMS Contract Value,PRC DELEGATED CO-COMMISSIONING,WOODSEATS MEDICAL CENTRE,40174854,88102.47,S8 0SH
Department of Health,NHS Sheffield CCG,31/03/2022,C&M-PMS DES Learn Dsblty Hlth Chk,PRC DELEGATED CO-COMMISSIONING,WOODSEATS MEDICAL CENTRE,40174854,1260,S8 0SH
Department of Health,NHS Sheffield CCG,31/03/2022,C&M-PMS DES Minor Surgery,PRC DELEGATED CO-COMMISSIONING,WOODSEATS MEDICAL CENTRE,40174854,6820,S8 0SH
Department of Health,NHS Sheffield CCG,31/03/2022,C&M-PMS LONG COVID ES,PRC DELEGATED CO-COMMISSIONING,WOODSEATS MEDICAL CENTRE,40174854,443.06,S8 0SH
Department of Health,NHS Sheffield CCG,31/03/2022,C&M-PMS Out of Hours Opt Outs,PRC DELEGATED CO-COMMISSIONING,WOODSEATS MEDICAL CENTRE,40174854,15.45,S8 0SH
Department of Health,NHS Sheffield CCG,31/03/2022,C&M-PMS PCN DES Participation,PRC DELEGATED CO-COMMISSIONING,WOODSEATS MEDICAL CENTRE,40174854,1531.95,S8 0SH
Department of Health,NHS Sheffield CCG,31/03/2022,C&M-PMS PCO Locum Sickness,PRC DELEGATED CO-COMMISSIONING,WOODSEATS MEDICAL CENTRE,40174854,2900.7,S8 0SH
Department of Health,NHS Sheffield CCG,31/03/2022,C&M-PMS Prem Notional Rent,PRC DELEGATED CO-COMMISSIONING,WOODSEATS MEDICAL CENTRE,40174854,11666.67,S8 0SH
Department of Health,NHS Sheffield CCG,31/03/2022,C&M-PMS Prem Water Rates,PRC DELEGATED CO-COMMISSIONING,WOODSEATS MEDICAL CENTRE,40174854,1086.76,S8 0SH
Department of Health,NHS Sheffield CCG,31/03/2022,C&M-PMS QOF Aspiration,PRC DELEGATED CO-COMMISSIONING,WOODSEATS MEDICAL CENTRE,40174854,10133.24,S8 0SH
Department of Health,NHS Sheffield CCG,31/03/2022,C&M-PMS WEIGHT MANAGEMENT SERVICE,PRC DELEGATED CO-COMMISSIONING,WOODSEATS MEDICAL CENTRE,40174854,69,S8 0SH
Department of Health,NHS Sheffield CCG,31/03/2022,Computer Software/License,IM&T,SHERWOOD FOREST HOSPITALS NHS FOUNDATION TRUST,40182035,36000,NG17 4JL
Department of Health,NHS Sheffield CCG,31/03/2022,C&M-GMS LES Translation Fees,INTERPRETING SERVICES,LANGUAGELINE SOLUTIONS,40182178,28682.98,E14 5NR
Department of Health,NHS Sheffield CCG,31/03/2022,C&M-WAF extra session - staff,PRC DELEGATED CO-COMMISSIONING,PRIMARY CARE SHEFFIELD LTD,40182671,38590.58,S12 3GH
Department of Health,NHS Sheffield CCG,31/03/2022,C&M-GP PRACTICE REVENUE - PCTF,LOCAL ENHANCED SERVICES,WINCOBANK MEDICAL CENTRE,40190246,3000,S9 1DJ
Department of Health,NHS Sheffield CCG,31/03/2022,C&M-PMS Contract Value,PRC DELEGATED CO-COMMISSIONING,WINCOBANK MEDICAL CENTRE,40190246,66900.19,S9 1DJ
Department of Health,NHS Sheffield CCG,31/03/2022,C&M-PMS DES Minor Surgery,PRC DELEGATED CO-COMMISSIONING,WINCOBANK MEDICAL CENTRE,40190246,2480,S9 1DJ
Department of Health,NHS Sheffield CCG,31/03/2022,C&M-PMS LONG COVID ES,PRC DELEGATED CO-COMMISSIONING,WINCOBANK MEDICAL CENTRE,40190246,315.76,S9 1DJ
Department of Health,NHS Sheffield CCG,31/03/2022,C&M-PMS Out of Hours Opt Outs,PRC DELEGATED CO-COMMISSIONING,WINCOBANK MEDICAL CENTRE,40190246,14.65,S9 1DJ
Department of Health,NHS Sheffield CCG,31/03/2022,C&M-PMS PCN DES Participation,PRC DELEGATED CO-COMMISSIONING,WINCOBANK MEDICAL CENTRE,40190246,1191.11,S9 1DJ
Department of Health,NHS Sheffield CCG,31/03/2022,C&M-PMS Prem Healthcentre Rent,PRC DELEGATED CO-COMMISSIONING,WINCOBANK MEDICAL CENTRE,40190246,47262.38,S9 1DJ
Department of Health,NHS Sheffield CCG,31/03/2022,C&M-PMS QOF Aspiration,PRC DELEGATED CO-COMMISSIONING,WINCOBANK MEDICAL CENTRE,40190246,6971.47,S9 1DJ
Department of Health,NHS Sheffield CCG,31/03/2022,C&M-GP PRACTICE REVENUE - PCTF,LOCAL ENHANCED SERVICES,FOXHILL MEDICAL CENTRE SHEFFIELD,40190247,12000,S6 1GA
Department of Health,NHS Sheffield CCG,31/03/2022,C&M-PMS Contract Value,PRC DELEGATED CO-COMMISSIONING,FOXHILL MEDICAL CENTRE SHEFFIELD,40190247,53906.01,S6 1GA
Department of Health,NHS Sheffield CCG,31/03/2022,C&M-PMS DES Minor Surgery,PRC DELEGATED CO-COMMISSIONING,FOXHILL MEDICAL CENTRE SHEFFIELD,40190247,525,S6 1GA
Department of Health,NHS Sheffield CCG,31/03/2022,C&M-PMS LONG COVID ES,PRC DELEGATED CO-COMMISSIONING,FOXHILL MEDICAL CENTRE SHEFFIELD,40190247,247.09,S6 1GA
Department of Health,NHS Sheffield CCG,31/03/2022,C&M-PMS Out of Hours Opt Outs,PRC DELEGATED CO-COMMISSIONING,FOXHILL MEDICAL CENTRE SHEFFIELD,40190247,67.27,S6 1GA
Department of Health,NHS Sheffield CCG,31/03/2022,C&M-PMS PCN DES Participation,PRC DELEGATED CO-COMMISSIONING,FOXHILL MEDICAL CENTRE SHEFFIELD,40190247,965.57,S6 1GA
Department of Health,NHS Sheffield CCG,31/03/2022,C&M-PMS PCO Locum Adop/Pat/Mat,PRC DELEGATED CO-COMMISSIONING,FOXHILL MEDICAL CENTRE SHEFFIELD,40190247,17460.08,S6 1GA
Department of Health,NHS Sheffield CCG,31/03/2022,C&M-PMS PCO Locum Sickness,PRC DELEGATED CO-COMMISSIONING,FOXHILL MEDICAL CENTRE SHEFFIELD,40190247,5364.4,S6 1GA
Department of Health,NHS Sheffield CCG,31/03/2022,C&M-PMS Prem Healthcentre Rent,PRC DELEGATED CO-COMMISSIONING,FOXHILL MEDICAL CENTRE SHEFFIELD,40190247,48823.57,S6 1GA
Department of Health,NHS Sheffield CCG,31/03/2022,C&M-PMS QOF Aspiration,PRC DELEGATED CO-COMMISSIONING,FOXHILL MEDICAL CENTRE SHEFFIELD,40190247,6019.72,S6 1GA
Department of Health,NHS Sheffield CCG,31/03/2022,C&M- PCN DES CARE COORDINATOR,PRC DELEGATED CO-COMMISSIONING,JAUNTY SPRINGS HEALTH CENTRE,40190248,7511.28,S12 3DZ
Department of Health,NHS Sheffield CCG,31/03/2022,C&M-PCN DES Adult Mental Health Practitioner,PRC DELEGATED CO-COMMISSIONING,JAUNTY SPRINGS HEALTH CENTRE,40190248,2706.98,S12 3DZ
Department of Health,NHS Sheffield CCG,31/03/2022,C&M-PCN DES DIETICIANS,PRC DELEGATED CO-COMMISSIONING,JAUNTY SPRINGS HEALTH CENTRE,40190248,4609.42,S12 3DZ
Department of Health,NHS Sheffield CCG,31/03/2022,C&M-PCN DES OCCUPATIONAL THERAPISTS,PRC DELEGATED CO-COMMISSIONING,JAUNTY SPRINGS HEALTH CENTRE,40190248,3390.67,S12 3DZ
Department of Health,NHS Sheffield CCG,31/03/2022,C&M-PCN DES PHARMACY TECHNICIANS,PRC DELEGATED CO-COMMISSIONING,JAUNTY SPRINGS HEALTH CENTRE,40190248,5867.95,S12 3DZ
Department of Health,NHS Sheffield CCG,31/03/2022,C&M-PCN-PMS DES Leadership Payment,PRC DELEGATED CO-COMMISSIONING,JAUNTY SPRINGS HEALTH CENTRE,40190248,4475.67,S12 3DZ
Department of Health,NHS Sheffield CCG,31/03/2022,C&M-PMS Contract Value,PRC DELEGATED CO-COMMISSIONING,JAUNTY SPRINGS HEALTH CENTRE,40190248,32965,S12 3DZ
Department of Health,NHS Sheffield CCG,31/03/2022,C&M-PMS DES Extended Hours Access,PRC DELEGATED CO-COMMISSIONING,JAUNTY SPRINGS HEALTH CENTRE,40190248,4196.88,S12 3DZ
Department of Health,NHS Sheffield CCG,31/03/2022,C&M-PMS DES Learn Dsblty Hlth Chk,PRC DELEGATED CO-COMMISSIONING,JAUNTY SPRINGS HEALTH CENTRE,40190248,140,S12 3DZ
Department of Health,NHS Sheffield CCG,31/03/2022,C&M-PMS DES Minor Surgery,PRC DELEGATED CO-COMMISSIONING,JAUNTY SPRINGS HEALTH CENTRE,40190248,440,S12 3DZ
Department of Health,NHS Sheffield CCG,31/03/2022,C&M-PMS LONG COVID ES,PRC DELEGATED CO-COMMISSIONING,JAUNTY SPRINGS HEALTH CENTRE,40190248,157.14,S12 3DZ
Department of Health,NHS Sheffield CCG,31/03/2022,C&M-PMS Out of Hours Opt Outs,PRC DELEGATED CO-COMMISSIONING,JAUNTY SPRINGS HEALTH CENTRE,40190248,20.84,S12 3DZ
Department of Health,NHS Sheffield CCG,31/03/2022,C&M-PMS PCN DES Clin Pharmacist,PRC DELEGATED CO-COMMISSIONING,JAUNTY SPRINGS HEALTH CENTRE,40190248,9353.58,S12 3DZ
Department of Health,NHS Sheffield CCG,31/03/2022,C&M-PMS PCN DES Clinical Director,PRC DELEGATED CO-COMMISSIONING,JAUNTY SPRINGS HEALTH CENTRE,40190248,2145.07,S12 3DZ
Department of Health,NHS Sheffield CCG,31/03/2022,C&M-PMS PCN DES Home/RR paramedic,PRC DELEGATED CO-COMMISSIONING,JAUNTY SPRINGS HEALTH CENTRE,40190248,4067.3,S12 3DZ
Department of Health,NHS Sheffield CCG,31/03/2022,C&M-PMS PCN DES PCN support,LOCAL ENHANCED SERVICES,JAUNTY SPRINGS HEALTH CENTRE,40190248,4371.75,S12 3DZ
Department of Health,NHS Sheffield CCG,31/03/2022,C&M-PMS PCN DES Participation,PRC DELEGATED CO-COMMISSIONING,JAUNTY SPRINGS HEALTH CENTRE,40190248,593.33,S12 3DZ
Department of Health,NHS Sheffield CCG,31/03/2022,C&M-PMS PCN DES Physiotherapist,PRC DELEGATED CO-COMMISSIONING,JAUNTY SPRINGS HEALTH CENTRE,40190248,4074.35,S12 3DZ
Department of Health,NHS Sheffield CCG,31/03/2022,C&M-PMS PCN DES Soc Prescribing,PRC DELEGATED CO-COMMISSIONING,JAUNTY SPRINGS HEALTH CENTRE,40190248,5214.4,S12 3DZ
Department of Health,NHS Sheffield CCG,31/03/2022,C&M-PMS Prem Notional Rent,PRC DELEGATED CO-COMMISSIONING,JAUNTY SPRINGS HEALTH CENTRE,40190248,3208.33,S12 3DZ
Department of Health,NHS Sheffield CCG,31/03/2022,C&M-PMS QOF Aspiration,PRC DELEGATED CO-COMMISSIONING,JAUNTY SPRINGS HEALTH CENTRE,40190248,4210.91,S12 3DZ
Department of Health,NHS Sheffield CCG,31/03/2022,C&M-PMS WEIGHT MANAGEMENT SERVICE,PRC DELEGATED CO-COMMISSIONING,JAUNTY SPRINGS HEALTH CENTRE,40190248,23,S12 3DZ
Department of Health,NHS Sheffield CCG,31/03/2022,C&M-GP PRACTICE REVENUE - PCTF,LOCAL ENHANCED SERVICES,HACKENTHORPE MEDICAL CENTRE,40190249,3000,S12 4LA
Department of Health,NHS Sheffield CCG,31/03/2022,C&M-PMS Contract Value,PRC DELEGATED CO-COMMISSIONING,HACKENTHORPE MEDICAL CENTRE,40190249,51630.22,S12 4LA
Department of Health,NHS Sheffield CCG,31/03/2022,C&M-PMS DES Learn Dsblty Hlth Chk,PRC DELEGATED CO-COMMISSIONING,HACKENTHORPE MEDICAL CENTRE,40190249,840,S12 4LA
Department of Health,NHS Sheffield CCG,31/03/2022,C&M-PMS DES Minor Surgery,PRC DELEGATED CO-COMMISSIONING,HACKENTHORPE MEDICAL CENTRE,40190249,1000,S12 4LA
Department of Health,NHS Sheffield CCG,31/03/2022,C&M-PMS LONG COVID ES,PRC DELEGATED CO-COMMISSIONING,HACKENTHORPE MEDICAL CENTRE,40190249,277.63,S12 4LA
Department of Health,NHS Sheffield CCG,31/03/2022,C&M-PMS Out of Hours Opt Outs,PRC DELEGATED CO-COMMISSIONING,HACKENTHORPE MEDICAL CENTRE,40190249,43.99,S12 4LA
Department of Health,NHS Sheffield CCG,31/03/2022,C&M-PMS PCN DES Participation,PRC DELEGATED CO-COMMISSIONING,HACKENTHORPE MEDICAL CENTRE,40190249,930.28,S12 4LA
Department of Health,NHS Sheffield CCG,31/03/2022,C&M-PMS Prem Notional Rent,PRC DELEGATED CO-COMMISSIONING,HACKENTHORPE MEDICAL CENTRE,40190249,5325.01,S12 4LA
Department of Health,NHS Sheffield CCG,31/03/2022,C&M-PMS QOF Aspiration,PRC DELEGATED CO-COMMISSIONING,HACKENTHORPE MEDICAL CENTRE,40190249,7164.43,S12 4LA
Department of Health,NHS Sheffield CCG,31/03/2022,C&M-PMS WEIGHT MANAGEMENT SERVICE,PRC DELEGATED CO-COMMISSIONING,HACKENTHORPE MEDICAL CENTRE,40190249,69,S12 4LA
Department of Health,NHS Sheffield CCG,31/03/2022,C&M-GP PRACTICE REVENUE - PCTF,LOCAL ENHANCED SERVICES,MANOR & PARK GROUP PRACTICE,40190250,3000,S2 1QU
Department of Health,NHS Sheffield CCG,31/03/2022,C&M-PMS Contract Value,PRC DELEGATED CO-COMMISSIONING,MANOR & PARK GROUP PRACTICE,40190250,74096.85,S2 1QU
Department of Health,NHS Sheffield CCG,31/03/2022,C&M-PMS DES Learn Dsblty Hlth Chk,PRC DELEGATED CO-COMMISSIONING,MANOR & PARK GROUP PRACTICE,40190250,140,S2 1QU
Department of Health,NHS Sheffield CCG,31/03/2022,C&M-PMS DES Minor Surgery,PRC DELEGATED CO-COMMISSIONING,MANOR & PARK GROUP PRACTICE,40190250,240,S2 1QU
Department of Health,NHS Sheffield CCG,31/03/2022,C&M-PMS LONG COVID ES,PRC DELEGATED CO-COMMISSIONING,MANOR & PARK GROUP PRACTICE,40190250,351.25,S2 1QU
Department of Health,NHS Sheffield CCG,31/03/2022,C&M-PMS Out of Hours Opt Outs,PRC DELEGATED CO-COMMISSIONING,MANOR & PARK GROUP PRACTICE,40190250,74.82,S2 1QU
Department of Health,NHS Sheffield CCG,31/03/2022,C&M-PMS PCN DES Participation,PRC DELEGATED CO-COMMISSIONING,MANOR & PARK GROUP PRACTICE,40190250,1333.57,S2 1QU
Department of Health,NHS Sheffield CCG,31/03/2022,C&M-PMS Prem Notional Rent,PRC DELEGATED CO-COMMISSIONING,MANOR & PARK GROUP PRACTICE,40190250,9112.5,S2 1QU
Department of Health,NHS Sheffield CCG,31/03/2022,C&M-PMS QOF Aspiration,PRC DELEGATED CO-COMMISSIONING,MANOR & PARK GROUP PRACTICE,40190250,6833.28,S2 1QU
Department of Health,NHS Sheffield CCG,31/03/2022,C&M-PMS WAF Security Funding,PRC DELEGATED CO-COMMISSIONING,MANOR & PARK GROUP PRACTICE,40190250,2555,S2 1QU
Department of Health,NHS Sheffield CCG,31/03/2022,C&M-GP PRACTICE REVENUE - PCTF,LOCAL ENHANCED SERVICES,MOSBOROUGH HEALTH CENTRE,40190251,3000,S20 5BQ
Department of Health,NHS Sheffield CCG,31/03/2022,C&M-PMS Contract Value,PRC DELEGATED CO-COMMISSIONING,MOSBOROUGH HEALTH CENTRE,40190251,53726.94,S20 5BQ
Department of Health,NHS Sheffield CCG,31/03/2022,C&M-PMS DES Learn Dsblty Hlth Chk,PRC DELEGATED CO-COMMISSIONING,MOSBOROUGH HEALTH CENTRE,40190251,420,S20 5BQ
Department of Health,NHS Sheffield CCG,31/03/2022,C&M-PMS DES Minor Surgery,PRC DELEGATED CO-COMMISSIONING,MOSBOROUGH HEALTH CENTRE,40190251,1800,S20 5BQ
Department of Health,NHS Sheffield CCG,31/03/2022,C&M-PMS LONG COVID ES,PRC DELEGATED CO-COMMISSIONING,MOSBOROUGH HEALTH CENTRE,40190251,286.99,S20 5BQ
Department of Health,NHS Sheffield CCG,31/03/2022,C&M-PMS Out of Hours Opt Outs,PRC DELEGATED CO-COMMISSIONING,MOSBOROUGH HEALTH CENTRE,40190251,31.64,S20 5BQ
Department of Health,NHS Sheffield CCG,31/03/2022,C&M-PMS PCN DES Participation,PRC DELEGATED CO-COMMISSIONING,MOSBOROUGH HEALTH CENTRE,40190251,972.62,S20 5BQ
Department of Health,NHS Sheffield CCG,31/03/2022,C&M-PMS Prem Notional Rent,PRC DELEGATED CO-COMMISSIONING,MOSBOROUGH HEALTH CENTRE,40190251,4541.67,S20 5BQ
Department of Health,NHS Sheffield CCG,31/03/2022,C&M-PMS Prem Water Rates,PRC DELEGATED CO-COMMISSIONING,MOSBOROUGH HEALTH CENTRE,40190251,214.46,S20 5BQ
Department of Health,NHS Sheffield CCG,31/03/2022,C&M-PMS QOF Aspiration,PRC DELEGATED CO-COMMISSIONING,MOSBOROUGH HEALTH CENTRE,40190251,6344.52,S20 5BQ
Department of Health,NHS Sheffield CCG,31/03/2022,C&M-PMS WEIGHT MANAGEMENT SERVICE,PRC DELEGATED CO-COMMISSIONING,MOSBOROUGH HEALTH CENTRE,40190251,80.5,S20 5BQ
Department of Health,NHS Sheffield CCG,31/03/2022,C&M-PMS Contract Value,PRC DELEGATED CO-COMMISSIONING,RUSTLINGS ROAD MEDICAL CENTRE,40190252,31169.58,S11 7AB
Department of Health,NHS Sheffield CCG,31/03/2022,C&M-PMS LONG COVID ES,PRC DELEGATED CO-COMMISSIONING,RUSTLINGS ROAD MEDICAL CENTRE,40190252,193.13,S11 7AB
Department of Health,NHS Sheffield CCG,31/03/2022,C&M-PMS Out of Hours Opt Outs,PRC DELEGATED CO-COMMISSIONING,RUSTLINGS ROAD MEDICAL CENTRE,40190252,6.89,S11 7AB
Department of Health,NHS Sheffield CCG,31/03/2022,C&M-PMS PCN DES Participation,PRC DELEGATED CO-COMMISSIONING,RUSTLINGS ROAD MEDICAL CENTRE,40190252,544.7,S11 7AB
Department of Health,NHS Sheffield CCG,31/03/2022,C&M-PMS Prem Notional Rent,PRC DELEGATED CO-COMMISSIONING,RUSTLINGS ROAD MEDICAL CENTRE,40190252,1341.67,S11 7AB
Department of Health,NHS Sheffield CCG,31/03/2022,C&M-PMS Prem Water Rates,PRC DELEGATED CO-COMMISSIONING,RUSTLINGS ROAD MEDICAL CENTRE,40190252,72.37,S11 7AB
Department of Health,NHS Sheffield CCG,31/03/2022,C&M-PMS QOF Aspiration,PRC DELEGATED CO-COMMISSIONING,RUSTLINGS ROAD MEDICAL CENTRE,40190252,3139.32,S11 7AB
Department of Health,NHS Sheffield CCG,31/03/2022,C&M-PMS WAF Security Funding,PRC DELEGATED CO-COMMISSIONING,RUSTLINGS ROAD MEDICAL CENTRE,40190252,1680,S11 7AB
Department of Health,NHS Sheffield CCG,31/03/2022,C&M-PMS WEIGHT MANAGEMENT SERVICE,PRC DELEGATED CO-COMMISSIONING,RUSTLINGS ROAD MEDICAL CENTRE,40190252,207,S11 7AB
Department of Health,NHS Sheffield CCG,31/03/2022,C&M-GP PRACTICE REVENUE - PCTF,LOCAL ENHANCED SERVICES,OWLTHORPE MEDICAL CENTRE,40190253,3000,S20 6PD
Department of Health,NHS Sheffield CCG,31/03/2022,C&M-PMS Contract Value,PRC DELEGATED CO-COMMISSIONING,OWLTHORPE MEDICAL CENTRE,40190253,34600.51,S20 6PD
Department of Health,NHS Sheffield CCG,31/03/2022,C&M-PMS DES Minor Surgery,PRC DELEGATED CO-COMMISSIONING,OWLTHORPE MEDICAL CENTRE,40190253,2365,S20 6PD
Department of Health,NHS Sheffield CCG,31/03/2022,C&M-PMS LONG COVID ES,PRC DELEGATED CO-COMMISSIONING,OWLTHORPE MEDICAL CENTRE,40190253,178.78,S20 6PD
Department of Health,NHS Sheffield CCG,31/03/2022,C&M-PMS Out of Hours Opt Outs,PRC DELEGATED CO-COMMISSIONING,OWLTHORPE MEDICAL CENTRE,40190253,20.88,S20 6PD
Department of Health,NHS Sheffield CCG,31/03/2022,C&M-PMS PCN DES Participation,PRC DELEGATED CO-COMMISSIONING,OWLTHORPE MEDICAL CENTRE,40190253,625.13,S20 6PD
Department of Health,NHS Sheffield CCG,31/03/2022,C&M-PMS PCO Locum Adop/Pat/Mat,PRC DELEGATED CO-COMMISSIONING,OWLTHORPE MEDICAL CENTRE,40190253,5846.14,S20 6PD
Department of Health,NHS Sheffield CCG,31/03/2022,C&M-PMS Prem Actual Rent,PRC DELEGATED CO-COMMISSIONING,OWLTHORPE MEDICAL CENTRE,40190253,7539.58,S20 6PD
Department of Health,NHS Sheffield CCG,31/03/2022,C&M-PMS Prem Water Rates,PRC DELEGATED CO-COMMISSIONING,OWLTHORPE MEDICAL CENTRE,40190253,126.94,S20 6PD
Department of Health,NHS Sheffield CCG,31/03/2022,C&M-PMS QOF Aspiration,PRC DELEGATED CO-COMMISSIONING,OWLTHORPE MEDICAL CENTRE,40190253,4236.51,S20 6PD
Department of Health,NHS Sheffield CCG,31/03/2022,C&M-PMS WEIGHT MANAGEMENT SERVICE,PRC DELEGATED CO-COMMISSIONING,OWLTHORPE MEDICAL CENTRE,40190253,23,S20 6PD
Department of Health,NHS Sheffield CCG,31/03/2022,C&M-GP PRACTICE REVENUE - PCTF,LOCAL ENHANCED SERVICES,FORGE HEALTH GROUP,40190254,12000,S3 9DL
Department of Health,NHS Sheffield CCG,31/03/2022,C&M-PCN-PMS DES Leadership Payment,PRC DELEGATED CO-COMMISSIONING,FORGE HEALTH GROUP,40190254,7538.67,S3 9DL
Department of Health,NHS Sheffield CCG,31/03/2022,C&M-PMS Contract Value,PRC DELEGATED CO-COMMISSIONING,FORGE HEALTH GROUP,40190254,129559.34,S3 9DL
Department of Health,NHS Sheffield CCG,31/03/2022,C&M-PMS DES Extended Hours Access,PRC DELEGATED CO-COMMISSIONING,FORGE HEALTH GROUP,40190254,6820.92,S3 9DL
Department of Health,NHS Sheffield CCG,31/03/2022,C&M-PMS DES Learn Dsblty Hlth Chk,PRC DELEGATED CO-COMMISSIONING,FORGE HEALTH GROUP,40190254,840,S3 9DL
Department of Health,NHS Sheffield CCG,31/03/2022,C&M-PMS DES Minor Surgery,PRC DELEGATED CO-COMMISSIONING,FORGE HEALTH GROUP,40190254,3870,S3 9DL
Department of Health,NHS Sheffield CCG,31/03/2022,C&M-PMS LONG COVID ES,PRC DELEGATED CO-COMMISSIONING,FORGE HEALTH GROUP,40190254,608.56,S3 9DL
Department of Health,NHS Sheffield CCG,31/03/2022,C&M-PMS PCN DES Clinical Director,PRC DELEGATED CO-COMMISSIONING,FORGE HEALTH GROUP,40190254,3486.25,S3 9DL
Department of Health,NHS Sheffield CCG,31/03/2022,C&M-PMS PCN DES PCN support,LOCAL ENHANCED SERVICES,FORGE HEALTH GROUP,40190254,7105.13,S3 9DL
Department of Health,NHS Sheffield CCG,31/03/2022,C&M-PMS PCN DES Participation,PRC DELEGATED CO-COMMISSIONING,FORGE HEALTH GROUP,40190254,2294.59,S3 9DL
Department of Health,NHS Sheffield CCG,31/03/2022,C&M-PMS Prem Healthcentre Rent,PRC DELEGATED CO-COMMISSIONING,FORGE HEALTH GROUP,40190254,35542.67,S3 9DL
Department of Health,NHS Sheffield CCG,31/03/2022,C&M-PMS Prem Notional Rent,PRC DELEGATED CO-COMMISSIONING,FORGE HEALTH GROUP,40190254,9891.67,S3 9DL
Department of Health,NHS Sheffield CCG,31/03/2022,C&M-PMS Prem Rates,PRC DELEGATED CO-COMMISSIONING,FORGE HEALTH GROUP,40190254,17215.5,S3 9DL
Department of Health,NHS Sheffield CCG,31/03/2022,C&M-PMS QOF Aspiration,PRC DELEGATED CO-COMMISSIONING,FORGE HEALTH GROUP,40190254,12932.51,S3 9DL
Department of Health,NHS Sheffield CCG,31/03/2022,C&M-GP PRACTICE REVENUE - PCTF,LOCAL ENHANCED SERVICES,PAGE HALL MEDICAL CENTRE,40190255,3000,S4 8GB
Department of Health,NHS Sheffield CCG,31/03/2022,C&M-PMS Contract Value,PRC DELEGATED CO-COMMISSIONING,PAGE HALL MEDICAL CENTRE,40190255,62215.19,S4 8GB
Department of Health,NHS Sheffield CCG,31/03/2022,C&M-PMS DES Learn Dsblty Hlth Chk,PRC DELEGATED CO-COMMISSIONING,PAGE HALL MEDICAL CENTRE,40190255,840,S4 8GB
Department of Health,NHS Sheffield CCG,31/03/2022,C&M-PMS DES Minor Surgery,PRC DELEGATED CO-COMMISSIONING,PAGE HALL MEDICAL CENTRE,40190255,240,S4 8GB
Department of Health,NHS Sheffield CCG,31/03/2022,C&M-PMS LONG COVID ES,PRC DELEGATED CO-COMMISSIONING,PAGE HALL MEDICAL CENTRE,40190255,328.42,S4 8GB
Department of Health,NHS Sheffield CCG,31/03/2022,C&M-PMS Out of Hours Opt Outs,PRC DELEGATED CO-COMMISSIONING,PAGE HALL MEDICAL CENTRE,40190255,18.53,S4 8GB
Department of Health,NHS Sheffield CCG,31/03/2022,C&M-PMS PCN DES Participation,PRC DELEGATED CO-COMMISSIONING,PAGE HALL MEDICAL CENTRE,40190255,1099.51,S4 8GB
Department of Health,NHS Sheffield CCG,31/03/2022,C&M-PMS Prem Notional Rent,PRC DELEGATED CO-COMMISSIONING,PAGE HALL MEDICAL CENTRE,40190255,4833.33,S4 8GB
Department of Health,NHS Sheffield CCG,31/03/2022,C&M-PMS QOF Aspiration,PRC DELEGATED CO-COMMISSIONING,PAGE HALL MEDICAL CENTRE,40190255,5333.21,S4 8GB
Department of Health,NHS Sheffield CCG,31/03/2022,C&M-PMS WAF Security Funding,PRC DELEGATED CO-COMMISSIONING,PAGE HALL MEDICAL CENTRE,40190255,2500,S4 8GB
Department of Health,NHS Sheffield CCG,31/03/2022,C&M-PMS WEIGHT MANAGEMENT SERVICE,PRC DELEGATED CO-COMMISSIONING,PAGE HALL MEDICAL CENTRE,40190255,11.5,S4 8GB
Department of Health,NHS Sheffield CCG,31/03/2022,C&M-GP PRACTICE REVENUE - PCTF,LOCAL ENHANCED SERVICES,SHEFFIELD MEDICAL CENTRE,40190256,3000,S3 9LB
Department of Health,NHS Sheffield CCG,31/03/2022,C&M-PMS Contract Value,PRC DELEGATED CO-COMMISSIONING,SHEFFIELD MEDICAL CENTRE,40190256,18702.49,S3 9LB
Department of Health,NHS Sheffield CCG,31/03/2022,C&M-PMS DES Learn Dsblty Hlth Chk,PRC DELEGATED CO-COMMISSIONING,SHEFFIELD MEDICAL CENTRE,40190256,280,S3 9LB
Department of Health,NHS Sheffield CCG,31/03/2022,C&M-PMS DES Minor Surgery,PRC DELEGATED CO-COMMISSIONING,SHEFFIELD MEDICAL CENTRE,40190256,320,S3 9LB
Department of Health,NHS Sheffield CCG,31/03/2022,C&M-PMS LONG COVID ES,PRC DELEGATED CO-COMMISSIONING,SHEFFIELD MEDICAL CENTRE,40190256,82.24,S3 9LB
Department of Health,NHS Sheffield CCG,31/03/2022,C&M-PMS PCN DES Participation,PRC DELEGATED CO-COMMISSIONING,SHEFFIELD MEDICAL CENTRE,40190256,303.2,S3 9LB
Department of Health,NHS Sheffield CCG,31/03/2022,C&M-PMS Prem Notional Rent,PRC DELEGATED CO-COMMISSIONING,SHEFFIELD MEDICAL CENTRE,40190256,2183.33,S3 9LB
Department of Health,NHS Sheffield CCG,31/03/2022,C&M-PMS Prem Water Rates,PRC DELEGATED CO-COMMISSIONING,SHEFFIELD MEDICAL CENTRE,40190256,54.19,S3 9LB
Department of Health,NHS Sheffield CCG,31/03/2022,C&M-PMS QOF Aspiration,PRC DELEGATED CO-COMMISSIONING,SHEFFIELD MEDICAL CENTRE,40190256,1659.22,S3 9LB
Department of Health,NHS Sheffield CCG,31/03/2022,C&M-PMS WEIGHT MANAGEMENT SERVICE,PRC DELEGATED CO-COMMISSIONING,SHEFFIELD MEDICAL CENTRE,40190256,23,S3 9LB
Department of Health,NHS Sheffield CCG,31/03/2022,C&M-GP PRACTICE REVENUE - PCTF,LOCAL ENHANCED SERVICES,BURNGREAVE SURGERY,40190257,12000,S3 9DA
Department of Health,NHS Sheffield CCG,31/03/2022,C&M-PMS Contract Value,PRC DELEGATED CO-COMMISSIONING,BURNGREAVE SURGERY,40190257,61363.1,S3 9DA
Department of Health,NHS Sheffield CCG,31/03/2022,C&M-PMS DES Learn Dsblty Hlth Chk,PRC DELEGATED CO-COMMISSIONING,BURNGREAVE SURGERY,40190257,840,S3 9DA
Department of Health,NHS Sheffield CCG,31/03/2022,C&M-PMS DES Minor Surgery,PRC DELEGATED CO-COMMISSIONING,BURNGREAVE SURGERY,40190257,2350,S3 9DA
Department of Health,NHS Sheffield CCG,31/03/2022,C&M-PMS LONG COVID ES,PRC DELEGATED CO-COMMISSIONING,BURNGREAVE SURGERY,40190257,284.06,S3 9DA
Department of Health,NHS Sheffield CCG,31/03/2022,C&M-PMS Out of Hours Opt Outs,PRC DELEGATED CO-COMMISSIONING,BURNGREAVE SURGERY,40190257,23.69,S3 9DA
Department of Health,NHS Sheffield CCG,31/03/2022,C&M-PMS PCN DES Participation,PRC DELEGATED CO-COMMISSIONING,BURNGREAVE SURGERY,40190257,1072.06,S3 9DA
Department of Health,NHS Sheffield CCG,31/03/2022,C&M-PMS Prem Notional Rent,PRC DELEGATED CO-COMMISSIONING,BURNGREAVE SURGERY,40190257,6622.92,S3 9DA
Department of Health,NHS Sheffield CCG,31/03/2022,C&M-PMS QOF Aspiration,PRC DELEGATED CO-COMMISSIONING,BURNGREAVE SURGERY,40190257,5671.9,S3 9DA
Department of Health,NHS Sheffield CCG,31/03/2022,C&M-GP PRACTICE REVENUE - PCTF,LOCAL ENHANCED SERVICES,BIRLEY HEALTH CENTRE,40190258,3000,S12 3BP
Department of Health,NHS Sheffield CCG,31/03/2022,C&M-PMS Contract Value,PRC DELEGATED CO-COMMISSIONING,BIRLEY HEALTH CENTRE,40190258,68420,S12 3BP
Department of Health,NHS Sheffield CCG,31/03/2022,C&M-PMS DES Minor Surgery,PRC DELEGATED CO-COMMISSIONING,BIRLEY HEALTH CENTRE,40190258,7885,S12 3BP
Department of Health,NHS Sheffield CCG,31/03/2022,C&M-PMS LONG COVID ES,PRC DELEGATED CO-COMMISSIONING,BIRLEY HEALTH CENTRE,40190258,353.32,S12 3BP
Department of Health,NHS Sheffield CCG,31/03/2022,C&M-PMS PCN DES Participation,PRC DELEGATED CO-COMMISSIONING,BIRLEY HEALTH CENTRE,40190258,1224.59,S12 3BP
Department of Health,NHS Sheffield CCG,31/03/2022,C&M-PMS Prem Notional Rent,PRC DELEGATED CO-COMMISSIONING,BIRLEY HEALTH CENTRE,40190258,7600.58,S12 3BP
Department of Health,NHS Sheffield CCG,31/03/2022,C&M-PMS QOF Aspiration,PRC DELEGATED CO-COMMISSIONING,BIRLEY HEALTH CENTRE,40190258,8434.07,S12 3BP
Department of Health,NHS Sheffield CCG,31/03/2022,C&M-GP PRACTICE REVENUE - PCTF,LOCAL ENHANCED SERVICES,SOTHALL MEDICAL CENTRE,40190259,3000,S20 1HQ
Department of Health,NHS Sheffield CCG,31/03/2022,C&M-PMS Contract Value,PRC DELEGATED CO-COMMISSIONING,SOTHALL MEDICAL CENTRE,40190259,75689.4,S20 1HQ
Department of Health,NHS Sheffield CCG,31/03/2022,C&M-PMS DES Learn Dsblty Hlth Chk,PRC DELEGATED CO-COMMISSIONING,SOTHALL MEDICAL CENTRE,40190259,280,S20 1HQ
Department of Health,NHS Sheffield CCG,31/03/2022,C&M-PMS DES Minor Surgery,PRC DELEGATED CO-COMMISSIONING,SOTHALL MEDICAL CENTRE,40190259,1275,S20 1HQ
Department of Health,NHS Sheffield CCG,31/03/2022,C&M-PMS LONG COVID ES,PRC DELEGATED CO-COMMISSIONING,SOTHALL MEDICAL CENTRE,40190259,416.01,S20 1HQ
Department of Health,NHS Sheffield CCG,31/03/2022,C&M-PMS Out of Hours Opt Outs,PRC DELEGATED CO-COMMISSIONING,SOTHALL MEDICAL CENTRE,40190259,58.44,S20 1HQ
Department of Health,NHS Sheffield CCG,31/03/2022,C&M-PMS PCN DES Participation,PRC DELEGATED CO-COMMISSIONING,SOTHALL MEDICAL CENTRE,40190259,1370.05,S20 1HQ
Department of Health,NHS Sheffield CCG,31/03/2022,C&M-PMS Prem Notional Rent,PRC DELEGATED CO-COMMISSIONING,SOTHALL MEDICAL CENTRE,40190259,5237.5,S20 1HQ
Department of Health,NHS Sheffield CCG,31/03/2022,C&M-PMS QOF Aspiration,PRC DELEGATED CO-COMMISSIONING,SOTHALL MEDICAL CENTRE,40190259,9478.91,S20 1HQ
Department of Health,NHS Sheffield CCG,31/03/2022,C&M-PMS WEIGHT MANAGEMENT SERVICE,PRC DELEGATED CO-COMMISSIONING,SOTHALL MEDICAL CENTRE,40190259,172.5,S20 1HQ
Department of Health,NHS Sheffield CCG,31/03/2022,C&M-GP PRACTICE REVENUE - PCTF,LOCAL ENHANCED SERVICES,SOUTHEY GREEN MEDICAL CENTRE,40190260,3000,S5 7QB
Department of Health,NHS Sheffield CCG,31/03/2022,C&M-PMS Contract Value,PRC DELEGATED CO-COMMISSIONING,SOUTHEY GREEN MEDICAL CENTRE,40190260,26156.38,S5 7QB
Department of Health,NHS Sheffield CCG,31/03/2022,C&M-PMS LONG COVID ES,PRC DELEGATED CO-COMMISSIONING,SOUTHEY GREEN MEDICAL CENTRE,40190260,119.17,S5 7QB
Department of Health,NHS Sheffield CCG,31/03/2022,C&M-PMS Out of Hours Opt Outs,PRC DELEGATED CO-COMMISSIONING,SOUTHEY GREEN MEDICAL CENTRE,40190260,42.12,S5 7QB
Department of Health,NHS Sheffield CCG,31/03/2022,C&M-PMS PCN DES Participation,PRC DELEGATED CO-COMMISSIONING,SOUTHEY GREEN MEDICAL CENTRE,40190260,470.48,S5 7QB
Department of Health,NHS Sheffield CCG,31/03/2022,C&M-PMS Prem Notional Rent,PRC DELEGATED CO-COMMISSIONING,SOUTHEY GREEN MEDICAL CENTRE,40190260,3362.5,S5 7QB
Department of Health,NHS Sheffield CCG,31/03/2022,C&M-PMS QOF Aspiration,PRC DELEGATED CO-COMMISSIONING,SOUTHEY GREEN MEDICAL CENTRE,40190260,2952.99,S5 7QB
Department of Health,NHS Sheffield CCG,31/03/2022,C&M-PMS Contract Value,PRC DELEGATED CO-COMMISSIONING,GREEN CROSS GROUP PRACTICE,40190261,65408.63,S5 0AE
Department of Health,NHS Sheffield CCG,31/03/2022,C&M-PMS DES Learn Dsblty Hlth Chk,PRC DELEGATED CO-COMMISSIONING,GREEN CROSS GROUP PRACTICE,40190261,280,S5 0AE
Department of Health,NHS Sheffield CCG,31/03/2022,C&M-PMS DES Minor Surgery,PRC DELEGATED CO-COMMISSIONING,GREEN CROSS GROUP PRACTICE,40190261,3320,S5 0AE
Department of Health,NHS Sheffield CCG,31/03/2022,C&M-PMS LONG COVID ES,PRC DELEGATED CO-COMMISSIONING,GREEN CROSS GROUP PRACTICE,40190261,322.32,S5 0AE
Department of Health,NHS Sheffield CCG,31/03/2022,C&M-PMS PCN DES Participation,PRC DELEGATED CO-COMMISSIONING,GREEN CROSS GROUP PRACTICE,40190261,798.5,S5 0AE
Department of Health,NHS Sheffield CCG,31/03/2022,C&M-PMS Prem Notional Rent,PRC DELEGATED CO-COMMISSIONING,GREEN CROSS GROUP PRACTICE,40190261,5558.33,S5 0AE
Department of Health,NHS Sheffield CCG,31/03/2022,C&M-PMS QOF Aspiration,PRC DELEGATED CO-COMMISSIONING,GREEN CROSS GROUP PRACTICE,40190261,6643.07,S5 0AE
Department of Health,NHS Sheffield CCG,31/03/2022,C&M-PMS WAF Security Funding,PRC DELEGATED CO-COMMISSIONING,GREEN CROSS GROUP PRACTICE,40190261,3000,S5 0AE
Department of Health,NHS Sheffield CCG,31/03/2022,C&M-PMS WEIGHT MANAGEMENT SERVICE,PRC DELEGATED CO-COMMISSIONING,GREEN CROSS GROUP PRACTICE,40190261,23,S5 0AE
Department of Health,NHS Sheffield CCG,31/03/2022,C&M-GP PRACTICE REVENUE - PCTF,LOCAL ENHANCED SERVICES,EAST BANK MEDICAL CENTRE,40190262,3000,S2 2AG
Department of Health,NHS Sheffield CCG,31/03/2022,C&M-PMS Contract Value,PRC DELEGATED CO-COMMISSIONING,EAST BANK MEDICAL CENTRE,40190262,53846.55,S2 2AG
Department of Health,NHS Sheffield CCG,31/03/2022,C&M-PMS DES Learn Dsblty Hlth Chk,PRC DELEGATED CO-COMMISSIONING,EAST BANK MEDICAL CENTRE,40190262,280,S2 2AG
Department of Health,NHS Sheffield CCG,31/03/2022,C&M-PMS DES Minor Surgery,PRC DELEGATED CO-COMMISSIONING,EAST BANK MEDICAL CENTRE,40190262,1330,S2 2AG
Department of Health,NHS Sheffield CCG,31/03/2022,C&M-PMS LONG COVID ES,PRC DELEGATED CO-COMMISSIONING,EAST BANK MEDICAL CENTRE,40190262,252.65,S2 2AG
Department of Health,NHS Sheffield CCG,31/03/2022,C&M-PMS PCN DES Participation,PRC DELEGATED CO-COMMISSIONING,EAST BANK MEDICAL CENTRE,40190262,945.64,S2 2AG
Department of Health,NHS Sheffield CCG,31/03/2022,C&M-PMS Prem Notional Rent,PRC DELEGATED CO-COMMISSIONING,EAST BANK MEDICAL CENTRE,40190262,10583.33,S2 2AG
Department of Health,NHS Sheffield CCG,31/03/2022,C&M-PMS QOF Aspiration,PRC DELEGATED CO-COMMISSIONING,EAST BANK MEDICAL CENTRE,40190262,5744.23,S2 2AG
Department of Health,NHS Sheffield CCG,31/03/2022,C&M-PMS WEIGHT MANAGEMENT SERVICE,PRC DELEGATED CO-COMMISSIONING,EAST BANK MEDICAL CENTRE,40190262,69,S2 2AG
Department of Health,NHS Sheffield CCG,31/03/2022,C&M-PMS Contract Value,PRC DELEGATED CO-COMMISSIONING,FALKLAND HOUSE,40190263,28137.51,S11 7PL
Department of Health,NHS Sheffield CCG,31/03/2022,C&M-PMS DES Minor Surgery,PRC DELEGATED CO-COMMISSIONING,FALKLAND HOUSE,40190263,1360,S11 7PL
Department of Health,NHS Sheffield CCG,31/03/2022,C&M-PMS LONG COVID ES,PRC DELEGATED CO-COMMISSIONING,FALKLAND HOUSE,40190263,164.77,S11 7PL
Department of Health,NHS Sheffield CCG,31/03/2022,C&M-PMS Out of Hours Opt Outs,PRC DELEGATED CO-COMMISSIONING,FALKLAND HOUSE,40190263,0.83,S11 7PL
Department of Health,NHS Sheffield CCG,31/03/2022,C&M-PMS PCN DES Participation,PRC DELEGATED CO-COMMISSIONING,FALKLAND HOUSE,40190263,501.49,S11 7PL
Department of Health,NHS Sheffield CCG,31/03/2022,C&M-PMS Prem Notional Rent,PRC DELEGATED CO-COMMISSIONING,FALKLAND HOUSE,40190263,1904.17,S11 7PL
Department of Health,NHS Sheffield CCG,31/03/2022,C&M-PMS QOF Aspiration,PRC DELEGATED CO-COMMISSIONING,FALKLAND HOUSE,40190263,3362.7,S11 7PL
Department of Health,NHS Sheffield CCG,31/03/2022,C&M-PMS WAF Security Funding,PRC DELEGATED CO-COMMISSIONING,FALKLAND HOUSE,40190263,3574.8,S11 7PL
Department of Health,NHS Sheffield CCG,31/03/2022,C&M-GP PRACTICE REVENUE - PCTF,LOCAL ENHANCED SERVICES,DOVERCOURT SURGERY,40190264,3000,S2 5FX
Department of Health,NHS Sheffield CCG,31/03/2022,C&M-PMS Contract Value,PRC DELEGATED CO-COMMISSIONING,DOVERCOURT SURGERY,40190264,80923.47,S2 5FX
Department of Health,NHS Sheffield CCG,31/03/2022,C&M-PMS DES Learn Dsblty Hlth Chk,PRC DELEGATED CO-COMMISSIONING,DOVERCOURT SURGERY,40190264,1260,S2 5FX
Department of Health,NHS Sheffield CCG,31/03/2022,C&M-PMS DES Minor Surgery,PRC DELEGATED CO-COMMISSIONING,DOVERCOURT SURGERY,40190264,4160,S2 5FX
Department of Health,NHS Sheffield CCG,31/03/2022,C&M-PMS LONG COVID ES,PRC DELEGATED CO-COMMISSIONING,DOVERCOURT SURGERY,40190264,362.38,S2 5FX
Department of Health,NHS Sheffield CCG,31/03/2022,C&M-PMS Out of Hours Opt Outs,PRC DELEGATED CO-COMMISSIONING,DOVERCOURT SURGERY,40190264,54.06,S2 5FX
Department of Health,NHS Sheffield CCG,31/03/2022,C&M-PMS PCN DES Participation,PRC DELEGATED CO-COMMISSIONING,DOVERCOURT SURGERY,40190264,1436.25,S2 5FX
Department of Health,NHS Sheffield CCG,31/03/2022,C&M-PMS PCO Locum Sickness,PRC DELEGATED CO-COMMISSIONING,DOVERCOURT SURGERY,40190264,7006.08,S2 5FX
Department of Health,NHS Sheffield CCG,31/03/2022,C&M-PMS Prem Actual Rent,PRC DELEGATED CO-COMMISSIONING,DOVERCOURT SURGERY,40190264,14108.33,S2 5FX
Department of Health,NHS Sheffield CCG,31/03/2022,C&M-PMS Prem Notional Rent,PRC DELEGATED CO-COMMISSIONING,DOVERCOURT SURGERY,40190264,2158.33,S2 5FX
Department of Health,NHS Sheffield CCG,31/03/2022,C&M-PMS QOF Aspiration,PRC DELEGATED CO-COMMISSIONING,DOVERCOURT SURGERY,40190264,8804.83,S2 5FX
Department of Health,NHS Sheffield CCG,31/03/2022,C&M-PMS WAF Security Funding,PRC DELEGATED CO-COMMISSIONING,DOVERCOURT SURGERY,40190264,5736,S2 5FX
Department of Health,NHS Sheffield CCG,31/03/2022,C&M-GP PRACTICE REVENUE - PCTF,LOCAL ENHANCED SERVICES,FIRTH PARK SURGERY,40190265,3000,S5 6HH
Department of Health,NHS Sheffield CCG,31/03/2022,C&M-PMS Contract Value,PRC DELEGATED CO-COMMISSIONING,FIRTH PARK SURGERY,40190265,80907.98,S5 6HH
Department of Health,NHS Sheffield CCG,31/03/2022,C&M-PMS DES Learn Dsblty Hlth Chk,PRC DELEGATED CO-COMMISSIONING,FIRTH PARK SURGERY,40190265,1400,S5 6HH
Department of Health,NHS Sheffield CCG,31/03/2022,C&M-PMS DES Minor Surgery,PRC DELEGATED CO-COMMISSIONING,FIRTH PARK SURGERY,40190265,2190,S5 6HH
Department of Health,NHS Sheffield CCG,31/03/2022,C&M-PMS LONG COVID ES,PRC DELEGATED CO-COMMISSIONING,FIRTH PARK SURGERY,40190265,413.67,S5 6HH
Department of Health,NHS Sheffield CCG,31/03/2022,C&M-PMS Out of Hours Opt Outs,PRC DELEGATED CO-COMMISSIONING,FIRTH PARK SURGERY,40190265,80.47,S5 6HH
Department of Health,NHS Sheffield CCG,31/03/2022,C&M-PMS PCN DES Participation,PRC DELEGATED CO-COMMISSIONING,FIRTH PARK SURGERY,40190265,1461.7,S5 6HH
Department of Health,NHS Sheffield CCG,31/03/2022,C&M-PMS Prem Notional Rent,PRC DELEGATED CO-COMMISSIONING,FIRTH PARK SURGERY,40190265,4666.67,S5 6HH
Department of Health,NHS Sheffield CCG,31/03/2022,C&M-PMS Prem Rates,PRC DELEGATED CO-COMMISSIONING,FIRTH PARK SURGERY,40190265,1508,S5 6HH
Department of Health,NHS Sheffield CCG,31/03/2022,C&M-PMS QOF Aspiration,PRC DELEGATED CO-COMMISSIONING,FIRTH PARK SURGERY,40190265,8220.05,S5 6HH
Department of Health,NHS Sheffield CCG,31/03/2022,C&M-PMS WAF Security Funding,PRC DELEGATED CO-COMMISSIONING,FIRTH PARK SURGERY,40190265,975.6,S5 6HH
Department of Health,NHS Sheffield CCG,31/03/2022,C&M-GP PRACTICE REVENUE - PCTF,LOCAL ENHANCED SERVICES,UPWELL STREET SURGERY,40190266,12000,S4 8AN
Department of Health,NHS Sheffield CCG,31/03/2022,C&M-PMS Contract Value,PRC DELEGATED CO-COMMISSIONING,UPWELL STREET SURGERY,40190266,38728.2,S4 8AN
Department of Health,NHS Sheffield CCG,31/03/2022,C&M-PMS DES Minor Surgery,PRC DELEGATED CO-COMMISSIONING,UPWELL STREET SURGERY,40190266,920,S4 8AN
Department of Health,NHS Sheffield CCG,31/03/2022,C&M-PMS LONG COVID ES,PRC DELEGATED CO-COMMISSIONING,UPWELL STREET SURGERY,40190266,191.23,S4 8AN
Department of Health,NHS Sheffield CCG,31/03/2022,C&M-PMS Out of Hours Opt Outs,PRC DELEGATED CO-COMMISSIONING,UPWELL STREET SURGERY,40190266,6.1,S4 8AN
Department of Health,NHS Sheffield CCG,31/03/2022,C&M-PMS PCN DES Participation,PRC DELEGATED CO-COMMISSIONING,UPWELL STREET SURGERY,40190266,680.46,S4 8AN
Department of Health,NHS Sheffield CCG,31/03/2022,C&M-PMS Prem Notional Rent,PRC DELEGATED CO-COMMISSIONING,UPWELL STREET SURGERY,40190266,8552.5,S4 8AN
Department of Health,NHS Sheffield CCG,31/03/2022,C&M-PMS Prem Rates,PRC DELEGATED CO-COMMISSIONING,UPWELL STREET SURGERY,40190266,998,S4 8AN
Department of Health,NHS Sheffield CCG,31/03/2022,C&M-PMS Prem Water Rates,PRC DELEGATED CO-COMMISSIONING,UPWELL STREET SURGERY,40190266,124.55,S4 8AN
Department of Health,NHS Sheffield CCG,31/03/2022,C&M-PMS QOF Aspiration,PRC DELEGATED CO-COMMISSIONING,UPWELL STREET SURGERY,40190266,4098.59,S4 8AN
Department of Health,NHS Sheffield CCG,31/03/2022,Hcare Srv Rec Fdtn Trust-Contract Baseline,ACUTE COMMISSIONING,BARNSLEY HOSPITAL NHS FOUNDATION TRUST,40193047,113425.15,S75 2EP
Department of Health,NHS Sheffield CCG,31/03/2022,Hcare Srv Rec Fdtn Trust-Contract Baseline,ACUTE COMMISSIONING,CHESTERFIELD ROYAL HOSPITAL NHS FOUNDATION TRUST,40193050,375326.75,S44 5BL
Department of Health,NHS Sheffield CCG,31/03/2022,Hcare Srv Rec Fdtn Trust-Contract Baseline,ACUTE COMMISSIONING,DONCASTER AND BASSETLAW HOSPITALS NHS FOUNDATION TRUST,40193051,47889.62,WF3 1WE
Department of Health,NHS Sheffield CCG,31/03/2022,Hcare Srv Rec Fdtn Trust-Contract Baseline,ACUTE CHILDRENS SERVICES,SHEFFIELD CHILDRENS NHS FOUNDATION TRUST,40193054,3774111,S10 2TH
Department of Health,NHS Sheffield CCG,31/03/2022,Hcare Srv Rec Fdtn Trust-Contract Baseline,ACUTE CHILDRENS SERVICES,SHEFFIELD CHILDRENS NHS FOUNDATION TRUST,40193055,1583732.2,S10 2TH
Department of Health,NHS Sheffield CCG,31/03/2022,Hcare Srv Rec Fdtn Trust-Contract Baseline,MENTAL HEALTH CONTRACTS,SHEFFIELD HEALTH & SOCIAL CARE NHS FOUNDATION TRUST,40193056,8262271,S10 3TH
Department of Health,NHS Sheffield CCG,31/03/2022,Hcare Srv Rec Fdtn Trust-Contract Baseline,MENTAL HEALTH CONTRACTS,SHEFFIELD HEALTH & SOCIAL CARE NHS FOUNDATION TRUST,40193057,852717.15,S10 3TH
Department of Health,NHS Sheffield CCG,31/03/2022,Hcare Srv Rec Fdtn Trust-Contract Baseline,ACUTE COMMISSIONING,SHEFFIELD TEACHING HOSPITALS NHS FOUNDATION TRUST,40193058,38214347.04,S5 7AU
Department of Health,NHS Sheffield CCG,31/03/2022,Hcare Srv Rec Fdtn Trust-Contract Baseline,ACUTE COMMISSIONING,SHEFFIELD TEACHING HOSPITALS NHS FOUNDATION TRUST,40193059,4373782.32,S5 7AU
Department of Health,NHS Sheffield CCG,31/03/2022,Hcare Srv Rec NHS Trust-Contract Baseline,ACUTE COMMISSIONING,LEEDS TEACHING HOSPITALS NHS TRUST,40193060,48657.77,LS9 7TF
Department of Health,NHS Sheffield CCG,31/03/2022,Hcare Srv Rec Fdtn Trust-Contract Baseline,ACUTE COMMISSIONING,ROTHERHAM NHS FOUNDATION TRUST,40193061,537486.34,S60 2UD
Department of Health,NHS Sheffield CCG,31/03/2022,Clinical&Medical-Serv Recd-F Trsts,BEREAVEMENT SERVICE,ROTHERHAM NHS FOUNDATION TRUST,40193063,59467.46,S60 2UD
Department of Health,NHS Sheffield CCG,31/03/2022,Hcare Srv Rec NHS Trust-Contract Baseline,MENTAL HEALTH CONTRACTS,YORKSHIRE AMBULANCE SERVICE NHS TRUST,40193065,25795.8,WF2 0XQ
Department of Health,NHS Sheffield CCG,31/03/2022,Hcare Srv Rec NHS Trust-Contract Baseline,AMBULANCE SERVICES,YORKSHIRE AMBULANCE SERVICE NHS TRUST,40193066,1954214.42,WF2 0XQ
Department of Health,NHS Sheffield CCG,31/03/2022,Hcare Srv Rec NHS Trust-Contract Baseline,PATIENT TRANSPORT,YORKSHIRE AMBULANCE SERVICE NHS TRUST,40193068,307088.05,WF2 0XQ
Department of Health,NHS Sheffield CCG,31/03/2022,Hcare Srv Rec NHS Trust-Contract Baseline,NHS 111,YORKSHIRE AMBULANCE SERVICE NHS TRUST,40193071,150839.29,WF2 0XQ
Department of Health,NHS Sheffield CCG,31/03/2022,Clinical&Medical-Serv Recd-F Trsts,BEREAVEMENT SERVICE,HUMBER TEACHING NHS FOUNDATION TRUST,40193072,51511.01,WF3 1WE
Department of Health,NHS Sheffield CCG,31/03/2022,Clinical&Medical-Serv Recd-F Trsts,BEREAVEMENT SERVICE,SHEFFIELD HEALTH & SOCIAL CARE NHS FOUNDATION TRUST,40195963,-51861.66,S10 3TH
Department of Health,NHS Sheffield CCG,31/03/2022,Computer Software/License,MEDICINES MANAGEMENT - CLINICAL,PRESCQIPP CIC,40195983,39252,LS1 2TW
Department of Health,NHS Sheffield CCG,31/03/2022,Clinical&Medical-Serv Recd-F Trsts,BEREAVEMENT SERVICE,SHEFFIELD HEALTH & SOCIAL CARE NHS FOUNDATION TRUST,40222029,51861.66,S10 3TH
Department of Health,NHS Sheffield CCG,31/03/2022,Hcare Srv Rec Fdtn Trust-Non Contract,ACUTE COMMISSIONING,SHEFFIELD TEACHING HOSPITALS NHS FOUNDATION TRUST,40222046,63308,S5 7AU
Department of Health,NHS Sheffield CCG,31/03/2022,Services From Local Authorities,MENTAL HEALTH SERVICES - COLLABORATIVE COMMISSIONING,SHEFFIELD CITY COUNCIL,40222120,25641.8,S1 2HH
Department of Health,NHS Sheffield CCG,31/03/2022,Cont Care-Physical Disab (65+),CHC ADULT FULLY FUNDED,BC SHEFFIELD LTD,40222128,42784.37,S9 2TJ
Department of Health,NHS Sheffield CCG,31/03/2022,Clinical&Medical-Serv Recd-F Trsts,CLINICAL LEADS,SHEFFIELD TEACHING HOSPITALS NHS FOUNDATION TRUST,40222144,80752,S5 7AU
Department of Health,NHS Sheffield CCG,31/03/2022,Cont Care-Learning Disab(<65),CHC ADULT FULLY FUNDED,BESPOKE CARE AND SUPPORT LTD,40222185,31787.84,S73 0HQ
Department of Health,NHS Sheffield CCG,31/03/2022,Cont Care-Physical Disab (<65),CHC ADULT FULLY FUNDED,JUVENTA 4 CARE LTD,40222237,28919.88,S2 1AS
Department of Health,NHS Sheffield CCG,31/03/2022,Clinical&Medical-Independent Sector,ACUTE COMMISSIONING,BMI HEALTHCARE LTD,40222249,51688.33,SK3 0XN
Department of Health,NHS Sheffield CCG,31/03/2022,Cont Care-Learning Disab(<65),CHC ADULT FULLY FUNDED,RUSKIN MILL TRUST LTD,40222294,27884.38,GL6 0LA
Department of Health,NHS Sheffield CCG,31/03/2022,Participation Fees,BEREAVEMENT SERVICE,SHEFFIELD MIND,40222332,92000,S11 8AL
Department of Health,NHS Sheffield CCG,31/03/2022,Clinical&Medical-Serv Recd-F Trsts,BEREAVEMENT SERVICE,SHEFFIELD TEACHING HOSPITALS NHS FOUNDATION TRUST,40223456,80378,S5 7AU
Department of Health,NHS Sheffield CCG,31/03/2022,Clinical&Medical-Serv Recd-F Trsts,BEREAVEMENT SERVICE,SHEFFIELD TEACHING HOSPITALS NHS FOUNDATION TRUST,40223473,400000,S5 7AU
Department of Health,NHS Sheffield CCG,31/03/2022,Other Gen Supplies & Srv,BEREAVEMENT SERVICE,SOUTH YORKSHIRE HOUSING ASSOCIATION LTD,40223478,52682,S1 4EB
Department of Health,NHS Sheffield CCG,31/03/2022,Hcare Srv Rec Fdtn Trust-Non Contract,MENTAL HEALTH CONTRACTS,SHEFFIELD HEALTH & SOCIAL CARE NHS FOUNDATION TRUST,40223497,131150,S10 3TH
Department of Health,NHS Sheffield CCG,31/03/2022,Health Promotion,COMMISSIONING,SHEFFIELD CITY COUNCIL,40223500,55541,S1 2HH
Department of Health,NHS Sheffield CCG,31/03/2022,Clinical&Medical-Othe Public Sector,BEREAVEMENT SERVICE,SHEFFIELD CITY COUNCIL,40223517,60000,S1 2HH
Department of Health,NHS Sheffield CCG,31/03/2022,Other Gen Supplies & Srv,CLINICAL LEADS,C THE SIGNS LTD,40223540,324000,W1G 9QD
Department of Health,NHS Sheffield CCG,31/03/2022,Clinical&Medical-Independent Sector,MENTAL HEALTH SERVICES - OTHER,PRIMARY CARE SHEFFIELD LTD,40223608,96669.13,S12 3GH
Department of Health,NHS Sheffield CCG,31/03/2022,Clinical&Medical-Serv Recd-CCGs,BEREAVEMENT SERVICE,NHS ROTHERHAM CCG,40223661,189960,WF3 1WE
Department of Health,NHS Sheffield CCG,31/03/2022,C&M-APMS DES Immediate&1st Response,LOCAL ENHANCED SERVICES,PRIMARY CARE SHEFFIELD LTD,40223698,29412,S12 3GH
Department of Health,NHS Sheffield CCG,31/03/2022,Computer Hardware Purch,LOCAL ENHANCED SERVICES,DELL CORPORATION LTD,40240124,38500,RG12 1LF
Department of Health,NHS Sheffield CCG,31/03/2022,Computer Hardware Purch,LOCAL ENHANCED SERVICES,DELL CORPORATION LTD,40240124,7700,RG12 1LF
Department of Health,NHS Sheffield CCG,31/03/2022,Clinical&Medical-Voluntary Sector,MENTAL HEALTH SERVICES - OTHER,RETHINK MENTAL ILLNESS,40248165,40000,DY4 7UF
Department of Health,NHS Sheffield CCG,31/03/2022,Clinical&Medical-Independent Sector,MENTAL HEALTH SERVICES - OTHER,SOUTH YORKSHIRE HOUSING ASSOCIATION LTD,40248304,137734.56,S1 4EB
Department of Health,NHS Sheffield CCG,31/03/2022,C&M-GMS IT Comm Servs -GP Practices,PRIMARY CARE IT,ACCURX LTD,40248445,4436.93,N1 5AA
Department of Health,NHS Sheffield CCG,31/03/2022,C&M-GMS IT Comm Servs -GP Practices,PRIMARY CARE IT,ACCURX LTD,40248445,887.38,N1 5AA
Department of Health,NHS Sheffield CCG,31/03/2022,Computer Software/License,PRIMARY CARE IT,ACCURX LTD,40248445,30949.77,N1 5AA
Department of Health,NHS Sheffield CCG,31/03/2022,Clinical&Medical-Serv Recd-CCGs,BEREAVEMENT SERVICE,NHS ROTHERHAM CCG,40248724,115000,WF3 1WE
Department of Health,NHS Sheffield CCG,31/03/2022,Clinical&Medical-Voluntary Sector,HOSPICES,ST LUKES HOSPICE,40248734,48950,S11 9NE
Department of Health,NHS Sheffield CCG,31/03/2022,Clinical&Medical-Voluntary Sector,HOSPICES,ST LUKES HOSPICE,40248736,36050,S11 9NE
Department of Health,NHS Sheffield CCG,31/03/2022,Participation Fees,BEREAVEMENT SERVICE,NHS ROTHERHAM CCG,40248773,101000,WF3 1WE
Department of Health,NHS Sheffield CCG,31/03/2022,Participation Fees,BEREAVEMENT SERVICE,NHS BASSETLAW CCG,40248828,303526.69,WF3 1WE
Department of Health,NHS Sheffield CCG,31/03/2022,Other Gen Supplies & Srv,BEREAVEMENT SERVICE,SOUTH YORKSHIRE HOUSING ASSOCIATION LTD,40263944,64432,S1 4EB
Department of Health,NHS Sheffield CCG,31/03/2022,Clinical&Medical-Voluntary Sector,CHILD AND ADOLESCENT MENTAL HEALTH,SHEFFIELD FUTURES,40271236,25600.01,S1 4GE
Department of Health,NHS Sheffield CCG,31/03/2022,Clinical&Medical-Voluntary Sector,COLLABORATIVE COMMISSIONING,SOUTH YORKSHIRE HOUSING ASSOCIATION LTD,40281426,410728.71,S1 4EB
Department of Health,NHS Sheffield CCG,31/03/2022,Clinical&Medical-Serv Recd-F Trsts,BEREAVEMENT SERVICE,BARNSLEY HOSPITAL NHS FOUNDATION TRUST,40281539,137155.4,S75 2EP
Department of Health,NHS Sheffield CCG,31/03/2022,CLINICAL AND MEDICAL GOODS & SERVICES - HOSPITAL DISCHARGE PROGRAMME,COMMUNITY SERVICES,SHEFFIELD CITY COUNCIL,40281587,2077307,S1 2HH
Department of Health,NHS Sheffield CCG,31/03/2022,Soc Care-Support Prim Care,COMMUNITY SERVICES,SHEFFIELD CITY COUNCIL,40281587,900000,S1 2HH
Department of Health,NHS Sheffield CCG,31/03/2022,Services From Local Authorities,LEARNING DIFFICULTIES,SHEFFIELD CITY COUNCIL,40281590,32400,S1 2HH
Department of Health,NHS Sheffield CCG,31/03/2022,Clinical&Medical-Voluntary Sector,CHILD AND ADOLESCENT MENTAL HEALTH,SHEFFIELD FUTURES,40281592,35000.4,S1 4GE
Department of Health,NHS Sheffield CCG,31/03/2022,Clinical&Medical-Voluntary Sector,COMMUNITY SERVICES,SHEFFIELD CHURCHES COUNCIL FOR COMMUNITY CARE,40281593,70000,S4 7UQ
Department of Health,NHS Sheffield CCG,31/03/2022,Clinical&Medical-Serv Recd-F Trsts,CLINICAL LEADS,SHEFFIELD TEACHING HOSPITALS NHS FOUNDATION TRUST,40281595,72000,S5 7AU
Department of Health,NHS Sheffield CCG,31/03/2022,Clinical&Medical-Serv Recd-F Trsts,BEREAVEMENT SERVICE,BARNSLEY HOSPITAL NHS FOUNDATION TRUST,40281596,84000,S75 2EP
Department of Health,NHS Sheffield CCG,31/03/2022,Cont Care-Learning Disab(<65),CHC ADULT FULLY FUNDED,CRISTAL CARE LTD,40281601,-61681.18,DN12 3BT
Department of Health,NHS Sheffield CCG,31/03/2022,External Consultancy Fees,BEREAVEMENT SERVICE,ATTAIN HEALTH MANAGEMENT SERVICES LTD,40281603,69840,WC1V 7HZ
Department of Health,NHS Sheffield CCG,31/03/2022,External Consultancy Fees,BEREAVEMENT SERVICE,ATTAIN HEALTH MANAGEMENT SERVICES LTD,40281610,58140,WC1V 7HZ
Department of Health,NHS Sheffield CCG,31/03/2022,Computer Hardware Purch,PRIMARY CARE IT,DELL CORPORATION LTD,40288402,46990,RG12 1LF
Department of Health,NHS Sheffield CCG,31/03/2022,Computer Hardware Purch,PRIMARY CARE IT,DELL CORPORATION LTD,40288402,9398,RG12 1LF
Department of Health,NHS Sheffield CCG,31/03/2022,Cont Care-Physical Disab (65+),CHC ADULT FULLY FUNDED,SHEFFIELD CITY COUNCIL,40290072,1173457.81,S1 1UJ
Department of Health,NHS Sheffield CCG,31/03/2022,Cont Care- Children,CHC CHILDREN,SHEFFIELD CITY COUNCIL,40290075,138206.95,S1 1UJ
Department of Health,NHS Sheffield CCG,31/03/2022,Cont Care- Adult 100% Fully Funded,CHC ADULT FULLY FUNDED,SOUTH YORKSHIRE HOUSING ASSOCIATION LTD,40290080,25500,S1 4HF
Department of Health,NHS Sheffield CCG,31/03/2022,Cont Care- Adult 100% Fully Funded,CHC ADULT FULLY FUNDED,SOUTH YORKSHIRE HOUSING ASSOCIATION LTD,40290082,46763.59,S1 4HF
Department of Health,NHS Sheffield CCG,31/03/2022,Clinical&Medical-Independent Sector,MENTAL HEALTH CONTRACTS,SUSASH GB LTD T/A EAGLE HOUSE,40290084,30091.75,S11 8NP
Department of Health,NHS Sheffield CCG,31/03/2022,Clinical&Medical-Independent Sector,MENTAL HEALTH CONTRACTS,SOUTH YORKSHIRE HOUSING ASSOCIATION LTD,40290087,34434.83,S1 4HF
Department of Health,NHS Sheffield CCG,31/03/2022,Cont Care-Funded Nursing Care Allow,FUNDED NURSING CARE,COUNTRY COURT CARE LTD,40290089,28140,S5 6UU
Department of Health,NHS Sheffield CCG,31/03/2022,Cont Care-Funded Nursing Care Allow,FUNDED NURSING CARE,YOUR CARE PROVIDER,40290125,27791.6,S73 0HQ
Department of Health,NHS Sheffield CCG,31/03/2022,Cont Care-Funded Nursing Care Allow,FUNDED NURSING CARE,ROSEBERRY CARE CENTRES,40290153,35515.26,S5 6AB
Department of Health,NHS Sheffield CCG,31/03/2022,Cont Care-Funded Nursing Care Allow,FUNDED NURSING CARE,BONDCARE,40290166,29855.2,NW4 4EF
Department of Health,NHS Sheffield CCG,31/03/2022,Cont Care-Physical Disab (<65),CHC ADULT FULLY FUNDED,SOUTH YORKSHIRE HOUSING ASSOCIATION LTD,40290194,49889.27,S35 1RQ
Department of Health,NHS Sheffield CCG,31/03/2022,Cont Care-Physical Disab (<65),CHC ADULT FULLY FUNDED,SOUTH YORKSHIRE HOUSING ASSOCIATION LTD,40290196,44215.95,S35 1RQ
Department of Health,NHS Sheffield CCG,31/03/2022,Cont Care-Physical Disab (<65),CHC ADULT FULLY FUNDED,FAIRWINDS HEALTH CARE LTD,40290206,31642.98,S61 1AJ
Department of Health,NHS Sheffield CCG,31/03/2022,Cont Care-Physical Disab (<65),CHC ADULT FULLY FUNDED,LONGLEY HEALTH CARE LTD,40290218,62521.67,S5 7JZ
Department of Health,NHS Sheffield CCG,31/03/2022,Cont Care-Physical Disab (<65),CHC ADULT FULLY FUNDED,LONGLEY HEALTH CARE LTD,40290220,74491.09,S5 7JZ
Department of Health,NHS Sheffield CCG,31/03/2022,Cont Care-Physical Disab (<65),CHC ADULT FULLY FUNDED,SCARSDALE GRANGE NURSING HOME,40290242,42210.5,S8 9EQ
Department of Health,NHS Sheffield CCG,31/03/2022,Cont Care-Physical Disab (<65),CHC ADULT FULLY FUNDED,SCARSDALE GRANGE NURSING HOME,40290245,66295.13,S8 9EQ
Department of Health,NHS Sheffield CCG,31/03/2022,Cont Care-Physical Disab (<65),CHC ADULT FULLY FUNDED,WILLOWBECK HEALTH CARE LTD,40290256,112996.4,S4 8AR
Department of Health,NHS Sheffield CCG,31/03/2022,Cont Care-Physical Disab (<65),CHC ADULT FULLY FUNDED,WILLOWBECK HEALTH CARE LTD,40290258,61580.27,S4 8AR
Department of Health,NHS Sheffield CCG,31/03/2022,Cont Care-Physical Disab (<65),CHC ADULT FULLY FUNDED,BONDCARE,40290297,26829.43,NW4 4EF
Department of Health,NHS Sheffield CCG,31/03/2022,Cont Care-Physical Disab (<65),CHC ADULT FULLY FUNDED,ROSEBERRY CARE CENTRES,40290304,27150.63,S4 7AJ
Department of Health,NHS Sheffield CCG,31/03/2022,Cont Care-Physical Disab (<65),CHC ADULT FULLY FUNDED,HORIZON CARE HOMES LTD,40290309,37326.06,S25 3QA
Department of Health,NHS Sheffield CCG,31/03/2022,Cont Care-Physical Disab (<65),CHC ADULT FULLY FUNDED,HORIZON CARE HOMES LTD,40290311,48483.69,S25 3QA
Department of Health,NHS Sheffield CCG,31/03/2022,Cont Care-Physical Disab (<65),CHC ADULT FULLY FUNDED,HORIZON CARE HOMES LTD,40290314,27700.82,S25 3QA
Department of Health,NHS Sheffield CCG,31/03/2022,Cont Care-Physical Disab (<65),CHC ADULT FULLY FUNDED,HORIZON CARE HOMES LTD,40290315,108223.22,S25 3QA
Department of Health,NHS Sheffield CCG,31/03/2022,Cont Care-Physical Disab (<65),CHC ADULT FULLY FUNDED,VALORUM CARE LTD,40290316,45874.85,LS19 7RW
Department of Health,NHS Sheffield CCG,31/03/2022,Cont Care-Physical Disab (<65),CHC ADULT FULLY FUNDED,INLET LTD,40290320,49430.78,S48NB
Department of Health,NHS Sheffield CCG,31/03/2022,Cont Care- Adult 100% Fully Funded,CHC ADULT FULLY FUNDED,SOUTH YORKSHIRE HOUSING ASSOCIATION LTD,40290322,331701.95,S1 4HF
Department of Health,NHS Sheffield CCG,31/03/2022,Cont Care-Learning Disab(<65),CHC ADULT FULLY FUNDED,RUSKIN MILL TRUST LTD,40301670,30872,GL6 0LA
Department of Health,NHS Sheffield CCG,31/03/2022,FM Computer Contracts,PRIMARY CARE IT,HUMBER TEACHING NHS FOUNDATION TRUST,40306028,25000,WF3 1WE
Department of Health,NHS Sheffield CCG,31/03/2022,FM Computer Contracts,PRIMARY CARE IT,HUMBER TEACHING NHS FOUNDATION TRUST,40306029,118000,WF3 1WE
Department of Health,NHS Sheffield CCG,31/03/2022,FM Computer Contracts,PRIMARY CARE IT,HUMBER TEACHING NHS FOUNDATION TRUST,40306030,50000,WF3 1WE
Department of Health,NHS Sheffield CCG,31/03/2022,FM Computer Contracts,PRIMARY CARE IT,HUMBER TEACHING NHS FOUNDATION TRUST,40306032,50000,WF3 1WE
Department of Health,NHS Sheffield CCG,31/03/2022,Clinical&Medical-Voluntary Sector,MENTAL HEALTH SERVICES - COLLABORATIVE COMMISSIONING,SHEFFIELD MIND,40311159,25608.83,S11 8AL
Department of Health,NHS Sheffield CCG,31/03/2022,Clinical&Medical-Voluntary Sector,MENTAL HEALTH SERVICES - COLLABORATIVE COMMISSIONING,SHEFFIELD MIND,40311169,25608.83,S11 8AL
Department of Health,NHS Sheffield CCG,31/03/2022,Clinical&Medical-Voluntary Sector,MENTAL HEALTH SERVICES - COLLABORATIVE COMMISSIONING,SHEFFIELD MIND,40311176,25608.83,S11 8AL
Department of Health,NHS Sheffield CCG,31/03/2022,Computer Software/License,CLINICAL LEADS,CIVICA UK LTD,40330235,52000,DY1 4TD
Department of Health,NHS Sheffield CCG,31/03/2022,Charges from CSU,BUSINESS INFORMATICS,NHS NORTH OF ENGLAND CSU,40341935,26554.67,WF3 1WE
Department of Health,NHS Sheffield CCG,31/03/2022,Clinical&Medical-Serv Recd-F Trsts,BEREAVEMENT SERVICE,SHEFFIELD TEACHING HOSPITALS NHS FOUNDATION TRUST,40342278,37000,S5 7AU
Department of Health,NHS Sheffield CCG,31/03/2022,Cont Care- Prior Year Payments,CHC ADULT FULLY FUNDED,CUMBRIA COUNTY COUNCIL,40361316,49345.72,CA6 4SJ
Department of Health,NHS Sheffield CCG,31/03/2022,Cont Care-Learning Disab(<65),CHC ADULT FULLY FUNDED,CUMBRIA COUNTY COUNCIL,40361316,55578.85,CA6 4SJ
Department of Health,NHS Sheffield CCG,31/03/2022,External Consultancy Fees,BEREAVEMENT SERVICE,IDEAL HEALTH CONSULTANTS LTD,40361417,90410.96,GU1 4SJ
Department of Health,NHS Sheffield CCG,31/03/2022,Clinical&Medical-Voluntary Sector,HOSPICES,ST LUKES HOSPICE,40361436,-48950,S11 9NE
Department of Health,NHS Sheffield CCG,31/03/2022,Clinical&Medical-Voluntary Sector,HOSPICES,ST LUKES HOSPICE,40361469,-58740,S11 9NE
Department of Health,NHS Sheffield CCG,31/03/2022,Clinical&Medical-Independent Sector,ACUTE COMMISSIONING,SPAMEDICA LTD,40361506,68479.72,BL1 1HU
Department of Health,NHS Sheffield CCG,31/03/2022,C&M-PMS Funding Differential Review,PRC DELEGATED CO-COMMISSIONING,PRIMARY CARE SHEFFIELD LTD,40361516,25000,S12 3GH
Department of Health,NHS Sheffield CCG,31/03/2022,Cont Care- Prior Year Payments,CHC ADULT FULLY FUNDED,CUMBRIA COUNTY COUNCIL,40361526,-49345.72,CA6 4SJ
Department of Health,NHS Sheffield CCG,31/03/2022,Cont Care-Learning Disab(<65),CHC ADULT FULLY FUNDED,CUMBRIA COUNTY COUNCIL,40361526,-55578.85,CA6 4SJ
Department of Health,NHS Sheffield CCG,31/03/2022,Cont Care- Prior Year Payments,CHC ADULT FULLY FUNDED,CUMBRIA COUNTY COUNCIL,40361541,120247.71,CA6 4SJ
Department of Health,NHS Sheffield CCG,31/03/2022,Cont Care-Learning Disab(<65),CHC ADULT FULLY FUNDED,CUMBRIA COUNTY COUNCIL,40361541,55578.86,CA6 4SJ
Department of Health,NHS Sheffield CCG,31/03/2022,C&M-GMS PCO Recruitmt & Retn,GP FORWARD VIEW,FOUNDRY MEDICAL GROUP,40361559,25000,S3 9DL
Department of Health,NHS Sheffield CCG,31/03/2022,C&M-GMS PCO Recruitmt & Retn,GP FORWARD VIEW,FOUNDRY MEDICAL GROUP,40361561,164220,S3 9DL
Department of Health,NHS Sheffield CCG,31/03/2022,Recharge : Received,LOCAL ENHANCED SERVICES,SHEFFIELD CITY COUNCIL,40361568,503000,S1 2HH
Department of Health,NHS Sheffield CCG,31/03/2022,Clinical&Medical-Othe Public Sector,COMMUNITY SERVICES,SHEFFIELD CITY COUNCIL,40361574,150416.7,S1 1UJ
Department of Health,NHS Sheffield CCG,31/03/2022,Clinical&Medical-Othe Public Sector,MENTAL HEALTH SERVICES - COLLABORATIVE COMMISSIONING,SHEFFIELD CITY COUNCIL,40361574,83669.09,S1 1UJ
Department of Health,NHS Sheffield CCG,31/03/2022,Clinical&Medical-Othe Public Sector,REABLEMENT,SHEFFIELD CITY COUNCIL,40361574,21808.67,S1 1UJ
Department of Health,NHS Sheffield CCG,31/03/2022,Clinical&Medical-Othe Public Sector,SAFEGUARDING,SHEFFIELD CITY COUNCIL,40361574,16596.33,S1 1UJ
Department of Health,NHS Sheffield CCG,31/03/2022,Cont Care-Physical Disab (65+),CHC ADULT FULLY FUNDED,SHEFFIELD CITY COUNCIL,40361574,62941.09,S1 1UJ
Department of Health,NHS Sheffield CCG,31/03/2022,Soc Care-Joint H&C Teams/Working,INTERMEDIATE CARE,SHEFFIELD CITY COUNCIL,40361574,151447.58,S1 1UJ
Department of Health,NHS Sheffield CCG,31/03/2022,Soc Care-Other Soc Care,COMMISSIONING - NON ACUTE,SHEFFIELD CITY COUNCIL,40361574,1635250,S1 1UJ
Department of Health,NHS Sheffield CCG,31/03/2022,Soc Care-Support Prim Care,COMMUNITY SERVICES,SHEFFIELD CITY COUNCIL,40361574,64166.67,S1 1UJ
Department of Health,NHS Sheffield CCG,31/03/2022,Hcare Srv Rec NHS Trust-Non Contract,NHS 111,YORKSHIRE AMBULANCE SERVICE NHS TRUST,40361641,735000,WF2 0XQ
Department of Health,NHS Sheffield CCG,31/03/2022,Hcare Srv Rec NHS Trust-Non Contract,NHS 111,YORKSHIRE AMBULANCE SERVICE NHS TRUST,40361644,213261,WF2 0XQ
Department of Health,NHS Sheffield CCG,31/03/2022,Training Expenses,BEREAVEMENT SERVICE,NAPC SERVICES LTD,40377133,65400,W1W 5PF
Department of Health,NHS Sheffield CCG,31/03/2022,Clinical&Medical-Voluntary Sector,HOSPICES,ST LUKES HOSPICE,40377197,58740,S11 9NE
Department of Health,NHS Sheffield CCG,31/03/2022,Clinical&Medical-Voluntary Sector,HOSPICES,ST LUKES HOSPICE,40377203,48950,S11 9NE
Department of Health,NHS Sheffield CCG,31/03/2022,Participation Fees,BEREAVEMENT SERVICE,PRIMARY CARE DONCASTER LTD,40377225,175663.24,DN4 8QN
Department of Health,NHS Sheffield CCG,31/03/2022,Professional Fees,BEREAVEMENT SERVICE,SME HCI LTD,40377254,240000,GU9 7UD
Department of Health,NHS Sheffield CCG,31/03/2022,Hcare Srv Rec Fdtn Trust-Non Contract,COMMUNITY SERVICES,SHEFFIELD CHILDRENS NHS FOUNDATION TRUST,40377270,40000,S10 2TH
Department of Health,NHS Sheffield CCG,31/03/2022,Clinical&Medical-Independent Sector,MENTAL HEALTH SERVICES - OTHER,PRIMARY CARE SHEFFIELD LTD,40377514,538600,S12 3GH
Department of Health,NHS Sheffield CCG,31/03/2022,Clinical&Medical-Independent Sector,MENTAL HEALTH SERVICES - OTHER,PRIMARY CARE SHEFFIELD LTD,40377514,242214,S12 3GH
Department of Health,NHS Sheffield CCG,31/03/2022,Soc Care-Support Prim Care,COMMUNITY SERVICES,SHEFFIELD CITY COUNCIL,40377555,861806,S1 2HH
Department of Health,NHS Sheffield CCG,31/03/2022,C&M-GMS PCO Recruitmt & Retn,GP FORWARD VIEW,FOUNDRY MEDICAL GROUP,40377571,30000,S3 9DL
Department of Health,NHS Sheffield CCG,31/03/2022,C&M-GMS PCO Recruitmt & Retn,GP FORWARD VIEW,FOUNDRY MEDICAL GROUP,40377575,30000,S3 9DL
Department of Health,NHS Sheffield CCG,31/03/2022,Clinical&Medical-Voluntary Sector,MENTAL HEALTH SERVICES - OTHER,SOUTH YORKSHIRE EATING DISORDERS ASSOCIATION,40377595,116000,S6 3BT
Department of Health,NHS Sheffield CCG,31/03/2022,Participation Fees,BEREAVEMENT SERVICE,AGE UK SHEFFIELD,40377609,140000,S2 3FG
Department of Health,NHS Sheffield CCG,31/03/2022,Clinical&Medical-Independent Sector,ACUTE COMMISSIONING,ONEHEALTH GROUP,40377622,37907.32,S11 8UX
Department of Health,NHS Sheffield CCG,31/03/2022,C&M-APMS Other Delivery,GP FORWARD VIEW,PRIMARY CARE SHEFFIELD LTD,40377665,276000,S12 3GH
Department of Health,NHS Sheffield CCG,31/03/2022,C&M-WAF extra session - staff,PRC DELEGATED CO-COMMISSIONING,PRIMARY CARE SHEFFIELD LTD,40377678,109264.53,S12 3GH
Department of Health,NHS Sheffield CCG,31/03/2022,Computer Software/License,IM&T,SOFTCAT PLC,40384219,32680.4,SL7 1LW
Department of Health,NHS Sheffield CCG,31/03/2022,Computer Software/License,IM&T,SOFTCAT PLC,40384219,6536.08,SL7 1LW
Department of Health,NHS Sheffield CCG,31/03/2022,Cont Care-Mental Health (<65),CHC ADULT FULLY FUNDED,RIVERSIDE RESIDENTIAL SERVICES LTD,40393125,41959.43,DN2 5BE
Department of Health,NHS Sheffield CCG,31/03/2022,Clinical&Medical-Independent Sector,Mental Health Services - S117 Mental Health,RUSKIN MILL TRUST LTD,40393355,30551.17,GL6 0LA
Department of Health,NHS Sheffield CCG,31/03/2022,Clinical&Medical-Independent Sector,Mental Health Services - S117 Mental Health,RUSKIN MILL TRUST LTD,40393371,30551.17,GL6 0LA
Department of Health,NHS Sheffield CCG,31/03/2022,Clinical&Medical-Independent Sector,Mental Health Services - S117 Mental Health,RUSKIN MILL TRUST LTD,40393386,29565.64,GL6 0LA
Department of Health,NHS Sheffield CCG,31/03/2022,Clinical&Medical-Independent Sector,Mental Health Services - S117 Mental Health,RUSKIN MILL TRUST LTD,40393392,30551.16,GL6 0LA
Department of Health,NHS Sheffield CCG,31/03/2022,Clinical&Medical-Independent Sector,Mental Health Services - S117 Mental Health,RUSKIN MILL TRUST LTD,40393403,29565.64,GL6 0LA
Department of Health,NHS Sheffield CCG,31/03/2022,Clinical&Medical-Independent Sector,Mental Health Services - S117 Mental Health,RUSKIN MILL TRUST LTD,40393419,30551.16,GL6 0LA
Department of Health,NHS Sheffield CCG,31/03/2022,Clinical&Medical-Independent Sector,Mental Health Services - S117 Mental Health,RUSKIN MILL TRUST LTD,40393437,27594.6,GL6 0LA
Department of Health,NHS Sheffield CCG,31/03/2022,Clinical&Medical-Serv Recd-F Trsts,CLINICAL LEADS,DONCASTER AND BASSETLAW HOSPITALS NHS FOUNDATION TRUST,40393559,29580,WF3 1WE
Department of Health,NHS Sheffield CCG,31/03/2022,Clinical&Medical-Independent Sector,Mental Health Services - S117 Mental Health,RUSKIN MILL TRUST LTD,40393565,-30551.17,GL6 0LA
Department of Health,NHS Sheffield CCG,31/03/2022,Clinical&Medical-Independent Sector,Mental Health Services - S117 Mental Health,RUSKIN MILL TRUST LTD,40393586,-29565.64,GL6 0LA
Department of Health,NHS Sheffield CCG,31/03/2022,Clinical&Medical-Independent Sector,Mental Health Services - S117 Mental Health,RUSKIN MILL TRUST LTD,40393609,-30551.17,GL6 0LA
Department of Health,NHS Sheffield CCG,31/03/2022,Clinical&Medical-Independent Sector,Mental Health Services - S117 Mental Health,RUSKIN MILL TRUST LTD,40393625,-27594.6,GL6 0LA
Department of Health,NHS Sheffield CCG,31/03/2022,Clinical&Medical-Independent Sector,Mental Health Services - S117 Mental Health,RUSKIN MILL TRUST LTD,40393637,-30551.16,GL6 0LA
Department of Health,NHS Sheffield CCG,31/03/2022,Clinical&Medical-Independent Sector,Mental Health Services - S117 Mental Health,RUSKIN MILL TRUST LTD,40393648,-30551.16,GL6 0LA
Department of Health,NHS Sheffield CCG,31/03/2022,Clinical&Medical-Independent Sector,Mental Health Services - S117 Mental Health,RUSKIN MILL TRUST LTD,40393657,-29565.64,GL6 0LA
Department of Health,NHS Sheffield CCG,31/03/2022,Cont Care-Mental Health (<65),CHC ADULT FULLY FUNDED,RIVERSIDE RESIDENTIAL SERVICES LTD,40393684,-41959.43,DN2 5BE
Department of Health,NHS Sheffield CCG,31/03/2022,Clinical&Medical-Serv Recd-F Trsts,BEREAVEMENT SERVICE,SHEFFIELD TEACHING HOSPITALS NHS FOUNDATION TRUST,40393753,37782.72,S5 7AU
Department of Health,NHS Sheffield CCG,31/03/2022,Cont Care-Mental Health (<65),CHC ADULT FULLY FUNDED,RIVERSIDE RESIDENTIAL SERVICES LTD,40393770,37898.84,DN2 5BE
Department of Health,NHS Sheffield CCG,31/03/2022,C&M-GMS DES Minor Surgery,PRC DELEGATED CO-COMMISSIONING,HANDSWORTH MEDICAL PRACTICE SHEFFIELD,40409102,480,S13 9BZ
Department of Health,NHS Sheffield CCG,31/03/2022,C&M-GMS Global Sum,PRC DELEGATED CO-COMMISSIONING,HANDSWORTH MEDICAL PRACTICE SHEFFIELD,40409102,85131.53,S13 9BZ
Department of Health,NHS Sheffield CCG,31/03/2022,C&M-GMS LONG COVID ES,PRC DELEGATED CO-COMMISSIONING,HANDSWORTH MEDICAL PRACTICE SHEFFIELD,40409102,431.27,S13 9BZ
Department of Health,NHS Sheffield CCG,31/03/2022,C&M-GMS PCN DES Participation,PRC DELEGATED CO-COMMISSIONING,HANDSWORTH MEDICAL PRACTICE SHEFFIELD,40409102,1619.69,S13 9BZ
Department of Health,NHS Sheffield CCG,31/03/2022,C&M-GMS Prem Notional Rent,PRC DELEGATED CO-COMMISSIONING,HANDSWORTH MEDICAL PRACTICE SHEFFIELD,40409102,3321.66,S13 9BZ
Department of Health,NHS Sheffield CCG,31/03/2022,C&M-GMS QOF Aspiration,PRC DELEGATED CO-COMMISSIONING,HANDSWORTH MEDICAL PRACTICE SHEFFIELD,40409102,8749.2,S13 9BZ
Department of Health,NHS Sheffield CCG,31/03/2022,C&M-GMS DES Learn Dsblty Hlth Chk,PRC DELEGATED CO-COMMISSIONING,HOLLIES MEDICAL CENTRE,40409107,560,S11 9AL
Department of Health,NHS Sheffield CCG,31/03/2022,C&M-GMS DES Minor Surgery,PRC DELEGATED CO-COMMISSIONING,HOLLIES MEDICAL CENTRE,40409107,1140,S11 9AL
Department of Health,NHS Sheffield CCG,31/03/2022,C&M-GMS Global Sum,PRC DELEGATED CO-COMMISSIONING,HOLLIES MEDICAL CENTRE,40409107,69200.71,S11 9AL
Department of Health,NHS Sheffield CCG,31/03/2022,C&M-GMS LONG COVID ES,PRC DELEGATED CO-COMMISSIONING,HOLLIES MEDICAL CENTRE,40409107,410.66,S11 9AL
Department of Health,NHS Sheffield CCG,31/03/2022,C&M-GMS PCN DES Participation,PRC DELEGATED CO-COMMISSIONING,HOLLIES MEDICAL CENTRE,40409107,1270.72,S11 9AL
Department of Health,NHS Sheffield CCG,31/03/2022,C&M-GMS Prem Notional Rent,PRC DELEGATED CO-COMMISSIONING,HOLLIES MEDICAL CENTRE,40409107,3358.33,S11 9AL
Department of Health,NHS Sheffield CCG,31/03/2022,C&M-GMS QOF Aspiration,PRC DELEGATED CO-COMMISSIONING,HOLLIES MEDICAL CENTRE,40409107,8186.06,S11 9AL
Department of Health,NHS Sheffield CCG,31/03/2022,C&M-GMS Global Sum,PRC DELEGATED CO-COMMISSIONING,HEELEY GREEN SURGERY,40409114,43706.9,S2 3AJ
Department of Health,NHS Sheffield CCG,31/03/2022,C&M-GMS LONG COVID ES,PRC DELEGATED CO-COMMISSIONING,HEELEY GREEN SURGERY,40409114,241.6,S2 3AJ
Department of Health,NHS Sheffield CCG,31/03/2022,C&M-GMS PCN DES Participation,PRC DELEGATED CO-COMMISSIONING,HEELEY GREEN SURGERY,40409114,848.8,S2 3AJ
Department of Health,NHS Sheffield CCG,31/03/2022,C&M-GMS Prem Notional Rent,PRC DELEGATED CO-COMMISSIONING,HEELEY GREEN SURGERY,40409114,3254.17,S2 3AJ
Department of Health,NHS Sheffield CCG,31/03/2022,C&M-GMS QOF Aspiration,PRC DELEGATED CO-COMMISSIONING,HEELEY GREEN SURGERY,40409114,4674.69,S2 3AJ
Department of Health,NHS Sheffield CCG,31/03/2022,C&M-GMS WEIGHT MANAGEMENT SERVICE,PRC DELEGATED CO-COMMISSIONING,HEELEY GREEN SURGERY,40409114,11.5,S2 3AJ
Department of Health,NHS Sheffield CCG,31/03/2022,C&M-GMS DES Minor Surgery,PRC DELEGATED CO-COMMISSIONING,MILL ROAD SURGERY SHEFFIELD,40409123,1640,S35 9XQ
Department of Health,NHS Sheffield CCG,31/03/2022,C&M-GMS Global Sum,PRC DELEGATED CO-COMMISSIONING,MILL ROAD SURGERY SHEFFIELD,40409123,45458.34,S35 9XQ
Department of Health,NHS Sheffield CCG,31/03/2022,C&M-GMS LONG COVID ES,PRC DELEGATED CO-COMMISSIONING,MILL ROAD SURGERY SHEFFIELD,40409123,216.91,S35 9XQ
Department of Health,NHS Sheffield CCG,31/03/2022,C&M-GMS PCN DES Participation,PRC DELEGATED CO-COMMISSIONING,MILL ROAD SURGERY SHEFFIELD,40409123,838.81,S35 9XQ
Department of Health,NHS Sheffield CCG,31/03/2022,C&M-GMS Prem Notional Rent,PRC DELEGATED CO-COMMISSIONING,MILL ROAD SURGERY SHEFFIELD,40409123,4593.33,S35 9XQ
Department of Health,NHS Sheffield CCG,31/03/2022,C&M-GMS QOF Aspiration,PRC DELEGATED CO-COMMISSIONING,MILL ROAD SURGERY SHEFFIELD,40409123,5365.62,S35 9XQ
Department of Health,NHS Sheffield CCG,31/03/2022,C&M-GMS DES Learn Dsblty Hlth Chk,PRC DELEGATED CO-COMMISSIONING,NORWOOD MEDICAL CENTRE SHEFFIELD,40409132,560,S5 7HD
Department of Health,NHS Sheffield CCG,31/03/2022,C&M-GMS DES Minor Surgery,PRC DELEGATED CO-COMMISSIONING,NORWOOD MEDICAL CENTRE SHEFFIELD,40409132,2920,S5 7HD
Department of Health,NHS Sheffield CCG,31/03/2022,C&M-GMS Global Sum,PRC DELEGATED CO-COMMISSIONING,NORWOOD MEDICAL CENTRE SHEFFIELD,40409132,70492.83,S5 7HD
Department of Health,NHS Sheffield CCG,31/03/2022,C&M-GMS LONG COVID ES,PRC DELEGATED CO-COMMISSIONING,NORWOOD MEDICAL CENTRE SHEFFIELD,40409132,336.58,S5 7HD
Department of Health,NHS Sheffield CCG,31/03/2022,C&M-GMS PCN DES Participation,PRC DELEGATED CO-COMMISSIONING,NORWOOD MEDICAL CENTRE SHEFFIELD,40409132,1332.45,S5 7HD
Department of Health,NHS Sheffield CCG,31/03/2022,C&M-GMS Prem Notional Rent,PRC DELEGATED CO-COMMISSIONING,NORWOOD MEDICAL CENTRE SHEFFIELD,40409132,5187.5,S5 7HD
Department of Health,NHS Sheffield CCG,31/03/2022,C&M-GMS QOF Aspiration,PRC DELEGATED CO-COMMISSIONING,NORWOOD MEDICAL CENTRE SHEFFIELD,40409132,8469.31,S5 7HD
Department of Health,NHS Sheffield CCG,31/03/2022,C&M-GMS WEIGHT MANAGEMENT SERVICE,PRC DELEGATED CO-COMMISSIONING,NORWOOD MEDICAL CENTRE SHEFFIELD,40409132,69,S5 7HD
Department of Health,NHS Sheffield CCG,31/03/2022,C&M-GMS DES Minor Surgery,PRC DELEGATED CO-COMMISSIONING,BASLOW ROAD & SHOREHAM STREET SURGERIES,40409137,6080,S17 4DR
Department of Health,NHS Sheffield CCG,31/03/2022,C&M-GMS Global Sum,PRC DELEGATED CO-COMMISSIONING,BASLOW ROAD & SHOREHAM STREET SURGERIES,40409137,103895.2,S17 4DR
Department of Health,NHS Sheffield CCG,31/03/2022,C&M-GMS LONG COVID ES,PRC DELEGATED CO-COMMISSIONING,BASLOW ROAD & SHOREHAM STREET SURGERIES,40409137,509.14,S17 4DR
Department of Health,NHS Sheffield CCG,31/03/2022,C&M-GMS PCN DES Participation,PRC DELEGATED CO-COMMISSIONING,BASLOW ROAD & SHOREHAM STREET SURGERIES,40409137,1957.06,S17 4DR
Department of Health,NHS Sheffield CCG,31/03/2022,C&M-GMS Prem Healthcentre Rent,PRC DELEGATED CO-COMMISSIONING,BASLOW ROAD & SHOREHAM STREET SURGERIES,40409137,15641.73,S17 4DR
Department of Health,NHS Sheffield CCG,31/03/2022,C&M-GMS Prem Notional Rent,PRC DELEGATED CO-COMMISSIONING,BASLOW ROAD & SHOREHAM STREET SURGERIES,40409137,8222.71,S17 4DR
Department of Health,NHS Sheffield CCG,31/03/2022,C&M-GMS QOF Aspiration,PRC DELEGATED CO-COMMISSIONING,BASLOW ROAD & SHOREHAM STREET SURGERIES,40409137,10432.69,S17 4DR
Department of Health,NHS Sheffield CCG,31/03/2022,C&M-GMS GP Statutory Levy,PRC DELEGATED CO-COMMISSIONING,BASLOW ROAD & SHOREHAM STREET SURGERIES,40409139,-441.95,S17 4DR
Department of Health,NHS Sheffield CCG,31/03/2022,C&M-GMS Prem Notional Rent,PRC DELEGATED CO-COMMISSIONING,BASLOW ROAD & SHOREHAM STREET SURGERIES,40409139,-2507.29,S17 4DR
Department of Health,NHS Sheffield CCG,31/03/2022,C&M-GMS Global Sum,PRC DELEGATED CO-COMMISSIONING,BEAUCHIEF MEDICAL PRACTICE,40409141,53671.04,S8 0BJ
Department of Health,NHS Sheffield CCG,31/03/2022,C&M-GMS LONG COVID ES,PRC DELEGATED CO-COMMISSIONING,BEAUCHIEF MEDICAL PRACTICE,40409141,294,S8 0BJ
Department of Health,NHS Sheffield CCG,31/03/2022,C&M-GMS PCN DES Participation,PRC DELEGATED CO-COMMISSIONING,BEAUCHIEF MEDICAL PRACTICE,40409141,990.96,S8 0BJ
Department of Health,NHS Sheffield CCG,31/03/2022,C&M-GMS PCO Locum Adop/Pat/Mat,PRC DELEGATED CO-COMMISSIONING,BEAUCHIEF MEDICAL PRACTICE,40409141,7006.06,S8 0BJ
Department of Health,NHS Sheffield CCG,31/03/2022,C&M-GMS Prem Notional Rent,PRC DELEGATED CO-COMMISSIONING,BEAUCHIEF MEDICAL PRACTICE,40409141,3770.84,S8 0BJ
Department of Health,NHS Sheffield CCG,31/03/2022,C&M-GMS QOF Aspiration,PRC DELEGATED CO-COMMISSIONING,BEAUCHIEF MEDICAL PRACTICE,40409141,5567.74,S8 0BJ
Department of Health,NHS Sheffield CCG,31/03/2022,C&M-GMS WEIGHT MANAGEMENT SERVICE,PRC DELEGATED CO-COMMISSIONING,BEAUCHIEF MEDICAL PRACTICE,40409141,264.5,S8 0BJ
Department of Health,NHS Sheffield CCG,31/03/2022,C&M-GMS DES Learn Dsblty Hlth Chk,PRC DELEGATED CO-COMMISSIONING,OUGHTIBRIDGE SURGERY,40409148,140,S35 0FW
Department of Health,NHS Sheffield CCG,31/03/2022,C&M-GMS DES Minor Surgery,PRC DELEGATED CO-COMMISSIONING,OUGHTIBRIDGE SURGERY,40409148,440,S35 0FW
Department of Health,NHS Sheffield CCG,31/03/2022,C&M-GMS Global Sum,PRC DELEGATED CO-COMMISSIONING,OUGHTIBRIDGE SURGERY,40409148,47624.59,S35 0FW
Department of Health,NHS Sheffield CCG,31/03/2022,C&M-GMS LONG COVID ES,PRC DELEGATED CO-COMMISSIONING,OUGHTIBRIDGE SURGERY,40409148,236.57,S35 0FW
Department of Health,NHS Sheffield CCG,31/03/2022,C&M-GMS PCN DES Participation,PRC DELEGATED CO-COMMISSIONING,OUGHTIBRIDGE SURGERY,40409148,886,S35 0FW
Department of Health,NHS Sheffield CCG,31/03/2022,C&M-GMS Prem Notional Rent,PRC DELEGATED CO-COMMISSIONING,OUGHTIBRIDGE SURGERY,40409148,4064.58,S35 0FW
Department of Health,NHS Sheffield CCG,31/03/2022,C&M-GMS QOF Aspiration,PRC DELEGATED CO-COMMISSIONING,OUGHTIBRIDGE SURGERY,40409148,4819.4,S35 0FW
Department of Health,NHS Sheffield CCG,31/03/2022,C&M-GMS DES Minor Surgery,PRC DELEGATED CO-COMMISSIONING,SHARROW LANE MEDICAL CENTRE,40409157,40,S11 8AN
Department of Health,NHS Sheffield CCG,31/03/2022,C&M-GMS Global Sum,PRC DELEGATED CO-COMMISSIONING,SHARROW LANE MEDICAL CENTRE,40409157,26725.1,S11 8AN
Department of Health,NHS Sheffield CCG,31/03/2022,C&M-GMS LONG COVID ES,PRC DELEGATED CO-COMMISSIONING,SHARROW LANE MEDICAL CENTRE,40409157,169.59,S11 8AN
Department of Health,NHS Sheffield CCG,31/03/2022,C&M-GMS PCN DES Participation,PRC DELEGATED CO-COMMISSIONING,SHARROW LANE MEDICAL CENTRE,40409157,500.68,S11 8AN
Department of Health,NHS Sheffield CCG,31/03/2022,C&M-GMS PCO Locum Sickness,PRC DELEGATED CO-COMMISSIONING,SHARROW LANE MEDICAL CENTRE,40409157,7006,S11 8AN
Department of Health,NHS Sheffield CCG,31/03/2022,C&M-GMS Prem Notional Rent,PRC DELEGATED CO-COMMISSIONING,SHARROW LANE MEDICAL CENTRE,40409157,2741.67,S11 8AN
Department of Health,NHS Sheffield CCG,31/03/2022,C&M-GMS QOF Aspiration,PRC DELEGATED CO-COMMISSIONING,SHARROW LANE MEDICAL CENTRE,40409157,2983.54,S11 8AN
Department of Health,NHS Sheffield CCG,31/03/2022,C&M-GMS DES Minor Surgery,PRC DELEGATED CO-COMMISSIONING,BROOMHILL SURGERY,40409168,460,S10 5BU
Department of Health,NHS Sheffield CCG,31/03/2022,C&M-GMS Global Sum,PRC DELEGATED CO-COMMISSIONING,BROOMHILL SURGERY,40409168,68685.06,S10 5BU
Department of Health,NHS Sheffield CCG,31/03/2022,C&M-GMS LONG COVID ES,PRC DELEGATED CO-COMMISSIONING,BROOMHILL SURGERY,40409168,402.82,S10 5BU
Department of Health,NHS Sheffield CCG,31/03/2022,C&M-GMS PCN DES Participation,PRC DELEGATED CO-COMMISSIONING,BROOMHILL SURGERY,40409168,1322.15,S10 5BU
Department of Health,NHS Sheffield CCG,31/03/2022,C&M-GMS PCO Locum Sickness,PRC DELEGATED CO-COMMISSIONING,BROOMHILL SURGERY,40409168,1460,S10 5BU
Department of Health,NHS Sheffield CCG,31/03/2022,C&M-GMS Prem Cost Rent,PRC DELEGATED CO-COMMISSIONING,BROOMHILL SURGERY,40409168,3309.67,S10 5BU
Department of Health,NHS Sheffield CCG,31/03/2022,C&M-GMS Prem Notional Rent,PRC DELEGATED CO-COMMISSIONING,BROOMHILL SURGERY,40409168,2612.5,S10 5BU
Department of Health,NHS Sheffield CCG,31/03/2022,C&M-GMS QOF Aspiration,PRC DELEGATED CO-COMMISSIONING,BROOMHILL SURGERY,40409168,7198.65,S10 5BU
Department of Health,NHS Sheffield CCG,31/03/2022,C&M-GMS WEIGHT MANAGEMENT SERVICE,PRC DELEGATED CO-COMMISSIONING,BROOMHILL SURGERY,40409168,57.5,S10 5BU
Department of Health,NHS Sheffield CCG,31/03/2022,C&M-GMS DES Minor Surgery,PRC DELEGATED CO-COMMISSIONING,BUCHANAN ROAD SURGERY,40409172,280,S5 8AL
Department of Health,NHS Sheffield CCG,31/03/2022,C&M-GMS Global Sum,PRC DELEGATED CO-COMMISSIONING,BUCHANAN ROAD SURGERY,40409172,37525.62,S5 8AL
Department of Health,NHS Sheffield CCG,31/03/2022,C&M-GMS LONG COVID ES,PRC DELEGATED CO-COMMISSIONING,BUCHANAN ROAD SURGERY,40409172,192.26,S5 8AL
Department of Health,NHS Sheffield CCG,31/03/2022,C&M-GMS PCN DES Participation,PRC DELEGATED CO-COMMISSIONING,BUCHANAN ROAD SURGERY,40409172,727.12,S5 8AL
Department of Health,NHS Sheffield CCG,31/03/2022,C&M-GMS Prem Notional Rent,PRC DELEGATED CO-COMMISSIONING,BUCHANAN ROAD SURGERY,40409172,2595.83,S5 8AL
Department of Health,NHS Sheffield CCG,31/03/2022,C&M-GMS QOF Aspiration,PRC DELEGATED CO-COMMISSIONING,BUCHANAN ROAD SURGERY,40409172,4716.42,S5 8AL
Department of Health,NHS Sheffield CCG,31/03/2022,C&M-GMS WEIGHT MANAGEMENT SERVICE,PRC DELEGATED CO-COMMISSIONING,BUCHANAN ROAD SURGERY,40409172,115,S5 8AL
Department of Health,NHS Sheffield CCG,31/03/2022,C&M-GMS DES Minor Surgery,PRC DELEGATED CO-COMMISSIONING,CHARNOCK HEALTH PRIMARY CARE CENTRE,40409181,1645,S12 3GH
Department of Health,NHS Sheffield CCG,31/03/2022,C&M-GMS Global Sum,PRC DELEGATED CO-COMMISSIONING,CHARNOCK HEALTH PRIMARY CARE CENTRE,40409181,46983.78,S12 3GH
Department of Health,NHS Sheffield CCG,31/03/2022,C&M-GMS LONG COVID ES,PRC DELEGATED CO-COMMISSIONING,CHARNOCK HEALTH PRIMARY CARE CENTRE,40409181,230.23,S12 3GH
Department of Health,NHS Sheffield CCG,31/03/2022,C&M-GMS PCN DES Participation,PRC DELEGATED CO-COMMISSIONING,CHARNOCK HEALTH PRIMARY CARE CENTRE,40409181,884.41,S12 3GH
Department of Health,NHS Sheffield CCG,31/03/2022,C&M-GMS Prem Notional Rent,PRC DELEGATED CO-COMMISSIONING,CHARNOCK HEALTH PRIMARY CARE CENTRE,40409181,340,S12 3GH
Department of Health,NHS Sheffield CCG,31/03/2022,C&M-GMS Prem Water Rates,PRC DELEGATED CO-COMMISSIONING,CHARNOCK HEALTH PRIMARY CARE CENTRE,40409181,52.75,S12 3GH
Department of Health,NHS Sheffield CCG,31/03/2022,C&M-GMS QOF Aspiration,PRC DELEGATED CO-COMMISSIONING,CHARNOCK HEALTH PRIMARY CARE CENTRE,40409181,5385.73,S12 3GH
Department of Health,NHS Sheffield CCG,31/03/2022,C&M-GMS WEIGHT MANAGEMENT SERVICE,PRC DELEGATED CO-COMMISSIONING,CHARNOCK HEALTH PRIMARY CARE CENTRE,40409181,80.5,S12 3GH
Department of Health,NHS Sheffield CCG,31/03/2022,C&M-GMS DES Minor Surgery,PRC DELEGATED CO-COMMISSIONING,STONECROFT MEDICAL CENTRE,40409187,960,S12 2LJ
Department of Health,NHS Sheffield CCG,31/03/2022,C&M-GMS Global Sum,PRC DELEGATED CO-COMMISSIONING,STONECROFT MEDICAL CENTRE,40409187,36645.28,S12 2LJ
Department of Health,NHS Sheffield CCG,31/03/2022,C&M-GMS LONG COVID ES,PRC DELEGATED CO-COMMISSIONING,STONECROFT MEDICAL CENTRE,40409187,173.13,S12 2LJ
Department of Health,NHS Sheffield CCG,31/03/2022,C&M-GMS PCN DES Participation,PRC DELEGATED CO-COMMISSIONING,STONECROFT MEDICAL CENTRE,40409187,680.92,S12 2LJ
Department of Health,NHS Sheffield CCG,31/03/2022,C&M-GMS Prem Notional Rent,PRC DELEGATED CO-COMMISSIONING,STONECROFT MEDICAL CENTRE,40409187,2808.33,S12 2LJ
Department of Health,NHS Sheffield CCG,31/03/2022,C&M-GMS QOF Aspiration,PRC DELEGATED CO-COMMISSIONING,STONECROFT MEDICAL CENTRE,40409187,4286.72,S12 2LJ
Department of Health,NHS Sheffield CCG,31/03/2022,C&M-GMS WEIGHT MANAGEMENT SERVICE,PRC DELEGATED CO-COMMISSIONING,STONECROFT MEDICAL CENTRE,40409187,23,S12 2LJ
Department of Health,NHS Sheffield CCG,31/03/2022,C&M-GMS DES Minor Surgery,PRC DELEGATED CO-COMMISSIONING,SHIREGREEN MEDICAL CENTRE,40409200,40,S5 0RG
Department of Health,NHS Sheffield CCG,31/03/2022,C&M-GMS Global Sum,PRC DELEGATED CO-COMMISSIONING,SHIREGREEN MEDICAL CENTRE,40409200,60135.72,S5 0RG
Department of Health,NHS Sheffield CCG,31/03/2022,C&M-GMS LONG COVID ES,PRC DELEGATED CO-COMMISSIONING,SHIREGREEN MEDICAL CENTRE,40409200,317.7,S5 0RG
Department of Health,NHS Sheffield CCG,31/03/2022,C&M-GMS PCN DES Participation,PRC DELEGATED CO-COMMISSIONING,SHIREGREEN MEDICAL CENTRE,40409200,1161.13,S5 0RG
Department of Health,NHS Sheffield CCG,31/03/2022,C&M-GMS Prem Cost Rent,PRC DELEGATED CO-COMMISSIONING,SHIREGREEN MEDICAL CENTRE,40409200,1792.33,S5 0RG
Department of Health,NHS Sheffield CCG,31/03/2022,C&M-GMS Prem Notional Rent,PRC DELEGATED CO-COMMISSIONING,SHIREGREEN MEDICAL CENTRE,40409200,5375,S5 0RG
Department of Health,NHS Sheffield CCG,31/03/2022,C&M-GMS QOF Aspiration,PRC DELEGATED CO-COMMISSIONING,SHIREGREEN MEDICAL CENTRE,40409200,7267.46,S5 0RG
Department of Health,NHS Sheffield CCG,31/03/2022,C&M-GMS WEIGHT MANAGEMENT SERVICE,PRC DELEGATED CO-COMMISSIONING,SHIREGREEN MEDICAL CENTRE,40409200,23,S5 0RG
Department of Health,NHS Sheffield CCG,31/03/2022,C&M-GMS DES Minor Surgery,PRC DELEGATED CO-COMMISSIONING,STANNINGTON MEDICAL CENTRE,40409209,80,S6 6BX
Department of Health,NHS Sheffield CCG,31/03/2022,C&M-GMS Global Sum,PRC DELEGATED CO-COMMISSIONING,STANNINGTON MEDICAL CENTRE,40409209,27052.75,S6 6BX
Department of Health,NHS Sheffield CCG,31/03/2022,C&M-GMS Prem Notional Rent,PRC DELEGATED CO-COMMISSIONING,STANNINGTON MEDICAL CENTRE,40409209,2625,S6 6BX
Department of Health,NHS Sheffield CCG,31/03/2022,C&M-GMS QOF Aspiration,PRC DELEGATED CO-COMMISSIONING,STANNINGTON MEDICAL CENTRE,40409209,3194.14,S6 6BX
Department of Health,NHS Sheffield CCG,31/03/2022,C&M-GMS DES Minor Surgery,PRC DELEGATED CO-COMMISSIONING,DUKE MEDICAL CENTRE,40409212,800,S2 2TD
Department of Health,NHS Sheffield CCG,31/03/2022,C&M-GMS Global Sum,PRC DELEGATED CO-COMMISSIONING,DUKE MEDICAL CENTRE,40409212,67478.2,S2 2TD
Department of Health,NHS Sheffield CCG,31/03/2022,C&M-GMS LONG COVID ES,PRC DELEGATED CO-COMMISSIONING,DUKE MEDICAL CENTRE,40409212,308.63,S2 2TD
Department of Health,NHS Sheffield CCG,31/03/2022,C&M-GMS PCN DES Participation,PRC DELEGATED CO-COMMISSIONING,DUKE MEDICAL CENTRE,40409212,1180.97,S2 2TD
Department of Health,NHS Sheffield CCG,31/03/2022,C&M-GMS Prem Notional Rent,PRC DELEGATED CO-COMMISSIONING,DUKE MEDICAL CENTRE,40409212,5721.67,S2 2TD
Department of Health,NHS Sheffield CCG,31/03/2022,C&M-GMS QOF Aspiration,PRC DELEGATED CO-COMMISSIONING,DUKE MEDICAL CENTRE,40409212,6200.05,S2 2TD
Department of Health,NHS Sheffield CCG,31/03/2022,C&M-GMS WEIGHT MANAGEMENT SERVICE,PRC DELEGATED CO-COMMISSIONING,DUKE MEDICAL CENTRE,40409212,11.5,S2 2TD
Department of Health,NHS Sheffield CCG,31/03/2022,ME-GMS GP Prior Year AVCs,PRC DELEGATED CO-COMMISSIONING,DUKE MEDICAL CENTRE,40409212,2785.15,S2 2TD
Department of Health,NHS Sheffield CCG,31/03/2022,C&M-GMS GP Statutory Levy,PRC DELEGATED CO-COMMISSIONING,DUKE MEDICAL CENTRE,40409214,-275.24,S2 2TD
Department of Health,NHS Sheffield CCG,31/03/2022,ME-GMS GP Prior Year AVCs,PRC DELEGATED CO-COMMISSIONING,DUKE MEDICAL CENTRE,40409214,-3028.69,S2 2TD
Department of Health,NHS Sheffield CCG,31/03/2022,C&M-GMS DES Learn Dsblty Hlth Chk,PRC DELEGATED CO-COMMISSIONING,CROOKES PRACTICE,40409223,700,S10 1GN
Department of Health,NHS Sheffield CCG,31/03/2022,C&M-GMS Global Sum,PRC DELEGATED CO-COMMISSIONING,CROOKES PRACTICE,40409223,56978.13,S10 1GN
Department of Health,NHS Sheffield CCG,31/03/2022,C&M-GMS LONG COVID ES,PRC DELEGATED CO-COMMISSIONING,CROOKES PRACTICE,40409223,348.04,S10 1GN
Department of Health,NHS Sheffield CCG,31/03/2022,C&M-GMS PCN DES Participation,PRC DELEGATED CO-COMMISSIONING,CROOKES PRACTICE,40409223,1077.54,S10 1GN
Department of Health,NHS Sheffield CCG,31/03/2022,C&M-GMS Prem Notional Rent,PRC DELEGATED CO-COMMISSIONING,CROOKES PRACTICE,40409223,4006.59,S10 1GN
Department of Health,NHS Sheffield CCG,31/03/2022,C&M-GMS QOF Aspiration,PRC DELEGATED CO-COMMISSIONING,CROOKES PRACTICE,40409223,5404.47,S10 1GN
Department of Health,NHS Sheffield CCG,31/03/2022,C&M-GMS DES Learn Dsblty Hlth Chk,PRC DELEGATED CO-COMMISSIONING,ELM LANE SURGERY,40409227,140,S5 7TW
Department of Health,NHS Sheffield CCG,31/03/2022,C&M-GMS DES Minor Surgery,PRC DELEGATED CO-COMMISSIONING,ELM LANE SURGERY,40409227,80,S5 7TW
Department of Health,NHS Sheffield CCG,31/03/2022,C&M-GMS Global Sum,PRC DELEGATED CO-COMMISSIONING,ELM LANE SURGERY,40409227,46580.86,S5 7TW
Department of Health,NHS Sheffield CCG,31/03/2022,C&M-GMS LONG COVID ES,PRC DELEGATED CO-COMMISSIONING,ELM LANE SURGERY,40409227,222.68,S5 7TW
Department of Health,NHS Sheffield CCG,31/03/2022,C&M-GMS PCN DES Participation,PRC DELEGATED CO-COMMISSIONING,ELM LANE SURGERY,40409227,865.86,S5 7TW
Department of Health,NHS Sheffield CCG,31/03/2022,C&M-GMS Prem Notional Rent,PRC DELEGATED CO-COMMISSIONING,ELM LANE SURGERY,40409227,5343,S5 7TW
Department of Health,NHS Sheffield CCG,31/03/2022,C&M-GMS QOF Aspiration,PRC DELEGATED CO-COMMISSIONING,ELM LANE SURGERY,40409227,5528.96,S5 7TW
Department of Health,NHS Sheffield CCG,31/03/2022,C&M-GMS WEIGHT MANAGEMENT SERVICE,PRC DELEGATED CO-COMMISSIONING,ELM LANE SURGERY,40409227,23,S5 7TW
Department of Health,NHS Sheffield CCG,31/03/2022,C&M-GMS DES Learn Dsblty Hlth Chk,PRC DELEGATED CO-COMMISSIONING,FAR LANE MEDICAL CENTRE,40409241,420,S6 4FA
Department of Health,NHS Sheffield CCG,31/03/2022,C&M-GMS DES Minor Surgery,PRC DELEGATED CO-COMMISSIONING,FAR LANE MEDICAL CENTRE,40409241,4285,S6 4FA
Department of Health,NHS Sheffield CCG,31/03/2022,C&M-GMS Global Sum,PRC DELEGATED CO-COMMISSIONING,FAR LANE MEDICAL CENTRE,40409241,60061.69,S6 4FA
Department of Health,NHS Sheffield CCG,31/03/2022,C&M-GMS LONG COVID ES,PRC DELEGATED CO-COMMISSIONING,FAR LANE MEDICAL CENTRE,40409241,294.7,S6 4FA
Department of Health,NHS Sheffield CCG,31/03/2022,C&M-GMS PCN DES Participation,PRC DELEGATED CO-COMMISSIONING,FAR LANE MEDICAL CENTRE,40409241,1139.22,S6 4FA
Department of Health,NHS Sheffield CCG,31/03/2022,C&M-GMS Prem Notional Rent,PRC DELEGATED CO-COMMISSIONING,FAR LANE MEDICAL CENTRE,40409241,3504.17,S6 4FA
Department of Health,NHS Sheffield CCG,31/03/2022,C&M-GMS QOF Aspiration,PRC DELEGATED CO-COMMISSIONING,FAR LANE MEDICAL CENTRE,40409241,6827.86,S6 4FA
Department of Health,NHS Sheffield CCG,31/03/2022,C&M-GMS DES Minor Surgery,PRC DELEGATED CO-COMMISSIONING,DEVONSHIRE GREEN MEDICAL CENTRE,40409243,165,S3 7SF
Department of Health,NHS Sheffield CCG,31/03/2022,C&M-GMS Global Sum,PRC DELEGATED CO-COMMISSIONING,DEVONSHIRE GREEN MEDICAL CENTRE,40409243,53485.74,S3 7SF
Department of Health,NHS Sheffield CCG,31/03/2022,C&M-GMS LONG COVID ES,PRC DELEGATED CO-COMMISSIONING,DEVONSHIRE GREEN MEDICAL CENTRE,40409243,295.19,S3 7SF
Department of Health,NHS Sheffield CCG,31/03/2022,C&M-GMS PCN DES Participation,PRC DELEGATED CO-COMMISSIONING,DEVONSHIRE GREEN MEDICAL CENTRE,40409243,936.47,S3 7SF
Department of Health,NHS Sheffield CCG,31/03/2022,C&M-GMS Prem Notional Rent,PRC DELEGATED CO-COMMISSIONING,DEVONSHIRE GREEN MEDICAL CENTRE,40409243,5987.5,S3 7SF
Department of Health,NHS Sheffield CCG,31/03/2022,C&M-GMS Prem Water Rates,PRC DELEGATED CO-COMMISSIONING,DEVONSHIRE GREEN MEDICAL CENTRE,40409243,96.18,S3 7SF
Department of Health,NHS Sheffield CCG,31/03/2022,C&M-GMS QOF Aspiration,PRC DELEGATED CO-COMMISSIONING,DEVONSHIRE GREEN MEDICAL CENTRE,40409243,5473.95,S3 7SF
Department of Health,NHS Sheffield CCG,31/03/2022,C&M-GMS DES Learn Dsblty Hlth Chk,PRC DELEGATED CO-COMMISSIONING,TRAMWAYS MEDICAL CENTRE,40409249,2240,S6 4JQ
Department of Health,NHS Sheffield CCG,31/03/2022,C&M-GMS DES Minor Surgery,PRC DELEGATED CO-COMMISSIONING,TRAMWAYS MEDICAL CENTRE,40409249,8625,S6 4JQ
Department of Health,NHS Sheffield CCG,31/03/2022,C&M-GMS Global Sum,PRC DELEGATED CO-COMMISSIONING,TRAMWAYS MEDICAL CENTRE,40409249,67099.73,S6 4JQ
Department of Health,NHS Sheffield CCG,31/03/2022,C&M-GMS LONG COVID ES,PRC DELEGATED CO-COMMISSIONING,TRAMWAYS MEDICAL CENTRE,40409249,344.49,S6 4JQ
Department of Health,NHS Sheffield CCG,31/03/2022,C&M-GMS PCN DES Participation,PRC DELEGATED CO-COMMISSIONING,TRAMWAYS MEDICAL CENTRE,40409249,1255.37,S6 4JQ
Department of Health,NHS Sheffield CCG,31/03/2022,C&M-GMS Prem Cost Rent,PRC DELEGATED CO-COMMISSIONING,TRAMWAYS MEDICAL CENTRE,40409249,4012.75,S6 4JQ
Department of Health,NHS Sheffield CCG,31/03/2022,C&M-GMS QOF Aspiration,PRC DELEGATED CO-COMMISSIONING,TRAMWAYS MEDICAL CENTRE,40409249,6868.53,S6 4JQ
Department of Health,NHS Sheffield CCG,31/03/2022,C&M-GMS DES Minor Surgery,PRC DELEGATED CO-COMMISSIONING,MATHEWS PRACTICE,40409256,1765,S2 4UJ
Department of Health,NHS Sheffield CCG,31/03/2022,C&M-GMS Global Sum,PRC DELEGATED CO-COMMISSIONING,MATHEWS PRACTICE,40409256,57375.07,S2 4UJ
Department of Health,NHS Sheffield CCG,31/03/2022,C&M-GMS LONG COVID ES,PRC DELEGATED CO-COMMISSIONING,MATHEWS PRACTICE,40409256,308.59,S2 4UJ
Department of Health,NHS Sheffield CCG,31/03/2022,C&M-GMS PCN DES Participation,PRC DELEGATED CO-COMMISSIONING,MATHEWS PRACTICE,40409256,1147.05,S2 4UJ
Department of Health,NHS Sheffield CCG,31/03/2022,C&M-GMS Prem Rates,PRC DELEGATED CO-COMMISSIONING,MATHEWS PRACTICE,40409256,1466,S2 4UJ
Department of Health,NHS Sheffield CCG,31/03/2022,C&M-GMS QOF Aspiration,PRC DELEGATED CO-COMMISSIONING,MATHEWS PRACTICE,40409256,6845.8,S2 4UJ
Department of Health,NHS Sheffield CCG,31/03/2022,C&M-GMS DES Learn Dsblty Hlth Chk,PRC DELEGATED CO-COMMISSIONING,UPPERTHORPE MEDICAL CENTRE,40409261,280,S6 3FT
Department of Health,NHS Sheffield CCG,31/03/2022,C&M-GMS DES Minor Surgery,PRC DELEGATED CO-COMMISSIONING,UPPERTHORPE MEDICAL CENTRE,40409261,1525,S6 3FT
Department of Health,NHS Sheffield CCG,31/03/2022,C&M-GMS Global Sum,PRC DELEGATED CO-COMMISSIONING,UPPERTHORPE MEDICAL CENTRE,40409261,94914.56,S6 3FT
Department of Health,NHS Sheffield CCG,31/03/2022,C&M-GMS LONG COVID ES,PRC DELEGATED CO-COMMISSIONING,UPPERTHORPE MEDICAL CENTRE,40409261,508.93,S6 3FT
Department of Health,NHS Sheffield CCG,31/03/2022,C&M-GMS PCN DES Participation,PRC DELEGATED CO-COMMISSIONING,UPPERTHORPE MEDICAL CENTRE,40409261,1770.85,S6 3FT
Department of Health,NHS Sheffield CCG,31/03/2022,C&M-GMS Prem Actual Rent,PRC DELEGATED CO-COMMISSIONING,UPPERTHORPE MEDICAL CENTRE,40409261,29894.5,S6 3FT
Department of Health,NHS Sheffield CCG,31/03/2022,C&M-GMS Prem Notional Rent,PRC DELEGATED CO-COMMISSIONING,UPPERTHORPE MEDICAL CENTRE,40409261,2128.33,S6 3FT
Department of Health,NHS Sheffield CCG,31/03/2022,C&M-GMS QOF Aspiration,PRC DELEGATED CO-COMMISSIONING,UPPERTHORPE MEDICAL CENTRE,40409261,10749.32,S6 3FT
Department of Health,NHS Sheffield CCG,31/03/2022,C&M-GMS WEIGHT MANAGEMENT SERVICE,PRC DELEGATED CO-COMMISSIONING,UPPERTHORPE MEDICAL CENTRE,40409261,80.5,S6 3FT
Department of Health,NHS Sheffield CCG,31/03/2022,C&M-GMS DES Learn Dsblty Hlth Chk,PRC DELEGATED CO-COMMISSIONING,WALKLEY HOUSE MEDICAL CENTRE,40409277,280,S6 3TN
Department of Health,NHS Sheffield CCG,31/03/2022,C&M-GMS DES Minor Surgery,PRC DELEGATED CO-COMMISSIONING,WALKLEY HOUSE MEDICAL CENTRE,40409277,1395,S6 3TN
Department of Health,NHS Sheffield CCG,31/03/2022,C&M-GMS Global Sum,PRC DELEGATED CO-COMMISSIONING,WALKLEY HOUSE MEDICAL CENTRE,40409277,94477.86,S6 3TN
Department of Health,NHS Sheffield CCG,31/03/2022,C&M-GMS LONG COVID ES,PRC DELEGATED CO-COMMISSIONING,WALKLEY HOUSE MEDICAL CENTRE,40409277,506.25,S6 3TN
Department of Health,NHS Sheffield CCG,31/03/2022,C&M-GMS PCN DES Participation,PRC DELEGATED CO-COMMISSIONING,WALKLEY HOUSE MEDICAL CENTRE,40409277,1785.69,S6 3TN
Department of Health,NHS Sheffield CCG,31/03/2022,C&M-GMS Prem Notional Rent,PRC DELEGATED CO-COMMISSIONING,WALKLEY HOUSE MEDICAL CENTRE,40409277,5806.96,S6 3TN
Department of Health,NHS Sheffield CCG,31/03/2022,C&M-GMS QOF Aspiration,PRC DELEGATED CO-COMMISSIONING,WALKLEY HOUSE MEDICAL CENTRE,40409277,9792.91,S6 3TN
Department of Health,NHS Sheffield CCG,31/03/2022,C&M-PMS PCN DES Invest & impact,PRC DELEGATED CO-COMMISSIONING,FORGE HEALTH GROUP,40411003,60011.83,S3 9DL
Department of Health,NHS Sheffield CCG,31/03/2022,C&M-GMS PCN DES  Invest & impact,PRC DELEGATED CO-COMMISSIONING,PRIMARY CARE SHEFFIELD LTD,40411005,47651.38,S12 3GH
Department of Health,NHS Sheffield CCG,31/03/2022,C&M-PMS PCN DES Invest & impact,PRC DELEGATED CO-COMMISSIONING,DYKES HALL MEDICAL CENTRE,40411009,36369.6,S6 4GQ
Department of Health,NHS Sheffield CCG,31/03/2022,C&M-GMS PCN DES  Invest & impact,PRC DELEGATED CO-COMMISSIONING,ECCLESFIELD GROUP PRACTICE,40411012,47547.94,S35 9XQ
Department of Health,NHS Sheffield CCG,31/03/2022,C&M-GMS PCN DES  Invest & impact,PRC DELEGATED CO-COMMISSIONING,PRIMARY CARE SHEFFIELD LTD,40411015,39912.31,S12 3GH
Department of Health,NHS Sheffield CCG,31/03/2022,C&M-GMS PCN DES  Invest & impact,PRC DELEGATED CO-COMMISSIONING,PRIMARY CARE SHEFFIELD LTD,40411018,42706.69,S12 3GH
Department of Health,NHS Sheffield CCG,31/03/2022,C&M-PMS PCN DES Invest & impact,PRC DELEGATED CO-COMMISSIONING,JAUNTY SPRINGS HEALTH CENTRE,40411023,37501.48,S12 3DZ
Department of Health,NHS Sheffield CCG,31/03/2022,C&M-PMS PCN DES Invest & impact,PRC DELEGATED CO-COMMISSIONING,UNIVERSITY HEALTH SERVICE,40411029,25736.46,S3 7QP
Department of Health,NHS Sheffield CCG,31/03/2022,C&M-GMS PCN DES  Invest & impact,PRC DELEGATED CO-COMMISSIONING,PRIMARY CARE SHEFFIELD LTD,40411038,40002.31,S12 3GH
Department of Health,NHS Sheffield CCG,31/03/2022,Other Gen Supplies & Srv,BEREAVEMENT SERVICE,MYPOD LTD,40414113,84000,S11 8YZ
Department of Health,NHS Sheffield CCG,31/03/2022,Clinical&Medical-Serv Recd-F Trsts,BEREAVEMENT SERVICE,DONCASTER AND BASSETLAW HOSPITALS NHS FOUNDATION TRUST,40414210,60060,WF3 1WE
Department of Health,NHS Sheffield CCG,31/03/2022,Clinical&Medical-Serv Recd-F Trsts,BEREAVEMENT SERVICE,DONCASTER AND BASSETLAW HOSPITALS NHS FOUNDATION TRUST,40414214,65000,WF3 1WE
Department of Health,NHS Sheffield CCG,31/03/2022,Soc Care-Support Prim Care,COMMUNITY SERVICES,SHEFFIELD CITY COUNCIL,40414258,150000,S1 2HH
Department of Health,NHS Sheffield CCG,31/03/2022,Hcare Srv Rec Fdtn Trust-Contract Baseline,MENTAL HEALTH CONTRACTS,SHEFFIELD HEALTH & SOCIAL CARE NHS FOUNDATION TRUST,40414271,551452,S10 3TH
Department of Health,NHS Sheffield CCG,31/03/2022,C&M-APMS DES Immediate&1st Response,LOCAL ENHANCED SERVICES,PRIMARY CARE SHEFFIELD LTD,40414351,36225,S12 3GH
Department of Health,NHS Sheffield CCG,31/03/2022,C&M-GMS IT Comm Servs -GP Practices,PRIMARY CARE IT,SIMODA LTD,40421504,5220.48,S3 8DH
Department of Health,NHS Sheffield CCG,31/03/2022,C&M-GMS IT Comm Servs -GP Practices,PRIMARY CARE IT,SIMODA LTD,40421504,10597.6,S3 8DH
Department of Health,NHS Sheffield CCG,31/03/2022,C&M-GMS IT Comm Servs -GP Practices,PRIMARY CARE IT,SIMODA LTD,40421504,1796.76,S3 8DH
Department of Health,NHS Sheffield CCG,31/03/2022,C&M-GMS IT Comm Servs -GP Practices,PRIMARY CARE IT,SIMODA LTD,40421504,2460.66,S3 8DH
Department of Health,NHS Sheffield CCG,31/03/2022,C&M-GMS IT Comm Servs -GP Practices,PRIMARY CARE IT,SIMODA LTD,40421504,4857.6,S3 8DH
Department of Health,NHS Sheffield CCG,31/03/2022,C&M-GMS IT Comm Servs -GP Practices,PRIMARY CARE IT,SIMODA LTD,40421504,800,S3 8DH
Department of Health,NHS Sheffield CCG,31/03/2022,C&M-GMS IT Comm Servs -GP Practices,PRIMARY CARE IT,SIMODA LTD,40421504,5146.62,S3 8DH
Department of Health,NHS Sheffield CCG,31/03/2022,Clinical&Medical-Voluntary Sector,COMMUNITY SERVICES,FIRVALE COMMUNITY HUB,40421955,29028,S4 8GU
Department of Health,NHS Sheffield CCG,31/03/2022,Clinical&Medical-Voluntary Sector,COMMUNITY SERVICES,SACMHA HEALTH AND SOCIAL CARE,40421960,34932,S3 8JD
Department of Health,NHS Sheffield CCG,31/03/2022,C&M-GMS DES Learn Dsblty Hlth Chk,PRC DELEGATED CO-COMMISSIONING,WHITE HOUSE SURGERY SHEFFIELD,40427491,840,S2 1SL
Department of Health,NHS Sheffield CCG,31/03/2022,C&M-GMS DES Minor Surgery,PRC DELEGATED CO-COMMISSIONING,WHITE HOUSE SURGERY SHEFFIELD,40427491,160,S2 1SL
Department of Health,NHS Sheffield CCG,31/03/2022,C&M-GMS Global Sum,PRC DELEGATED CO-COMMISSIONING,WHITE HOUSE SURGERY SHEFFIELD,40427491,58878.7,S2 1SL
Department of Health,NHS Sheffield CCG,31/03/2022,C&M-GMS LONG COVID ES,PRC DELEGATED CO-COMMISSIONING,WHITE HOUSE SURGERY SHEFFIELD,40427491,283.44,S2 1SL
Department of Health,NHS Sheffield CCG,31/03/2022,C&M-GMS PCN DES Participation,PRC DELEGATED CO-COMMISSIONING,WHITE HOUSE SURGERY SHEFFIELD,40427491,1090.83,S2 1SL
Department of Health,NHS Sheffield CCG,31/03/2022,C&M-GMS Prem Notional Rent,PRC DELEGATED CO-COMMISSIONING,WHITE HOUSE SURGERY SHEFFIELD,40427491,9412.5,S2 1SL
Department of Health,NHS Sheffield CCG,31/03/2022,C&M-GMS Prem Rates,PRC DELEGATED CO-COMMISSIONING,WHITE HOUSE SURGERY SHEFFIELD,40427491,1632,S2 1SL
Department of Health,NHS Sheffield CCG,31/03/2022,C&M-GMS Prem Water Rates,PRC DELEGATED CO-COMMISSIONING,WHITE HOUSE SURGERY SHEFFIELD,40427491,132.85,S2 1SL
Department of Health,NHS Sheffield CCG,31/03/2022,C&M-GMS QOF Aspiration,PRC DELEGATED CO-COMMISSIONING,WHITE HOUSE SURGERY SHEFFIELD,40427491,6765.85,S2 1SL
Department of Health,NHS Sheffield CCG,31/03/2022,C&M-GMS WAF Security Funding,PRC DELEGATED CO-COMMISSIONING,WHITE HOUSE SURGERY SHEFFIELD,40427491,1230,S2 1SL
Department of Health,NHS Sheffield CCG,31/03/2022,C&M-GMS WEIGHT MANAGEMENT SERVICE,PRC DELEGATED CO-COMMISSIONING,WHITE HOUSE SURGERY SHEFFIELD,40427491,11.5,S2 1SL
Department of Health,NHS Sheffield CCG,31/03/2022,C&M-GP PRACTICE REVENUE - PCTF,LOCAL ENHANCED SERVICES,WHITE HOUSE SURGERY SHEFFIELD,40427491,3000,S2 1SL
Department of Health,NHS Sheffield CCG,31/03/2022,C&M-GMS DES Learn Dsblty Hlth Chk,PRC DELEGATED CO-COMMISSIONING,GRENOSIDE SURGERY,40427498,280,S35 8NX
Department of Health,NHS Sheffield CCG,31/03/2022,C&M-GMS DES Minor Surgery,PRC DELEGATED CO-COMMISSIONING,GRENOSIDE SURGERY,40427498,375,S35 8NX
Department of Health,NHS Sheffield CCG,31/03/2022,C&M-GMS Global Sum,PRC DELEGATED CO-COMMISSIONING,GRENOSIDE SURGERY,40427498,66441.56,S35 8NX
Department of Health,NHS Sheffield CCG,31/03/2022,C&M-GMS LONG COVID ES,PRC DELEGATED CO-COMMISSIONING,GRENOSIDE SURGERY,40427498,319.72,S35 8NX
Department of Health,NHS Sheffield CCG,31/03/2022,C&M-GMS PCN DES Participation,PRC DELEGATED CO-COMMISSIONING,GRENOSIDE SURGERY,40427498,1250.62,S35 8NX
Department of Health,NHS Sheffield CCG,31/03/2022,C&M-GMS Prem Notional Rent,PRC DELEGATED CO-COMMISSIONING,GRENOSIDE SURGERY,40427498,8375,S35 8NX
Department of Health,NHS Sheffield CCG,31/03/2022,C&M-GMS QOF Aspiration,PRC DELEGATED CO-COMMISSIONING,GRENOSIDE SURGERY,40427498,6590.45,S35 8NX
Department of Health,NHS Sheffield CCG,31/03/2022,C&M-GMS WAF Security Funding,PRC DELEGATED CO-COMMISSIONING,GRENOSIDE SURGERY,40427498,500,S35 8NX
Department of Health,NHS Sheffield CCG,31/03/2022,C&M-GMS DES Learn Dsblty Hlth Chk,PRC DELEGATED CO-COMMISSIONING,GREYSTONES MEDICAL CENTRE,40427505,140,S11 7BJ
Department of Health,NHS Sheffield CCG,31/03/2022,C&M-GMS DES Minor Surgery,PRC DELEGATED CO-COMMISSIONING,GREYSTONES MEDICAL CENTRE,40427505,245,S11 7BJ
Department of Health,NHS Sheffield CCG,31/03/2022,C&M-GMS Global Sum,PRC DELEGATED CO-COMMISSIONING,GREYSTONES MEDICAL CENTRE,40427505,21822.17,S11 7BJ
Department of Health,NHS Sheffield CCG,31/03/2022,C&M-GMS LONG COVID ES,PRC DELEGATED CO-COMMISSIONING,GREYSTONES MEDICAL CENTRE,40427505,153.39,S11 7BJ
Department of Health,NHS Sheffield CCG,31/03/2022,C&M-GMS PCN DES Participation,PRC DELEGATED CO-COMMISSIONING,GREYSTONES MEDICAL CENTRE,40427505,403.29,S11 7BJ
Department of Health,NHS Sheffield CCG,31/03/2022,C&M-GMS Prem Notional Rent,PRC DELEGATED CO-COMMISSIONING,GREYSTONES MEDICAL CENTRE,40427505,2885.42,S11 7BJ
Department of Health,NHS Sheffield CCG,31/03/2022,C&M-GMS Prem Rates,PRC DELEGATED CO-COMMISSIONING,GREYSTONES MEDICAL CENTRE,40427505,426,S11 7BJ
Department of Health,NHS Sheffield CCG,31/03/2022,C&M-GMS QOF Aspiration,PRC DELEGATED CO-COMMISSIONING,GREYSTONES MEDICAL CENTRE,40427505,2481.16,S11 7BJ
Department of Health,NHS Sheffield CCG,31/03/2022,C&M-GMS WEIGHT MANAGEMENT SERVICE,PRC DELEGATED CO-COMMISSIONING,GREYSTONES MEDICAL CENTRE,40427505,11.5,S11 7BJ
Department of Health,NHS Sheffield CCG,31/03/2022,ME-GMS GP Prior Year AVCs,PRC DELEGATED CO-COMMISSIONING,GREYSTONES MEDICAL CENTRE,40427505,14293.56,S11 7BJ
Department of Health,NHS Sheffield CCG,31/03/2022,C&M-GMS DES Learn Dsblty Hlth Chk,PRC DELEGATED CO-COMMISSIONING,NORFOLK PARK HEALTH CENTRE,40427514,1540,S2 3TA
Department of Health,NHS Sheffield CCG,31/03/2022,C&M-GMS DES Minor Surgery,PRC DELEGATED CO-COMMISSIONING,NORFOLK PARK HEALTH CENTRE,40427514,250,S2 3TA
Department of Health,NHS Sheffield CCG,31/03/2022,C&M-GMS Global Sum,PRC DELEGATED CO-COMMISSIONING,NORFOLK PARK HEALTH CENTRE,40427514,44430.84,S2 3TA
Department of Health,NHS Sheffield CCG,31/03/2022,C&M-GMS LONG COVID ES,PRC DELEGATED CO-COMMISSIONING,NORFOLK PARK HEALTH CENTRE,40427514,208.46,S2 3TA
Department of Health,NHS Sheffield CCG,31/03/2022,C&M-GMS PCN DES Participation,PRC DELEGATED CO-COMMISSIONING,NORFOLK PARK HEALTH CENTRE,40427514,820.08,S2 3TA
Department of Health,NHS Sheffield CCG,31/03/2022,C&M-GMS Prem Healthcentre Rent,PRC DELEGATED CO-COMMISSIONING,NORFOLK PARK HEALTH CENTRE,40427514,25961.04,S2 3TA
Department of Health,NHS Sheffield CCG,31/03/2022,C&M-GMS QOF Aspiration,PRC DELEGATED CO-COMMISSIONING,NORFOLK PARK HEALTH CENTRE,40427514,4434.09,S2 3TA
Department of Health,NHS Sheffield CCG,31/03/2022,C&M-GMS WEIGHT MANAGEMENT SERVICE,PRC DELEGATED CO-COMMISSIONING,NORFOLK PARK HEALTH CENTRE,40427514,115,S2 3TA
Department of Health,NHS Sheffield CCG,31/03/2022,C&M-GP PRACTICE REVENUE - PCTF,LOCAL ENHANCED SERVICES,NORFOLK PARK HEALTH CENTRE,40427514,12000,S2 3TA
Department of Health,NHS Sheffield CCG,31/03/2022,C&M-GMS DES Minor Surgery,PRC DELEGATED CO-COMMISSIONING,CARTERKNOWLE & DORE MEDICAL PRACTICE,40427523,2380,S7 2DW
Department of Health,NHS Sheffield CCG,31/03/2022,C&M-GMS Global Sum,PRC DELEGATED CO-COMMISSIONING,CARTERKNOWLE & DORE MEDICAL PRACTICE,40427523,95072.61,S7 2DW
Department of Health,NHS Sheffield CCG,31/03/2022,C&M-GMS LONG COVID ES,PRC DELEGATED CO-COMMISSIONING,CARTERKNOWLE & DORE MEDICAL PRACTICE,40427523,522.49,S7 2DW
Department of Health,NHS Sheffield CCG,31/03/2022,C&M-GMS PCN DES Participation,PRC DELEGATED CO-COMMISSIONING,CARTERKNOWLE & DORE MEDICAL PRACTICE,40427523,1765.5,S7 2DW
Department of Health,NHS Sheffield CCG,31/03/2022,C&M-GMS Prem Notional Rent,PRC DELEGATED CO-COMMISSIONING,CARTERKNOWLE & DORE MEDICAL PRACTICE,40427523,7855,S7 2DW
Department of Health,NHS Sheffield CCG,31/03/2022,C&M-GMS QOF Aspiration,PRC DELEGATED CO-COMMISSIONING,CARTERKNOWLE & DORE MEDICAL PRACTICE,40427523,11516.91,S7 2DW
Department of Health,NHS Sheffield CCG,31/03/2022,C&M-GMS WAF Security Funding,PRC DELEGATED CO-COMMISSIONING,CARTERKNOWLE & DORE MEDICAL PRACTICE,40427523,5594.39,S7 2DW
Department of Health,NHS Sheffield CCG,31/03/2022,C&M-GMS DES Extended Hours Access,PRC DELEGATED CO-COMMISSIONING,ECCLESFIELD GROUP PRACTICE,40427525,5114.88,S35 9XQ
Department of Health,NHS Sheffield CCG,31/03/2022,C&M-GMS DES Minor Surgery,PRC DELEGATED CO-COMMISSIONING,ECCLESFIELD GROUP PRACTICE,40427525,640,S35 9XQ
Department of Health,NHS Sheffield CCG,31/03/2022,C&M-GMS Global Sum,PRC DELEGATED CO-COMMISSIONING,ECCLESFIELD GROUP PRACTICE,40427525,74491.02,S35 9XQ
Department of Health,NHS Sheffield CCG,31/03/2022,C&M-GMS LONG COVID ES,PRC DELEGATED CO-COMMISSIONING,ECCLESFIELD GROUP PRACTICE,40427525,355.01,S35 9XQ
Department of Health,NHS Sheffield CCG,31/03/2022,C&M-GMS PCN DES Clin Pharmacist,PRC DELEGATED CO-COMMISSIONING,ECCLESFIELD GROUP PRACTICE,40427525,16244.71,S35 9XQ
Department of Health,NHS Sheffield CCG,31/03/2022,C&M-GMS PCN DES Clinical Director,PRC DELEGATED CO-COMMISSIONING,ECCLESFIELD GROUP PRACTICE,40427525,2614.27,S35 9XQ
Department of Health,NHS Sheffield CCG,31/03/2022,C&M-GMS PCN DES PCN support,LOCAL ENHANCED SERVICES,ECCLESFIELD GROUP PRACTICE,40427525,5328,S35 9XQ
Department of Health,NHS Sheffield CCG,31/03/2022,C&M-GMS PCN DES Participation,PRC DELEGATED CO-COMMISSIONING,ECCLESFIELD GROUP PRACTICE,40427525,1441.13,S35 9XQ
Department of Health,NHS Sheffield CCG,31/03/2022,C&M-GMS PCN DES Physiotherapist,PRC DELEGATED CO-COMMISSIONING,ECCLESFIELD GROUP PRACTICE,40427525,4716.25,S35 9XQ
Department of Health,NHS Sheffield CCG,31/03/2022,C&M-GMS PCN DES Soc Prescribing,PRC DELEGATED CO-COMMISSIONING,ECCLESFIELD GROUP PRACTICE,40427525,8180.94,S35 9XQ
Department of Health,NHS Sheffield CCG,31/03/2022,C&M-GMS Prem Notional Rent,PRC DELEGATED CO-COMMISSIONING,ECCLESFIELD GROUP PRACTICE,40427525,7041.67,S35 9XQ
Department of Health,NHS Sheffield CCG,31/03/2022,C&M-GMS QOF Aspiration,PRC DELEGATED CO-COMMISSIONING,ECCLESFIELD GROUP PRACTICE,40427525,9899.3,S35 9XQ
Department of Health,NHS Sheffield CCG,31/03/2022,C&M-GMS WEIGHT MANAGEMENT SERVICE,PRC DELEGATED CO-COMMISSIONING,ECCLESFIELD GROUP PRACTICE,40427525,34.5,S35 9XQ
Department of Health,NHS Sheffield CCG,31/03/2022,C&M-PCN DES Adult Mental Health Practitioner,PRC DELEGATED CO-COMMISSIONING,ECCLESFIELD GROUP PRACTICE,40427525,2264.25,S35 9XQ
Department of Health,NHS Sheffield CCG,31/03/2022,C&M-PCN-GMS DES Leadership Payment,PRC DELEGATED CO-COMMISSIONING,ECCLESFIELD GROUP PRACTICE,40427525,5182.33,S35 9XQ
Department of Health,NHS Sheffield CCG,31/03/2022,C&M-GMS DES Minor Surgery,PRC DELEGATED CO-COMMISSIONING,MEDICAL CENTRE CRYSTAL PEAKS,40427530,4140,S20 7HZ
Department of Health,NHS Sheffield CCG,31/03/2022,C&M-GMS Global Sum,PRC DELEGATED CO-COMMISSIONING,MEDICAL CENTRE CRYSTAL PEAKS,40427530,51684.75,S20 7HZ
Department of Health,NHS Sheffield CCG,31/03/2022,C&M-GMS LONG COVID ES,PRC DELEGATED CO-COMMISSIONING,MEDICAL CENTRE CRYSTAL PEAKS,40427530,274.79,S20 7HZ
Department of Health,NHS Sheffield CCG,31/03/2022,C&M-GMS PCN DES Participation,PRC DELEGATED CO-COMMISSIONING,MEDICAL CENTRE CRYSTAL PEAKS,40427530,978.29,S20 7HZ
Department of Health,NHS Sheffield CCG,31/03/2022,C&M-GMS Prem Notional Rent,PRC DELEGATED CO-COMMISSIONING,MEDICAL CENTRE CRYSTAL PEAKS,40427530,270,S20 7HZ
Department of Health,NHS Sheffield CCG,31/03/2022,C&M-GMS QOF Aspiration,PRC DELEGATED CO-COMMISSIONING,MEDICAL CENTRE CRYSTAL PEAKS,40427530,7126.23,S20 7HZ
Department of Health,NHS Sheffield CCG,31/03/2022,C&M-GMS WAF Security Funding,PRC DELEGATED CO-COMMISSIONING,MEDICAL CENTRE CRYSTAL PEAKS,40427530,3446.37,S20 7HZ
Department of Health,NHS Sheffield CCG,31/03/2022,C&M-GMS WEIGHT MANAGEMENT SERVICE,PRC DELEGATED CO-COMMISSIONING,MEDICAL CENTRE CRYSTAL PEAKS,40427530,80.5,S20 7HZ
Department of Health,NHS Sheffield CCG,31/03/2022,C&M-GP PRACTICE REVENUE - PCTF,LOCAL ENHANCED SERVICES,MEDICAL CENTRE CRYSTAL PEAKS,40427530,3000,S20 7HZ
Department of Health,NHS Sheffield CCG,31/03/2022,Cont Care-Physical Disab (<65),CHC ADULT FULLY FUNDED,BONDCARE,40433255,29548.89,NW4 4EF
Department of Health,NHS Sheffield CCG,31/03/2022,Clinical&Medical-Othe Public Sector,LEARNING DIFFICULTIES,SHEFFIELD CITY COUNCIL,40433870,-1111000,S1 2HH
Department of Health,NHS Sheffield CCG,31/03/2022,C&M-GMS PCN DES  Invest & impact,PRC DELEGATED CO-COMMISSIONING,PRIMARY CARE SHEFFIELD LTD,40442493,46987.41,S12 3GH
Department of Health,NHS Sheffield CCG,31/03/2022,C&M-GMS PCN DES  Invest & impact,PRC DELEGATED CO-COMMISSIONING,PRIMARY CARE SHEFFIELD LTD,40442494,49025.24,S12 3GH
Department of Health,NHS Sheffield CCG,31/03/2022,C&M-GMS PCN DES  Invest & impact,PRC DELEGATED CO-COMMISSIONING,PRIMARY CARE SHEFFIELD LTD,40442495,45234.09,S12 3GH
Department of Health,NHS Sheffield CCG,31/03/2022,C&M-GMS PCN DES  Invest & impact,PRC DELEGATED CO-COMMISSIONING,PRIMARY CARE SHEFFIELD LTD,40442496,39609.49,S12 3GH
Department of Health,NHS Sheffield CCG,31/03/2022,C&M-GMS PCN DES  Invest & impact,PRC DELEGATED CO-COMMISSIONING,PRIMARY CARE SHEFFIELD LTD,40442497,29940.06,S12 3GH
Department of Health,NHS Sheffield CCG,31/03/2022,Clinical&Medical-Voluntary Sector,LEARNING DIFFICULTIES,NATIONAL DEVELOPMENT TEAM FOR INCLUSION (NDTI),40447322,29736,BL9 5BT
Department of Health,NHS Sheffield CCG,31/03/2022,Cont Care-Learning Disab(<65),CHC ADULT FULLY FUNDED,RUSKIN MILL TRUST LTD,40455370,30551.16,GL6 0LA
Department of Health,NHS Sheffield CCG,31/03/2022,Cont Care- Prior Year Payments,CHC ADULT FULLY FUNDED,RUSKIN MILL TRUST LTD,40455378,30551.17,GL6 0LA
Department of Health,NHS Sheffield CCG,31/03/2022,Cont Care-Learning Disab(<65),CHC ADULT FULLY FUNDED,RUSKIN MILL TRUST LTD,40455386,27594.6,GL6 0LA
Department of Health,NHS Sheffield CCG,31/03/2022,Participation Fees,BEREAVEMENT SERVICE,PRIMARY CARE DONCASTER LTD,40455403,32921.97,DN4 8QN
Department of Health,NHS Sheffield CCG,31/03/2022,Cont Care- Prior Year Payments,CHC ADULT FULLY FUNDED,RUSKIN MILL TRUST LTD,40455418,-30551.17,GL6 0LA
Department of Health,NHS Sheffield CCG,31/03/2022,Cont Care-Learning Disab(<65),CHC ADULT FULLY FUNDED,RUSKIN MILL TRUST LTD,40455426,-27594.6,GL6 0LA
Department of Health,NHS Sheffield CCG,31/03/2022,Cont Care-Learning Disab(<65),CHC ADULT FULLY FUNDED,RUSKIN MILL TRUST LTD,40455433,-30551.16,GL6 0LA
Department of Health,NHS Sheffield CCG,31/03/2022,C&M-GMS LES Equitable Funding,LOCAL ENHANCED SERVICES,MEADOWHEAD GROUP PRACTICE,40457140,25240,S8 7RL
Department of Health,NHS Sheffield CCG,31/03/2022,C&M-GMS LES Equitable Funding,LOCAL ENHANCED SERVICES,PORTER BROOK MEDICAL CENTRE,40457184,25482,S11 8HN
Department of Health,NHS Sheffield CCG,31/03/2022,C&M-GMS LES Equitable Funding,LOCAL ENHANCED SERVICES,UNIVERSITY HEALTH SERVICE,40457260,29008,S3 7QP
Department of Health,NHS Sheffield CCG,31/03/2022,C&M-APMS LES Translation Fees,LOCAL ENHANCED SERVICES,CLOVER GROUP PRACTICE,40457297,70750,S9 4QH
Department of Health,NHS Sheffield CCG,31/03/2022,Course Fees,BEREAVEMENT SERVICE,AFFINA ORGANISATION DEVELOPMENT LTD,40459627,36000,GU14 8AL
Department of Health,NHS Sheffield CCG,31/03/2022,Clinical&Medical-Serv Recd-F Trsts,BEREAVEMENT SERVICE,SHEFFIELD TEACHING HOSPITALS NHS FOUNDATION TRUST,40459637,41389,S5 7AU
Department of Health,NHS Sheffield CCG,31/03/2022,Hcare Srv Rec Fdtn Trust-Non Contract,LEARNING DIFFICULTIES,SHEFFIELD HEALTH & SOCIAL CARE NHS FOUNDATION TRUST,40459730,32216,S10 3TH
Department of Health,NHS Sheffield CCG,31/03/2022,Clinical&Medical-Voluntary Sector,COMMUNITY SERVICES,BURTON STREET FOUNDATION (THE),40470219,29551,S6 2HH
